Body Name,Body,Service Label,Service Code,CIPFA Detailed Expenditure Type,CIPFA Detailed Expenditure Code,Date,Transaction Number,Net Amount,Supplier Name
Nottinghamshire County Council,1111/1001,Children and Young People,CYP,Premises Related,BAA,05/08/2020,05-11878,"8,443.87",ARC Property Services Partnership L
Nottinghamshire County Council,1111/1001,Children and Young People,CYP,Premises Related,BAA,06/08/2020,05-12109,206.4,ARC Property Services Partnership L
Nottinghamshire County Council,1111/1001,Children and Young People,CYP,Premises Related,BAA,07/08/2020,05-12399,10286.52,ARC Property Services Partnership L
Nottinghamshire County Council,1111/1001,Children and Young People,CYP,Premises Related,BAA,10/08/2020,05-13371,10445.64,ARC Property Services Partnership L
Nottinghamshire County Council,1111/1001,Children and Young People,CYP,Premises Related,BAA,17/08/2020,05-14338,82.56,ARC Property Services Partnership L
Nottinghamshire County Council,1111/1001,Children and Young People,CYP,Premises Related,BAA,17/08/2020,05-14340,"12,780.82",ARC Property Services Partnership L
Nottinghamshire County Council,1111/1001,Children and Young People,CYP,Premises Related,BAA,27/08/2020,05-16435,"3,170.98",ARC Property Services Partnership L
Nottinghamshire County Council,1111/1001,Children and Young People,CYP,Premises Related,BCA,03/08/2020,05-10025,285,Siemens Infra & Cities Mobility & L
Nottinghamshire County Council,1111/1001,Children and Young People,CYP,Premises Related,BCA,24/08/2020,05-18608,"2,598.18",Flying High Trust Beeston Fields Pr
Nottinghamshire County Council,1111/1001,Children and Young People,CYP,Premises Related,BDA,03/08/2020,05-10001,1085,High Peak Borough Council
Nottinghamshire County Council,1111/1001,Children and Young People,CYP,Premises Related,BDA,03/08/2020,05-10003,650.00,Jillings Estates Ltd (Bramley Apple
Nottinghamshire County Council,1111/1001,Children and Young People,CYP,Premises Related,BDA,03/08/2020,05-10006,920,Portland College
Nottinghamshire County Council,1111/1001,Children and Young People,CYP,Premises Related,BDA,03/08/2020,05-10007,1208.33,Portland College
Nottinghamshire County Council,1111/1001,Children and Young People,CYP,Premises Related,BEA,24/08/2020,05-16069,333045,Mansfield District Council
Nottinghamshire County Council,1111/1001,Children and Young People,CYP,Premises Related,BEA,24/08/2020,05-16073,"327,843.75",Ashfield District Council
Nottinghamshire County Council,1111/1001,Children and Young People,CYP,Premises Related,BEA,26/08/2020,05-16042,235178.8,Newark & Sherwood District Council
Nottinghamshire County Council,1111/1001,Children and Young People,CYP,Premises Related,BEA,26/08/2020,05-16047,255756,Broxtowe Borough Council
Nottinghamshire County Council,1111/1001,Children and Young People,CYP,Premises Related,BEA,26/08/2020,05-16051,217211,Gedling Borough Council (Bus Rates
Nottinghamshire County Council,1111/1001,Children and Young People,CYP,Premises Related,BEA,26/08/2020,05-16064,201614,Rushcliffe Borough Council
Nottinghamshire County Council,1111/1001,Children and Young People,CYP,Premises Related,BEA,27/08/2020,05-16058,355661,Att Of Earn/Bus Rates Bassetlaw D C
Nottinghamshire County Council,1111/1001,Children and Young People,CYP,Premises Related,BFA,24/08/2020,05-18614,"3,156.36",Mansfield Primary Academy
Nottinghamshire County Council,1111/1001,Children and Young People,CYP,Premises Related,BJA,03/08/2020,05-18585,"2,573.20",Bunzl Cleaning & Hygiene Supplies
Nottinghamshire County Council,1111/1001,Children and Young People,CYP,Premises Related,BJA,03/08/2020,05-18586,2573.2,Bunzl Cleaning & Hygiene Supplies
Nottinghamshire County Council,1111/1001,Children and Young People,CYP,Premises Related,BJA,14/08/2020,05-18862,"2,395.20",Bunzl Cleaning & Hygiene Supplies
Nottinghamshire County Council,1111/1001,Children and Young People,CYP,Transport Related,CAA,11/08/2020,05-13383,882,Via East Midlands Ltd
Nottinghamshire County Council,1111/1001,Children and Young People,CYP,Transport Related,CAA,11/08/2020,05-13397,882.00,Via East Midlands Ltd
Nottinghamshire County Council,1111/1001,Children and Young People,CYP,Transport Related,CAA,11/08/2020,05-13411,908.30,Via East Midlands Ltd
Nottinghamshire County Council,1111/1001,Children and Young People,CYP,Transport Related,CAA,27/08/2020,05-16376,797.27,Via East Midlands Ltd
Nottinghamshire County Council,1111/1001,Children and Young People,CYP,Transport Related,CBA,11/08/2020,05-13383,116.00,Via East Midlands Ltd
Nottinghamshire County Council,1111/1001,Children and Young People,CYP,Transport Related,CBA,11/08/2020,05-13397,344,Via East Midlands Ltd
Nottinghamshire County Council,1111/1001,Children and Young People,CYP,Transport Related,CCA,03/08/2020,05-10033,4619.72,Rushcliffe Travel Ltd
Nottinghamshire County Council,1111/1001,Children and Young People,CYP,Transport Related,CCA,03/08/2020,05-10034,4480.5,Rushcliffe Travel Ltd
Nottinghamshire County Council,1111/1001,Children and Young People,CYP,Transport Related,CCA,06/08/2020,05-12044,796.28,6 Five 2s
Nottinghamshire County Council,1111/1001,Children and Young People,CYP,Transport Related,CCA,06/08/2020,05-12045,760.8,6 Five 2s
Nottinghamshire County Council,1111/1001,Children and Young People,CYP,Transport Related,CCA,06/08/2020,05-12048,765,6 Five 2s
Nottinghamshire County Council,1111/1001,Children and Young People,CYP,Transport Related,CCA,06/08/2020,05-12049,535.5,6 Five 2s
Nottinghamshire County Council,1111/1001,Children and Young People,CYP,Transport Related,CCA,06/08/2020,05-12051,1444.3,6 Five 2s
Nottinghamshire County Council,1111/1001,Children and Young People,CYP,Transport Related,CCA,06/08/2020,05-12052,"1,171.17",6 Five 2s
Nottinghamshire County Council,1111/1001,Children and Young People,CYP,Transport Related,CCA,06/08/2020,05-12054,772.92,6 Five 2s
Nottinghamshire County Council,1111/1001,Children and Young People,CYP,Transport Related,CCA,06/08/2020,05-12058,680,6 Five 2s
Nottinghamshire County Council,1111/1001,Children and Young People,CYP,Transport Related,CCA,06/08/2020,05-12061,512.72,6 Five 2s
Nottinghamshire County Council,1111/1001,Children and Young People,CYP,Transport Related,CCA,06/08/2020,05-12063,"2,520.00",Arnold Acorn Travel
Nottinghamshire County Council,1111/1001,Children and Young People,CYP,Transport Related,CCA,06/08/2020,05-12064,"6,829.24",Arrow Specialised Transport Ltd
Nottinghamshire County Council,1111/1001,Children and Young People,CYP,Transport Related,CCA,06/08/2020,05-12066,1989,Ng11 Cars
Nottinghamshire County Council,1111/1001,Children and Young People,CYP,Transport Related,CCA,06/08/2020,05-12067,875.00,Ng11 Cars
Nottinghamshire County Council,1111/1001,Children and Young People,CYP,Transport Related,CCA,06/08/2020,05-12069,504,Ng11 Cars
Nottinghamshire County Council,1111/1001,Children and Young People,CYP,Transport Related,CCA,06/08/2020,05-12070,"1,190.00",Ng11 Cars
Nottinghamshire County Council,1111/1001,Children and Young People,CYP,Transport Related,CCA,06/08/2020,05-12072,566.1,D G Private Hire Ltd
Nottinghamshire County Council,1111/1001,Children and Young People,CYP,Transport Related,CCA,06/08/2020,05-12074,660,D G Private Hire Ltd
Nottinghamshire County Council,1111/1001,Children and Young People,CYP,Transport Related,CCA,06/08/2020,05-12075,1363,D G Private Hire Ltd
Nottinghamshire County Council,1111/1001,Children and Young People,CYP,Transport Related,CCA,06/08/2020,05-12076,780.00,D G Private Hire Ltd
Nottinghamshire County Council,1111/1001,Children and Young People,CYP,Transport Related,CCA,06/08/2020,05-12077,"1,608.20",JB Tours Watnall Ltd
Nottinghamshire County Council,1111/1001,Children and Young People,CYP,Transport Related,CCA,06/08/2020,05-12078,"2,856.00",JB Tours Watnall Ltd
Nottinghamshire County Council,1111/1001,Children and Young People,CYP,Transport Related,CCA,06/08/2020,05-12079,3411,Travel Wright Ltd
Nottinghamshire County Council,1111/1001,Children and Young People,CYP,Transport Related,CCA,06/08/2020,05-12080,"3,123.00",Travel Wright Ltd
Nottinghamshire County Council,1111/1001,Children and Young People,CYP,Transport Related,CCA,06/08/2020,05-12081,"3,172.50",Travel Wright Ltd
Nottinghamshire County Council,1111/1001,Children and Young People,CYP,Transport Related,CCA,06/08/2020,05-12085,1740.96,Travel Wright Ltd
Nottinghamshire County Council,1111/1001,Children and Young People,CYP,Transport Related,CCA,06/08/2020,05-12088,765,AAA Cabs
Nottinghamshire County Council,1111/1001,Children and Young People,CYP,Transport Related,CCA,06/08/2020,05-12089,2354.4,Ace Cars & Minibuses Ltd
Nottinghamshire County Council,1111/1001,Children and Young People,CYP,Transport Related,CCA,06/08/2020,05-12090,"2,241.00",Ace Cars & Minibuses Ltd
Nottinghamshire County Council,1111/1001,Children and Young People,CYP,Transport Related,CCA,06/08/2020,05-12091,"2,331.00",Ace Cars & Minibuses Ltd
Nottinghamshire County Council,1111/1001,Children and Young People,CYP,Transport Related,CCA,06/08/2020,05-12092,1953,Ace Cars & Minibuses Ltd
Nottinghamshire County Council,1111/1001,Children and Young People,CYP,Transport Related,CCA,06/08/2020,05-12093,"1,981.44",Ace Cars & Minibuses Ltd
Nottinghamshire County Council,1111/1001,Children and Young People,CYP,Transport Related,CCA,06/08/2020,05-12094,"2,033.28",Ace Cars & Minibuses Ltd
Nottinghamshire County Council,1111/1001,Children and Young People,CYP,Transport Related,CCA,06/08/2020,05-12095,3051,Ace Cars & Minibuses Ltd
Nottinghamshire County Council,1111/1001,Children and Young People,CYP,Transport Related,CCA,06/08/2020,05-12096,"1,050.40",Eastwood Cars (UK) Ltd
Nottinghamshire County Council,1111/1001,Children and Young People,CYP,Transport Related,CCA,06/08/2020,05-12097,612,Eastwood Cars (UK) Ltd
Nottinghamshire County Council,1111/1001,Children and Young People,CYP,Transport Related,CCA,06/08/2020,05-12099,1224,Eastwood Cars (UK) Ltd
Nottinghamshire County Council,1111/1001,Children and Young People,CYP,Transport Related,CCA,06/08/2020,05-12100,"1,989.00",Ideal Cars (Private Hire) Ltd
Nottinghamshire County Council,1111/1001,Children and Young People,CYP,Transport Related,CCA,06/08/2020,05-12101,1101.6,Ideal Cars (Private Hire) Ltd
Nottinghamshire County Council,1111/1001,Children and Young People,CYP,Transport Related,CCA,06/08/2020,05-12102,979.20,Reliable Cars Ltd
Nottinghamshire County Council,1111/1001,Children and Young People,CYP,Transport Related,CCA,06/08/2020,05-12115,810,All Wayz Travel
Nottinghamshire County Council,1111/1001,Children and Young People,CYP,Transport Related,CCA,06/08/2020,05-12116,"1,706.90",All Wayz Travel
Nottinghamshire County Council,1111/1001,Children and Young People,CYP,Transport Related,CCA,06/08/2020,05-12117,5310,Johnson Bros Tours Ltd
Nottinghamshire County Council,1111/1001,Children and Young People,CYP,Transport Related,CCA,06/08/2020,05-12118,7470,Johnson Bros Tours Ltd
Nottinghamshire County Council,1111/1001,Children and Young People,CYP,Transport Related,CCA,06/08/2020,05-12119,3510,Johnson Bros Tours Ltd
Nottinghamshire County Council,1111/1001,Children and Young People,CYP,Transport Related,CCA,06/08/2020,05-12120,"2,343.60",Arrow Specialised Transport Ltd
Nottinghamshire County Council,1111/1001,Children and Young People,CYP,Transport Related,CCA,06/08/2020,05-12121,949.45,Arrow Specialised Transport Ltd
Nottinghamshire County Council,1111/1001,Children and Young People,CYP,Transport Related,CCA,06/08/2020,05-12122,"1,755.00",Arrow Specialised Transport Ltd
Nottinghamshire County Council,1111/1001,Children and Young People,CYP,Transport Related,CCA,06/08/2020,05-12123,3408,Arrow Specialised Transport Ltd
Nottinghamshire County Council,1111/1001,Children and Young People,CYP,Transport Related,CCA,06/08/2020,05-12124,2209.6,Arrow Specialised Transport Ltd
Nottinghamshire County Council,1111/1001,Children and Young People,CYP,Transport Related,CCA,06/08/2020,05-12125,2043.27,Arrow Specialised Transport Ltd
Nottinghamshire County Council,1111/1001,Children and Young People,CYP,Transport Related,CCA,06/08/2020,05-12126,2639.93,Arrow Specialised Transport Ltd
Nottinghamshire County Council,1111/1001,Children and Young People,CYP,Transport Related,CCA,06/08/2020,05-12127,3412.58,Arrow Specialised Transport Ltd
Nottinghamshire County Council,1111/1001,Children and Young People,CYP,Transport Related,CCA,06/08/2020,05-12128,3747.82,Arrow Specialised Transport Ltd
Nottinghamshire County Council,1111/1001,Children and Young People,CYP,Transport Related,CCA,06/08/2020,05-12129,"2,961.18",Arrow Specialised Transport Ltd
Nottinghamshire County Council,1111/1001,Children and Young People,CYP,Transport Related,CCA,06/08/2020,05-12130,"2,264.40",Arrow Specialised Transport Ltd
Nottinghamshire County Council,1111/1001,Children and Young People,CYP,Transport Related,CCA,06/08/2020,05-12131,1860.48,Arrow Specialised Transport Ltd
Nottinghamshire County Council,1111/1001,Children and Young People,CYP,Transport Related,CCA,06/08/2020,05-12132,"3,108.78",Arrow Specialised Transport Ltd
Nottinghamshire County Council,1111/1001,Children and Young People,CYP,Transport Related,CCA,06/08/2020,05-12133,2647.08,Arrow Specialised Transport Ltd
Nottinghamshire County Council,1111/1001,Children and Young People,CYP,Transport Related,CCA,06/08/2020,05-12134,"2,362.68",Arrow Specialised Transport Ltd
Nottinghamshire County Council,1111/1001,Children and Young People,CYP,Transport Related,CCA,06/08/2020,05-12135,"2,850.66",Arrow Specialised Transport Ltd
Nottinghamshire County Council,1111/1001,Children and Young People,CYP,Transport Related,CCA,06/08/2020,05-12137,1439.46,Arrow Specialised Transport Ltd
Nottinghamshire County Council,1111/1001,Children and Young People,CYP,Transport Related,CCA,06/08/2020,05-12138,"2,143.70",Arrow Specialised Transport Ltd
Nottinghamshire County Council,1111/1001,Children and Young People,CYP,Transport Related,CCA,06/08/2020,05-12139,2138.6,Arrow Specialised Transport Ltd
Nottinghamshire County Council,1111/1001,Children and Young People,CYP,Transport Related,CCA,06/08/2020,05-12140,2859.4,Arrow Specialised Transport Ltd
Nottinghamshire County Council,1111/1001,Children and Young People,CYP,Transport Related,CCA,06/08/2020,05-12141,946.49,Arrow Specialised Transport Ltd
Nottinghamshire County Council,1111/1001,Children and Young People,CYP,Transport Related,CCA,06/08/2020,05-12143,"2,089.47",Arrow Specialised Transport Ltd
Nottinghamshire County Council,1111/1001,Children and Young People,CYP,Transport Related,CCA,06/08/2020,05-12144,2057.34,Arrow Specialised Transport Ltd
Nottinghamshire County Council,1111/1001,Children and Young People,CYP,Transport Related,CCA,06/08/2020,05-12145,2561.56,Arrow Specialised Transport Ltd
Nottinghamshire County Council,1111/1001,Children and Young People,CYP,Transport Related,CCA,06/08/2020,05-12146,1456.56,Arrow Specialised Transport Ltd
Nottinghamshire County Council,1111/1001,Children and Young People,CYP,Transport Related,CCA,06/08/2020,05-12147,1861.2,Arrow Specialised Transport Ltd
Nottinghamshire County Council,1111/1001,Children and Young People,CYP,Transport Related,CCA,06/08/2020,05-12148,"2,309.04",Arrow Specialised Transport Ltd
Nottinghamshire County Council,1111/1001,Children and Young People,CYP,Transport Related,CCA,06/08/2020,05-12149,"2,314.50",Arrow Specialised Transport Ltd
Nottinghamshire County Council,1111/1001,Children and Young People,CYP,Transport Related,CCA,06/08/2020,05-12150,2417.4,Arrow Specialised Transport Ltd
Nottinghamshire County Council,1111/1001,Children and Young People,CYP,Transport Related,CCA,06/08/2020,05-12151,"3,157.20",Arrow Specialised Transport Ltd
Nottinghamshire County Council,1111/1001,Children and Young People,CYP,Transport Related,CCA,06/08/2020,05-12152,"2,641.32",Arrow Specialised Transport Ltd
Nottinghamshire County Council,1111/1001,Children and Young People,CYP,Transport Related,CCA,06/08/2020,05-12153,"2,032.80",Arrow Specialised Transport Ltd
Nottinghamshire County Council,1111/1001,Children and Young People,CYP,Transport Related,CCA,06/08/2020,05-12154,1196,Arrow Specialised Transport Ltd
Nottinghamshire County Council,1111/1001,Children and Young People,CYP,Transport Related,CCA,06/08/2020,05-12155,"1,010.75",Arrow Specialised Transport Ltd
Nottinghamshire County Council,1111/1001,Children and Young People,CYP,Transport Related,CCA,06/08/2020,05-12156,1130.7,Arrow Specialised Transport Ltd
Nottinghamshire County Council,1111/1001,Children and Young People,CYP,Transport Related,CCA,06/08/2020,05-12158,"2,092.32",Arrow Specialised Transport Ltd
Nottinghamshire County Council,1111/1001,Children and Young People,CYP,Transport Related,CCA,06/08/2020,05-12159,2212.1,Arrow Specialised Transport Ltd
Nottinghamshire County Council,1111/1001,Children and Young People,CYP,Transport Related,CCA,06/08/2020,05-12160,2805.12,Arrow Specialised Transport Ltd
Nottinghamshire County Council,1111/1001,Children and Young People,CYP,Transport Related,CCA,06/08/2020,05-12161,4413.6,Arrow Specialised Transport Ltd
Nottinghamshire County Council,1111/1001,Children and Young People,CYP,Transport Related,CCA,06/08/2020,05-12162,"1,655.82",Arrow Specialised Transport Ltd
Nottinghamshire County Council,1111/1001,Children and Young People,CYP,Transport Related,CCA,06/08/2020,05-12163,"2,606.58",Arrow Specialised Transport Ltd
Nottinghamshire County Council,1111/1001,Children and Young People,CYP,Transport Related,CCA,06/08/2020,05-12164,"3,702.96",Arrow Specialised Transport Ltd
Nottinghamshire County Council,1111/1001,Children and Young People,CYP,Transport Related,CCA,06/08/2020,05-12165,3346.38,Arrow Specialised Transport Ltd
Nottinghamshire County Council,1111/1001,Children and Young People,CYP,Transport Related,CCA,06/08/2020,05-12166,"4,030.20",Arrow Specialised Transport Ltd
Nottinghamshire County Council,1111/1001,Children and Young People,CYP,Transport Related,CCA,06/08/2020,05-12167,"2,094.30",Arrow Specialised Transport Ltd
Nottinghamshire County Council,1111/1001,Children and Young People,CYP,Transport Related,CCA,06/08/2020,05-12168,1700.4,Arrow Specialised Transport Ltd
Nottinghamshire County Council,1111/1001,Children and Young People,CYP,Transport Related,CCA,06/08/2020,05-12169,1819.2,Arrow Specialised Transport Ltd
Nottinghamshire County Council,1111/1001,Children and Young People,CYP,Transport Related,CCA,06/08/2020,05-12170,5301,Arrow Specialised Transport Ltd
Nottinghamshire County Council,1111/1001,Children and Young People,CYP,Transport Related,CCA,06/08/2020,05-12171,"1,855.04",Arrow Specialised Transport Ltd
Nottinghamshire County Council,1111/1001,Children and Young People,CYP,Transport Related,CCA,06/08/2020,05-12172,"2,841.80",Arrow Specialised Transport Ltd
Nottinghamshire County Council,1111/1001,Children and Young People,CYP,Transport Related,CCA,06/08/2020,05-12173,1505.4,Arrow Specialised Transport Ltd
Nottinghamshire County Council,1111/1001,Children and Young People,CYP,Transport Related,CCA,06/08/2020,05-12174,"1,856.40",Arrow Specialised Transport Ltd
Nottinghamshire County Council,1111/1001,Children and Young People,CYP,Transport Related,CCA,06/08/2020,05-12175,"1,417.78",Arrow Specialised Transport Ltd
Nottinghamshire County Council,1111/1001,Children and Young People,CYP,Transport Related,CCA,06/08/2020,05-12176,1597.44,Arrow Specialised Transport Ltd
Nottinghamshire County Council,1111/1001,Children and Young People,CYP,Transport Related,CCA,06/08/2020,05-12177,"2,002.00",Arrow Specialised Transport Ltd
Nottinghamshire County Council,1111/1001,Children and Young People,CYP,Transport Related,CCA,06/08/2020,05-12178,1802.71,Arrow Specialised Transport Ltd
Nottinghamshire County Council,1111/1001,Children and Young People,CYP,Transport Related,CCA,06/08/2020,05-12179,1755,Arrow Specialised Transport Ltd
Nottinghamshire County Council,1111/1001,Children and Young People,CYP,Transport Related,CCA,06/08/2020,05-12180,"1,858.93",Arrow Specialised Transport Ltd
Nottinghamshire County Council,1111/1001,Children and Young People,CYP,Transport Related,CCA,06/08/2020,05-12181,1822.38,Arrow Specialised Transport Ltd
Nottinghamshire County Council,1111/1001,Children and Young People,CYP,Transport Related,CCA,06/08/2020,05-12182,"2,006.34",Arrow Specialised Transport Ltd
Nottinghamshire County Council,1111/1001,Children and Young People,CYP,Transport Related,CCA,06/08/2020,05-12183,2006.02,Arrow Specialised Transport Ltd
Nottinghamshire County Council,1111/1001,Children and Young People,CYP,Transport Related,CCA,06/08/2020,05-12184,"2,132.00",Arrow Specialised Transport Ltd
Nottinghamshire County Council,1111/1001,Children and Young People,CYP,Transport Related,CCA,06/08/2020,05-12185,1860,Arrow Specialised Transport Ltd
Nottinghamshire County Council,1111/1001,Children and Young People,CYP,Transport Related,CCA,06/08/2020,05-12192,1813.32,Nottingham Minibuses & Coaches
Nottinghamshire County Council,1111/1001,Children and Young People,CYP,Transport Related,CCA,06/08/2020,05-12196,3330,Tiger European Uk Ltd
Nottinghamshire County Council,1111/1001,Children and Young People,CYP,Transport Related,CCA,06/08/2020,05-12197,"2,880.00",Tiger European Uk Ltd
Nottinghamshire County Council,1111/1001,Children and Young People,CYP,Transport Related,CCA,06/08/2020,05-12198,2975,Tiger European Uk Ltd
Nottinghamshire County Council,1111/1001,Children and Young People,CYP,Transport Related,CCA,06/08/2020,05-12199,"2,700.00",Tiger European Uk Ltd
Nottinghamshire County Council,1111/1001,Children and Young People,CYP,Transport Related,CCA,06/08/2020,05-12200,6210,Tiger European Uk Ltd
Nottinghamshire County Council,1111/1001,Children and Young People,CYP,Transport Related,CCA,06/08/2020,05-12201,3510,Tiger European Uk Ltd
Nottinghamshire County Council,1111/1001,Children and Young People,CYP,Transport Related,CCA,06/08/2020,05-12202,6030,Tiger European Uk Ltd
Nottinghamshire County Council,1111/1001,Children and Young People,CYP,Transport Related,CCA,06/08/2020,05-12205,6318.9,Kettlewell Retford Ltd
Nottinghamshire County Council,1111/1001,Children and Young People,CYP,Transport Related,CCA,06/08/2020,05-12206,2203.2,Kettlewell Retford Ltd
Nottinghamshire County Council,1111/1001,Children and Young People,CYP,Transport Related,CCA,06/08/2020,05-12207,2743.5,Kettlewell Retford Ltd
Nottinghamshire County Council,1111/1001,Children and Young People,CYP,Transport Related,CCA,06/08/2020,05-12208,1728.9,Kettlewell Retford Ltd
Nottinghamshire County Council,1111/1001,Children and Young People,CYP,Transport Related,CCA,06/08/2020,05-12209,2509.2,Kettlewell Retford Ltd
Nottinghamshire County Council,1111/1001,Children and Young People,CYP,Transport Related,CCA,06/08/2020,05-12210,2509.2,Kettlewell Retford Ltd
Nottinghamshire County Council,1111/1001,Children and Young People,CYP,Transport Related,CCA,06/08/2020,05-12211,2830.5,Kettlewell Retford Ltd
Nottinghamshire County Council,1111/1001,Children and Young People,CYP,Transport Related,CCA,06/08/2020,05-12212,5355,Kettlewell Retford Ltd
Nottinghamshire County Council,1111/1001,Children and Young People,CYP,Transport Related,CCA,06/08/2020,05-12213,2036.45,L A Travel
Nottinghamshire County Council,1111/1001,Children and Young People,CYP,Transport Related,CCA,06/08/2020,05-12214,1890,Travel Liner
Nottinghamshire County Council,1111/1001,Children and Young People,CYP,Transport Related,CCA,06/08/2020,05-12215,530.4,Target Taxis
Nottinghamshire County Council,1111/1001,Children and Young People,CYP,Transport Related,CCA,06/08/2020,05-12216,801.13,Sean's Taxi Services
Nottinghamshire County Council,1111/1001,Children and Young People,CYP,Transport Related,CCA,06/08/2020,05-12218,2970,Hammonds Coaches Ltd
Nottinghamshire County Council,1111/1001,Children and Young People,CYP,Transport Related,CCA,06/08/2020,05-12219,1485,Hammonds Coaches Ltd
Nottinghamshire County Council,1111/1001,Children and Young People,CYP,Transport Related,CCA,06/08/2020,05-12220,2520,Hammonds Coaches Ltd
Nottinghamshire County Council,1111/1001,Children and Young People,CYP,Transport Related,CCA,06/08/2020,05-12221,3681,Millennium Travel (Mansfield) Ltd
Nottinghamshire County Council,1111/1001,Children and Young People,CYP,Transport Related,CCA,06/08/2020,05-12222,2080.8,Unity Coaches Ltd
Nottinghamshire County Council,1111/1001,Children and Young People,CYP,Transport Related,CCA,06/08/2020,05-12223,531.25,Fair Fares Ltd
Nottinghamshire County Council,1111/1001,Children and Young People,CYP,Transport Related,CCA,06/08/2020,05-12224,1060.8,Florin Cocut T/A Stars Taxi
Nottinghamshire County Council,1111/1001,Children and Young People,CYP,Transport Related,CCA,06/08/2020,05-12225,864,All Wayz Travel
Nottinghamshire County Council,1111/1001,Children and Young People,CYP,Transport Related,CCA,06/08/2020,05-12226,2210,All Wayz Travel
Nottinghamshire County Council,1111/1001,Children and Young People,CYP,Transport Related,CCA,06/08/2020,05-12227,4230,Johnson Bros Tours Ltd
Nottinghamshire County Council,1111/1001,Children and Young People,CYP,Transport Related,CCA,06/08/2020,05-12228,716,Acorn Contracts
Nottinghamshire County Council,1111/1001,Children and Young People,CYP,Transport Related,CCA,06/08/2020,05-12229,673.2,Acorn Contracts
Nottinghamshire County Council,1111/1001,Children and Young People,CYP,Transport Related,CCA,06/08/2020,05-12230,734.4,Acorn Contracts
Nottinghamshire County Council,1111/1001,Children and Young People,CYP,Transport Related,CCA,06/08/2020,05-12232,734.4,Acorn Contracts
Nottinghamshire County Council,1111/1001,Children and Young People,CYP,Transport Related,CCA,06/08/2020,05-12234,612,Acorn Contracts
Nottinghamshire County Council,1111/1001,Children and Young People,CYP,Transport Related,CCA,06/08/2020,05-12237,2069.5,Arrow Specialised Transport Ltd
Nottinghamshire County Council,1111/1001,Children and Young People,CYP,Transport Related,CCA,06/08/2020,05-12238,1592.1,Arrow Specialised Transport Ltd
Nottinghamshire County Council,1111/1001,Children and Young People,CYP,Transport Related,CCA,06/08/2020,05-12239,2418.5,Arrow Specialised Transport Ltd
Nottinghamshire County Council,1111/1001,Children and Young People,CYP,Transport Related,CCA,06/08/2020,05-12240,3281.5,Arrow Specialised Transport Ltd
Nottinghamshire County Council,1111/1001,Children and Young People,CYP,Transport Related,CCA,06/08/2020,05-12241,2197.6,Arrow Specialised Transport Ltd
Nottinghamshire County Council,1111/1001,Children and Young People,CYP,Transport Related,CCA,06/08/2020,05-12246,3103.52,Bridges Transport Ltd
Nottinghamshire County Council,1111/1001,Children and Young People,CYP,Transport Related,CCA,06/08/2020,05-12247,1108.31,Bridges Transport Ltd
Nottinghamshire County Council,1111/1001,Children and Young People,CYP,Transport Related,CCA,06/08/2020,05-12249,1683,Fozcabs Newark Taxis
Nottinghamshire County Council,1111/1001,Children and Young People,CYP,Transport Related,CCA,06/08/2020,05-12250,810,Fozcabs Newark Taxis
Nottinghamshire County Council,1111/1001,Children and Young People,CYP,Transport Related,CCA,06/08/2020,05-12251,765,Fozcabs Newark Taxis
Nottinghamshire County Council,1111/1001,Children and Young People,CYP,Transport Related,CCA,06/08/2020,05-12252,2172.6,Fozcabs Newark Taxis
Nottinghamshire County Council,1111/1001,Children and Young People,CYP,Transport Related,CCA,06/08/2020,05-12253,1088,Fozcabs Newark Taxis
Nottinghamshire County Council,1111/1001,Children and Young People,CYP,Transport Related,CCA,06/08/2020,05-12254,1593.75,Fozcabs Newark Taxis
Nottinghamshire County Council,1111/1001,Children and Young People,CYP,Transport Related,CCA,06/08/2020,05-12255,663,Fozcabs Newark Taxis
Nottinghamshire County Council,1111/1001,Children and Young People,CYP,Transport Related,CCA,06/08/2020,05-12256,1171.3,Fozcabs Newark Taxis
Nottinghamshire County Council,1111/1001,Children and Young People,CYP,Transport Related,CCA,06/08/2020,05-12257,2210,Fozcabs Newark Taxis
Nottinghamshire County Council,1111/1001,Children and Young People,CYP,Transport Related,CCA,06/08/2020,05-12258,3056.26,Vallances Coaches
Nottinghamshire County Council,1111/1001,Children and Young People,CYP,Transport Related,CCA,06/08/2020,05-12259,2987.58,Vallances Coaches
Nottinghamshire County Council,1111/1001,Children and Young People,CYP,Transport Related,CCA,06/08/2020,05-12260,3056.26,Vallances Coaches
Nottinghamshire County Council,1111/1001,Children and Young People,CYP,Transport Related,CCA,06/08/2020,05-12261,3332,Vallances Coaches
Nottinghamshire County Council,1111/1001,Children and Young People,CYP,Transport Related,CCA,06/08/2020,05-12262,2405,Vallances Coaches
Nottinghamshire County Council,1111/1001,Children and Young People,CYP,Transport Related,CCA,06/08/2020,05-12263,2384.93,K & S Coaches
Nottinghamshire County Council,1111/1001,Children and Young People,CYP,Transport Related,CCA,06/08/2020,05-12264,2234.34,Midfield Travel
Nottinghamshire County Council,1111/1001,Children and Young People,CYP,Transport Related,CCA,06/08/2020,05-12265,1680.36,Midfield Travel
Nottinghamshire County Council,1111/1001,Children and Young People,CYP,Transport Related,CCA,06/08/2020,05-12267,6936,Wilfreda Beehive
Nottinghamshire County Council,1111/1001,Children and Young People,CYP,Transport Related,CCA,06/08/2020,05-12268,3042,Freeway Coaches Ltd
Nottinghamshire County Council,1111/1001,Children and Young People,CYP,Transport Related,CCA,06/08/2020,05-12269,3197.7,Freeway Coaches Ltd
Nottinghamshire County Council,1111/1001,Children and Young People,CYP,Transport Related,CCA,06/08/2020,05-12270,1620,C W Moxon Ltd
Nottinghamshire County Council,1111/1001,Children and Young People,CYP,Transport Related,CCA,06/08/2020,05-12273,5289.3,C W Moxon Ltd
Nottinghamshire County Council,1111/1001,Children and Young People,CYP,Transport Related,CCA,06/08/2020,05-12275,1677,Rio Cabs
Nottinghamshire County Council,1111/1001,Children and Young People,CYP,Transport Related,CCA,06/08/2020,05-12277,3494.53,Isle Coaches
Nottinghamshire County Council,1111/1001,Children and Young People,CYP,Transport Related,CCA,06/08/2020,05-12278,2054,Hammonds Coaches Ltd
Nottinghamshire County Council,1111/1001,Children and Young People,CYP,Transport Related,CCA,06/08/2020,05-12279,5040,Hammonds Coaches Ltd
Nottinghamshire County Council,1111/1001,Children and Young People,CYP,Transport Related,CCA,06/08/2020,05-12280,1475.6,A Travel
Nottinghamshire County Council,1111/1001,Children and Young People,CYP,Transport Related,CCA,07/08/2020,05-12286,968.8,Alert Cars Ltd
Nottinghamshire County Council,1111/1001,Children and Young People,CYP,Transport Related,CCA,07/08/2020,05-12287,1020,Alert Cars Ltd
Nottinghamshire County Council,1111/1001,Children and Young People,CYP,Transport Related,CCA,07/08/2020,05-12288,2936.07,Taxicover Uk Ltd
Nottinghamshire County Council,1111/1001,Children and Young People,CYP,Transport Related,CCA,07/08/2020,05-12289,3640.04,Taxicover Uk Ltd
Nottinghamshire County Council,1111/1001,Children and Young People,CYP,Transport Related,CCA,07/08/2020,05-12290,1683,Taxicover Uk Ltd
Nottinghamshire County Council,1111/1001,Children and Young People,CYP,Transport Related,CCA,07/08/2020,05-12291,1560,Taxicover Uk Ltd
Nottinghamshire County Council,1111/1001,Children and Young People,CYP,Transport Related,CCA,07/08/2020,05-12292,906.1,Taxicover Uk Ltd
Nottinghamshire County Council,1111/1001,Children and Young People,CYP,Transport Related,CCA,07/08/2020,05-12293,1300,Taxicover Uk Ltd
Nottinghamshire County Council,1111/1001,Children and Young People,CYP,Transport Related,CCA,07/08/2020,05-12295,2074.54,Taxicover Uk Ltd
Nottinghamshire County Council,1111/1001,Children and Young People,CYP,Transport Related,CCA,07/08/2020,05-12296,2893.32,Taxicover Uk Ltd
Nottinghamshire County Council,1111/1001,Children and Young People,CYP,Transport Related,CCA,07/08/2020,05-12297,3478.5,Taxicover Uk Ltd
Nottinghamshire County Council,1111/1001,Children and Young People,CYP,Transport Related,CCA,07/08/2020,05-12298,1941.94,Taxicover Uk Ltd
Nottinghamshire County Council,1111/1001,Children and Young People,CYP,Transport Related,CCA,07/08/2020,05-12299,2374.97,Taxicover Uk Ltd
Nottinghamshire County Council,1111/1001,Children and Young People,CYP,Transport Related,CCA,07/08/2020,05-12300,2113.54,Taxicover Uk Ltd
Nottinghamshire County Council,1111/1001,Children and Young People,CYP,Transport Related,CCA,07/08/2020,05-12301,1808.04,Taxicover Uk Ltd
Nottinghamshire County Council,1111/1001,Children and Young People,CYP,Transport Related,CCA,07/08/2020,05-12302,3080.74,Taxicover Uk Ltd
Nottinghamshire County Council,1111/1001,Children and Young People,CYP,Transport Related,CCA,07/08/2020,05-12303,2215.59,Sharpes Of Nottingham
Nottinghamshire County Council,1111/1001,Children and Young People,CYP,Transport Related,CCA,07/08/2020,05-12304,1633.32,Sharpes Of Nottingham
Nottinghamshire County Council,1111/1001,Children and Young People,CYP,Transport Related,CCA,07/08/2020,05-12305,2784.99,Sharpes Of Nottingham
Nottinghamshire County Council,1111/1001,Children and Young People,CYP,Transport Related,CCA,07/08/2020,05-12306,2261.52,Sharpes Of Nottingham
Nottinghamshire County Council,1111/1001,Children and Young People,CYP,Transport Related,CCA,07/08/2020,05-12307,2215.59,Sharpes Of Nottingham
Nottinghamshire County Council,1111/1001,Children and Young People,CYP,Transport Related,CCA,07/08/2020,05-12309,700,Sharpes Of Nottingham
Nottinghamshire County Council,1111/1001,Children and Young People,CYP,Transport Related,CCA,07/08/2020,05-12310,883,6 Five 2s
Nottinghamshire County Council,1111/1001,Children and Young People,CYP,Transport Related,CCA,07/08/2020,05-12312,1666,Central Cars Nottm Ltd
Nottinghamshire County Council,1111/1001,Children and Young People,CYP,Transport Related,CCA,07/08/2020,05-12313,952,Central Cars Nottm Ltd
Nottinghamshire County Council,1111/1001,Children and Young People,CYP,Transport Related,CCA,07/08/2020,05-12314,1636.2,Central Cars Nottm Ltd
Nottinghamshire County Council,1111/1001,Children and Young People,CYP,Transport Related,CCA,07/08/2020,05-12315,2968.4,Johnson Bros Tours Ltd
Nottinghamshire County Council,1111/1001,Children and Young People,CYP,Transport Related,CCA,07/08/2020,05-12316,728,Wrights Coaches T/A Little Transpor
Nottinghamshire County Council,1111/1001,Children and Young People,CYP,Transport Related,CCA,07/08/2020,05-12320,866.58,Ace Of Mansfield Ltd
Nottinghamshire County Council,1111/1001,Children and Young People,CYP,Transport Related,CCA,07/08/2020,05-12321,1989,Ace Of Mansfield Ltd
Nottinghamshire County Council,1111/1001,Children and Young People,CYP,Transport Related,CCA,07/08/2020,05-12322,562.79,Ace Of Mansfield Ltd
Nottinghamshire County Council,1111/1001,Children and Young People,CYP,Transport Related,CCA,07/08/2020,05-12323,2472.48,Alpha Cars
Nottinghamshire County Council,1111/1001,Children and Young People,CYP,Transport Related,CCA,07/08/2020,05-12324,1300.5,Alpha Cars
Nottinghamshire County Council,1111/1001,Children and Young People,CYP,Transport Related,CCA,07/08/2020,05-12325,1324.08,Alpha Cars
Nottinghamshire County Council,1111/1001,Children and Young People,CYP,Transport Related,CCA,07/08/2020,05-12326,1504.8,Alpha Cars
Nottinghamshire County Council,1111/1001,Children and Young People,CYP,Transport Related,CCA,07/08/2020,05-12328,849.53,Alpha Cars
Nottinghamshire County Council,1111/1001,Children and Young People,CYP,Transport Related,CCA,07/08/2020,05-12334,761.6,Alpha Cars
Nottinghamshire County Council,1111/1001,Children and Young People,CYP,Transport Related,CCA,07/08/2020,05-12335,1579.04,Arrow Specialised Transport Ltd
Nottinghamshire County Council,1111/1001,Children and Young People,CYP,Transport Related,CCA,07/08/2020,05-12336,1915.04,Arrow Specialised Transport Ltd
Nottinghamshire County Council,1111/1001,Children and Young People,CYP,Transport Related,CCA,07/08/2020,05-12337,2574,Arrow Specialised Transport Ltd
Nottinghamshire County Council,1111/1001,Children and Young People,CYP,Transport Related,CCA,07/08/2020,05-12338,2330,Arrow Specialised Transport Ltd
Nottinghamshire County Council,1111/1001,Children and Young People,CYP,Transport Related,CCA,07/08/2020,05-12339,2062.84,Bridges Transport Ltd
Nottinghamshire County Council,1111/1001,Children and Young People,CYP,Transport Related,CCA,07/08/2020,05-12340,2449.44,Bridges Transport Ltd
Nottinghamshire County Council,1111/1001,Children and Young People,CYP,Transport Related,CCA,07/08/2020,05-12341,1360.58,Bridges Transport Ltd
Nottinghamshire County Council,1111/1001,Children and Young People,CYP,Transport Related,CCA,07/08/2020,05-12344,612,Galaxy Cabs Ltd
Nottinghamshire County Council,1111/1001,Children and Young People,CYP,Transport Related,CCA,07/08/2020,05-12345,2160,Galaxy Cabs Ltd
Nottinghamshire County Council,1111/1001,Children and Young People,CYP,Transport Related,CCA,07/08/2020,05-12346,853.71,Galaxy Cabs Ltd
Nottinghamshire County Council,1111/1001,Children and Young People,CYP,Transport Related,CCA,07/08/2020,05-12348,570.6,Galaxy Cabs Ltd
Nottinghamshire County Council,1111/1001,Children and Young People,CYP,Transport Related,CCA,07/08/2020,05-12351,2644.18,Horizon Travel
Nottinghamshire County Council,1111/1001,Children and Young People,CYP,Transport Related,CCA,07/08/2020,05-12354,949.89,Marshalls Of Sutton On Trent Ltd
Nottinghamshire County Council,1111/1001,Children and Young People,CYP,Transport Related,CCA,07/08/2020,05-12359,808.03,Marshalls Of Sutton On Trent Ltd
Nottinghamshire County Council,1111/1001,Children and Young People,CYP,Transport Related,CCA,07/08/2020,05-12360,1603.38,Marshalls Of Sutton On Trent Ltd
Nottinghamshire County Council,1111/1001,Children and Young People,CYP,Transport Related,CCA,07/08/2020,05-12363,1102.5,Marshalls Of Sutton On Trent Ltd
Nottinghamshire County Council,1111/1001,Children and Young People,CYP,Transport Related,CCA,07/08/2020,05-12364,1537.2,Marshalls Of Sutton On Trent Ltd
Nottinghamshire County Council,1111/1001,Children and Young People,CYP,Transport Related,CCA,07/08/2020,05-12365,1242,Meden Travel
Nottinghamshire County Council,1111/1001,Children and Young People,CYP,Transport Related,CCA,07/08/2020,05-12366,2730,Tiger European Uk Ltd
Nottinghamshire County Council,1111/1001,Children and Young People,CYP,Transport Related,CCA,07/08/2020,05-12367,3330,Tiger European Uk Ltd
Nottinghamshire County Council,1111/1001,Children and Young People,CYP,Transport Related,CCA,07/08/2020,05-12368,2592.6,Aj Travel
Nottinghamshire County Council,1111/1001,Children and Young People,CYP,Transport Related,CCA,07/08/2020,05-12369,3152.7,K Matthews Travel
Nottinghamshire County Council,1111/1001,Children and Young People,CYP,Transport Related,CCA,07/08/2020,05-12370,2967.3,K Matthews Travel
Nottinghamshire County Council,1111/1001,Children and Young People,CYP,Transport Related,CCA,07/08/2020,05-12372,19951.92,Ace Cars & Minibuses Ltd
Nottinghamshire County Council,1111/1001,Children and Young People,CYP,Transport Related,CCA,07/08/2020,05-12376,11048.94,Nottingham Coaches
Nottinghamshire County Council,1111/1001,Children and Young People,CYP,Transport Related,CCA,07/08/2020,05-12377,6705.99,Nottingham Coaches
Nottinghamshire County Council,1111/1001,Children and Young People,CYP,Transport Related,CCA,07/08/2020,05-12378,585.27,Nottingham Coaches
Nottinghamshire County Council,1111/1001,Children and Young People,CYP,Transport Related,CCA,07/08/2020,05-12379,2267.82,Nottingham Coaches
Nottinghamshire County Council,1111/1001,Children and Young People,CYP,Transport Related,CCA,07/08/2020,05-12381,2250,Trevor Bailey t/a Trevor Bailey Tra
Nottinghamshire County Council,1111/1001,Children and Young People,CYP,Transport Related,CCA,07/08/2020,05-12382,1820.7,CT4N Ltd
Nottinghamshire County Council,1111/1001,Children and Young People,CYP,Transport Related,CCA,07/08/2020,05-12383,2070,CT4N Ltd
Nottinghamshire County Council,1111/1001,Children and Young People,CYP,Transport Related,CCA,07/08/2020,05-12384,2090.7,CT4N Ltd
Nottinghamshire County Council,1111/1001,Children and Young People,CYP,Transport Related,CCA,07/08/2020,05-12385,1980,CT4N Ltd
Nottinghamshire County Council,1111/1001,Children and Young People,CYP,Transport Related,CCA,07/08/2020,05-12388,3427.4,Millennium Travel (Mansfield) Ltd
Nottinghamshire County Council,1111/1001,Children and Young People,CYP,Transport Related,CCA,07/08/2020,05-12390,912.6,AJ's Taxis
Nottinghamshire County Council,1111/1001,Children and Young People,CYP,Transport Related,CCA,07/08/2020,05-12391,"2,526.72",APC Travel
Nottinghamshire County Council,1111/1001,Children and Young People,CYP,Transport Related,CCA,07/08/2020,05-12393,1988.89,Vectare Ltd
Nottinghamshire County Council,1111/1001,Children and Young People,CYP,Transport Related,CCA,07/08/2020,05-12394,760.5,Carriage Solutions Ltd
Nottinghamshire County Council,1111/1001,Children and Young People,CYP,Transport Related,CCA,07/08/2020,05-12395,642.60,Carriage Solutions Ltd
Nottinghamshire County Council,1111/1001,Children and Young People,CYP,Transport Related,CCA,07/08/2020,05-12396,1734,Home James Cars
Nottinghamshire County Council,1111/1001,Children and Young People,CYP,Transport Related,CCA,07/08/2020,05-12406,1559.09,Sharpes Of Nottingham
Nottinghamshire County Council,1111/1001,Children and Young People,CYP,Transport Related,CCA,07/08/2020,05-12407,2503.15,Sharpes Of Nottingham
Nottinghamshire County Council,1111/1001,Children and Young People,CYP,Transport Related,CCA,07/08/2020,05-12408,2966.34,Sharpes Of Nottingham
Nottinghamshire County Council,1111/1001,Children and Young People,CYP,Transport Related,CCA,07/08/2020,05-12409,"2,766.07",Arrow Specialised Transport Ltd
Nottinghamshire County Council,1111/1001,Children and Young People,CYP,Transport Related,CCA,07/08/2020,05-12411,"12,841.20",Erewash Community Transport
Nottinghamshire County Council,1111/1001,Children and Young People,CYP,Transport Related,CCA,07/08/2020,05-12414,"1,082.90",Galaxy Cabs Ltd
Nottinghamshire County Council,1111/1001,Children and Young People,CYP,Transport Related,CCA,07/08/2020,05-12415,"1,262.25",Shelleys Taxis Ltd
Nottinghamshire County Council,1111/1001,Children and Young People,CYP,Transport Related,CCA,07/08/2020,05-12416,928.20,Shelleys Taxis Ltd
Nottinghamshire County Council,1111/1001,Children and Young People,CYP,Transport Related,CCA,07/08/2020,05-12417,"1,499.40",Shelleys Taxis Ltd
Nottinghamshire County Council,1111/1001,Children and Young People,CYP,Transport Related,CCA,07/08/2020,05-12418,"2,466.00",D G Private Hire Ltd
Nottinghamshire County Council,1111/1001,Children and Young People,CYP,Transport Related,CCA,07/08/2020,05-12419,918,D G Private Hire Ltd
Nottinghamshire County Council,1111/1001,Children and Young People,CYP,Transport Related,CCA,07/08/2020,05-12420,918.00,D G Private Hire Ltd
Nottinghamshire County Council,1111/1001,Children and Young People,CYP,Transport Related,CCA,07/08/2020,05-12421,1496,K & R Cars
Nottinghamshire County Council,1111/1001,Children and Young People,CYP,Transport Related,CCA,07/08/2020,05-12422,2837.52,Nottingham Minibuses & Coaches
Nottinghamshire County Council,1111/1001,Children and Young People,CYP,Transport Related,CCA,07/08/2020,05-12423,"2,790.00",Silverdale Tours Nottm Ltd
Nottinghamshire County Council,1111/1001,Children and Young People,CYP,Transport Related,CCA,07/08/2020,05-12424,"2,700.00",Silverdale Tours Nottm Ltd
Nottinghamshire County Council,1111/1001,Children and Young People,CYP,Transport Related,CCA,07/08/2020,05-12425,2295,Silverdale Tours Nottm Ltd
Nottinghamshire County Council,1111/1001,Children and Young People,CYP,Transport Related,CCA,07/08/2020,05-12426,"2,851.20",Silverdale Tours Nottm Ltd
Nottinghamshire County Council,1111/1001,Children and Young People,CYP,Transport Related,CCA,07/08/2020,05-12427,"7,484.40",Silverdale Tours Nottm Ltd
Nottinghamshire County Council,1111/1001,Children and Young People,CYP,Transport Related,CCA,07/08/2020,05-12428,"5,589.60",Silverdale Tours Nottm Ltd
Nottinghamshire County Council,1111/1001,Children and Young People,CYP,Transport Related,CCA,07/08/2020,05-12429,"5,419.60",Silverdale Tours Nottm Ltd
Nottinghamshire County Council,1111/1001,Children and Young People,CYP,Transport Related,CCA,07/08/2020,05-12430,2148.12,Silverdale Tours Nottm Ltd
Nottinghamshire County Council,1111/1001,Children and Young People,CYP,Transport Related,CCA,07/08/2020,05-12431,"1,878.24",Silverdale Tours Nottm Ltd
Nottinghamshire County Council,1111/1001,Children and Young People,CYP,Transport Related,CCA,07/08/2020,05-12432,1850.55,Travel Wright Ltd
Nottinghamshire County Council,1111/1001,Children and Young People,CYP,Transport Related,CCA,07/08/2020,05-12434,1412.19,Travel Wright Ltd
Nottinghamshire County Council,1111/1001,Children and Young People,CYP,Transport Related,CCA,07/08/2020,05-12435,1536.6,Travel Wright Ltd
Nottinghamshire County Council,1111/1001,Children and Young People,CYP,Transport Related,CCA,07/08/2020,05-12436,7651.54,Travel Wright Ltd
Nottinghamshire County Council,1111/1001,Children and Young People,CYP,Transport Related,CCA,07/08/2020,05-12437,2686,P & P Taxis Ltd
Nottinghamshire County Council,1111/1001,Children and Young People,CYP,Transport Related,CCA,07/08/2020,05-12439,6531.15,P & P Taxis Ltd
Nottinghamshire County Council,1111/1001,Children and Young People,CYP,Transport Related,CCA,07/08/2020,05-12440,"3,942.00",Freeway Coaches Ltd
Nottinghamshire County Council,1111/1001,Children and Young People,CYP,Transport Related,CCA,07/08/2020,05-12441,"3,197.70",Freeway Coaches Ltd
Nottinghamshire County Council,1111/1001,Children and Young People,CYP,Transport Related,CCA,07/08/2020,05-12442,"2,754.00",Freeway Coaches Ltd
Nottinghamshire County Council,1111/1001,Children and Young People,CYP,Transport Related,CCA,07/08/2020,05-12444,1116,Rio Cabs
Nottinghamshire County Council,1111/1001,Children and Young People,CYP,Transport Related,CCA,07/08/2020,05-12445,752.5,Eastwood Cars (UK) Ltd
Nottinghamshire County Council,1111/1001,Children and Young People,CYP,Transport Related,CCA,07/08/2020,05-12446,714,Eastwood Cars (UK) Ltd
Nottinghamshire County Council,1111/1001,Children and Young People,CYP,Transport Related,CCA,07/08/2020,05-12447,607.75,Gxpress Cars
Nottinghamshire County Council,1111/1001,Children and Young People,CYP,Transport Related,CCA,11/08/2020,05-13647,952,Central Cars Nottm Ltd
Nottinghamshire County Council,1111/1001,Children and Young People,CYP,Transport Related,CCA,11/08/2020,05-13648,"2,421.00",F4Control Ltd (t/a First4care)
Nottinghamshire County Council,1111/1001,Children and Young People,CYP,Transport Related,CCA,11/08/2020,05-13649,2655,F4Control Ltd (t/a First4care)
Nottinghamshire County Council,1111/1001,Children and Young People,CYP,Transport Related,CCA,11/08/2020,05-13650,2898,F4Control Ltd (t/a First4care)
Nottinghamshire County Council,1111/1001,Children and Young People,CYP,Transport Related,CCA,11/08/2020,05-13651,"2,358.00",F4Control Ltd (t/a First4care)
Nottinghamshire County Council,1111/1001,Children and Young People,CYP,Transport Related,CCA,11/08/2020,05-13652,"2,178.72",F4Control Ltd (t/a First4care)
Nottinghamshire County Council,1111/1001,Children and Young People,CYP,Transport Related,CCA,11/08/2020,05-13653,3701.36,Martins Travel
Nottinghamshire County Council,1111/1001,Children and Young People,CYP,Transport Related,CCA,11/08/2020,05-13654,998.9,Wrights Coaches T/A Little Transpor
Nottinghamshire County Council,1111/1001,Children and Young People,CYP,Transport Related,CCA,11/08/2020,05-13655,"1,079.50",Ace Of Mansfield Ltd
Nottinghamshire County Council,1111/1001,Children and Young People,CYP,Transport Related,CCA,11/08/2020,05-13656,1213.8,Ng11 Cars
Nottinghamshire County Council,1111/1001,Children and Young People,CYP,Transport Related,CCA,11/08/2020,05-13657,1071,Shelleys Taxis Ltd
Nottinghamshire County Council,1111/1001,Children and Young People,CYP,Transport Related,CCA,11/08/2020,05-13658,707.2,Shelleys Taxis Ltd
Nottinghamshire County Council,1111/1001,Children and Young People,CYP,Transport Related,CCA,11/08/2020,05-13659,650.25,Shelleys Taxis Ltd
Nottinghamshire County Council,1111/1001,Children and Young People,CYP,Transport Related,CCA,11/08/2020,05-13661,1300,Shelleys Taxis Ltd
Nottinghamshire County Council,1111/1001,Children and Young People,CYP,Transport Related,CCA,11/08/2020,05-13662,926.5,Shelleys Taxis Ltd
Nottinghamshire County Council,1111/1001,Children and Young People,CYP,Transport Related,CCA,11/08/2020,05-13664,"2,437.56",F4Control Ltd (t/a First4care)
Nottinghamshire County Council,1111/1001,Children and Young People,CYP,Transport Related,CCA,11/08/2020,05-13665,1989,F4Control Ltd (t/a First4care)
Nottinghamshire County Council,1111/1001,Children and Young People,CYP,Transport Related,CCA,11/08/2020,05-13666,"3,075.12",F4Control Ltd (t/a First4care)
Nottinghamshire County Council,1111/1001,Children and Young People,CYP,Transport Related,CCA,11/08/2020,05-13667,"2,538.00",F4Control Ltd (t/a First4care)
Nottinghamshire County Council,1111/1001,Children and Young People,CYP,Transport Related,CCA,11/08/2020,05-13668,2158.38,F4Control Ltd (t/a First4care)
Nottinghamshire County Council,1111/1001,Children and Young People,CYP,Transport Related,CCA,11/08/2020,05-13669,2076.48,F4Control Ltd (t/a First4care)
Nottinghamshire County Council,1111/1001,Children and Young People,CYP,Transport Related,CCA,11/08/2020,05-13671,2337.12,F4Control Ltd (t/a First4care)
Nottinghamshire County Council,1111/1001,Children and Young People,CYP,Transport Related,CCA,11/08/2020,05-13673,1803.06,F4Control Ltd (t/a First4care)
Nottinghamshire County Council,1111/1001,Children and Young People,CYP,Transport Related,CCA,11/08/2020,05-13674,"2,655.54",F4Control Ltd (t/a First4care)
Nottinghamshire County Council,1111/1001,Children and Young People,CYP,Transport Related,CCA,11/08/2020,05-13675,"1,465.56",F4Control Ltd (t/a First4care)
Nottinghamshire County Council,1111/1001,Children and Young People,CYP,Transport Related,CCA,11/08/2020,05-13677,2682.56,BN Gibson Ltd
Nottinghamshire County Council,1111/1001,Children and Young People,CYP,Transport Related,CCA,11/08/2020,05-13678,"3,638.40",BN Gibson Ltd
Nottinghamshire County Council,1111/1001,Children and Young People,CYP,Transport Related,CCA,11/08/2020,05-13679,1687.25,BN Gibson Ltd
Nottinghamshire County Council,1111/1001,Children and Young People,CYP,Transport Related,CCA,11/08/2020,05-13680,"2,216.80",BN Gibson Ltd
Nottinghamshire County Council,1111/1001,Children and Young People,CYP,Transport Related,CCA,11/08/2020,05-13681,3340.08,BN Gibson Ltd
Nottinghamshire County Council,1111/1001,Children and Young People,CYP,Transport Related,CCA,11/08/2020,05-13682,2676.78,BN Gibson Ltd
Nottinghamshire County Council,1111/1001,Children and Young People,CYP,Transport Related,CCA,11/08/2020,05-13683,"2,925.90",BN Gibson Ltd
Nottinghamshire County Council,1111/1001,Children and Young People,CYP,Transport Related,CCA,11/08/2020,05-13684,1998.18,BN Gibson Ltd
Nottinghamshire County Council,1111/1001,Children and Young People,CYP,Transport Related,CCA,11/08/2020,05-13685,2045.88,BN Gibson Ltd
Nottinghamshire County Council,1111/1001,Children and Young People,CYP,Transport Related,CCA,11/08/2020,05-13686,"2,583.66",BN Gibson Ltd
Nottinghamshire County Council,1111/1001,Children and Young People,CYP,Transport Related,CCA,11/08/2020,05-13687,"3,235.44",BN Gibson Ltd
Nottinghamshire County Council,1111/1001,Children and Young People,CYP,Transport Related,CCA,11/08/2020,05-13688,"2,795.40",BN Gibson Ltd
Nottinghamshire County Council,1111/1001,Children and Young People,CYP,Transport Related,CCA,11/08/2020,05-13689,3739.5,BN Gibson Ltd
Nottinghamshire County Council,1111/1001,Children and Young People,CYP,Transport Related,CCA,11/08/2020,05-13690,"2,012.40",BN Gibson Ltd
Nottinghamshire County Council,1111/1001,Children and Young People,CYP,Transport Related,CCA,11/08/2020,05-13691,2798.52,BN Gibson Ltd
Nottinghamshire County Council,1111/1001,Children and Young People,CYP,Transport Related,CCA,11/08/2020,05-13692,"1,921.05",BN Gibson Ltd
Nottinghamshire County Council,1111/1001,Children and Young People,CYP,Transport Related,CCA,11/08/2020,05-13693,930.69,BN Gibson Ltd
Nottinghamshire County Council,1111/1001,Children and Young People,CYP,Transport Related,CCA,11/08/2020,05-13694,2169.54,BN Gibson Ltd
Nottinghamshire County Council,1111/1001,Children and Young People,CYP,Transport Related,CCA,11/08/2020,05-13695,2305.26,BN Gibson Ltd
Nottinghamshire County Council,1111/1001,Children and Young People,CYP,Transport Related,CCA,11/08/2020,05-13696,"2,305.26",BN Gibson Ltd
Nottinghamshire County Council,1111/1001,Children and Young People,CYP,Transport Related,CCA,11/08/2020,05-13697,2068.22,BN Gibson Ltd
Nottinghamshire County Council,1111/1001,Children and Young People,CYP,Transport Related,CCA,11/08/2020,05-13698,1885.81,BN Gibson Ltd
Nottinghamshire County Council,1111/1001,Children and Young People,CYP,Transport Related,CCA,11/08/2020,05-13699,1836.17,BN Gibson Ltd
Nottinghamshire County Council,1111/1001,Children and Young People,CYP,Transport Related,CCA,11/08/2020,05-13700,3379.68,BN Gibson Ltd
Nottinghamshire County Council,1111/1001,Children and Young People,CYP,Transport Related,CCA,11/08/2020,05-13701,2118.4,BN Gibson Ltd
Nottinghamshire County Council,1111/1001,Children and Young People,CYP,Transport Related,CCA,11/08/2020,05-13702,2597.22,BN Gibson Ltd
Nottinghamshire County Council,1111/1001,Children and Young People,CYP,Transport Related,CCA,11/08/2020,05-13703,2433.21,BN Gibson Ltd
Nottinghamshire County Council,1111/1001,Children and Young People,CYP,Transport Related,CCA,11/08/2020,05-13704,1372.15,BN Gibson Ltd
Nottinghamshire County Council,1111/1001,Children and Young People,CYP,Transport Related,CCA,11/08/2020,05-13705,"2,132.28",BN Gibson Ltd
Nottinghamshire County Council,1111/1001,Children and Young People,CYP,Transport Related,CCA,11/08/2020,05-13706,"1,442.09",BN Gibson Ltd
Nottinghamshire County Council,1111/1001,Children and Young People,CYP,Transport Related,CCA,11/08/2020,05-13707,2781.1,BN Gibson Ltd
Nottinghamshire County Council,1111/1001,Children and Young People,CYP,Transport Related,CCA,11/08/2020,05-13708,"2,272.34",BN Gibson Ltd
Nottinghamshire County Council,1111/1001,Children and Young People,CYP,Transport Related,CCA,11/08/2020,05-13710,2794.82,BN Gibson Ltd
Nottinghamshire County Council,1111/1001,Children and Young People,CYP,Transport Related,CCA,11/08/2020,05-13712,"2,115.49",BN Gibson Ltd
Nottinghamshire County Council,1111/1001,Children and Young People,CYP,Transport Related,CCA,11/08/2020,05-13713,"1,696.76",BN Gibson Ltd
Nottinghamshire County Council,1111/1001,Children and Young People,CYP,Transport Related,CCA,11/08/2020,05-13714,887.4,D G Private Hire Ltd
Nottinghamshire County Council,1111/1001,Children and Young People,CYP,Transport Related,CCA,11/08/2020,05-13715,918.00,D G Private Hire Ltd
Nottinghamshire County Council,1111/1001,Children and Young People,CYP,Transport Related,CCA,11/08/2020,05-13716,765,D G Private Hire Ltd
Nottinghamshire County Council,1111/1001,Children and Young People,CYP,Transport Related,CCA,11/08/2020,05-13718,578,Abacus Cars
Nottinghamshire County Council,1111/1001,Children and Young People,CYP,Transport Related,CCA,11/08/2020,05-13719,2210,Abacus Cars
Nottinghamshire County Council,1111/1001,Children and Young People,CYP,Transport Related,CCA,11/08/2020,05-13720,"3,547.80",Kettlewell Retford Ltd
Nottinghamshire County Council,1111/1001,Children and Young People,CYP,Transport Related,CCA,11/08/2020,05-13721,877.62,Kettlewell Retford Ltd
Nottinghamshire County Council,1111/1001,Children and Young People,CYP,Transport Related,CCA,11/08/2020,05-13723,1863.67,Wallis Coachways
Nottinghamshire County Council,1111/1001,Children and Young People,CYP,Transport Related,CCA,11/08/2020,05-13724,"1,108.80",Reliable Cars Ltd
Nottinghamshire County Council,1111/1001,Children and Young People,CYP,Transport Related,CCA,11/08/2020,05-13725,1237.6,Reliable Cars Ltd
Nottinghamshire County Council,1111/1001,Children and Young People,CYP,Transport Related,CCA,11/08/2020,05-13726,"1,331.00",Reliable Cars Ltd
Nottinghamshire County Council,1111/1001,Children and Young People,CYP,Transport Related,CCA,11/08/2020,05-13727,"1,445.00",Rushcliffe Travel Ltd
Nottinghamshire County Council,1111/1001,Children and Young People,CYP,Transport Related,CCA,11/08/2020,05-13728,3391.5,Rushcliffe Travel Ltd
Nottinghamshire County Council,1111/1001,Children and Young People,CYP,Transport Related,CCA,11/08/2020,05-13729,2505.88,Rushcliffe Travel Ltd
Nottinghamshire County Council,1111/1001,Children and Young People,CYP,Transport Related,CCA,11/08/2020,05-13730,"1,247.50",Rushcliffe Travel Ltd
Nottinghamshire County Council,1111/1001,Children and Young People,CYP,Transport Related,CCA,11/08/2020,05-13731,2882.86,Rushcliffe Travel Ltd
Nottinghamshire County Council,1111/1001,Children and Young People,CYP,Transport Related,CCA,11/08/2020,05-13732,1950.75,Rushcliffe Travel Ltd
Nottinghamshire County Council,1111/1001,Children and Young People,CYP,Transport Related,CCA,11/08/2020,05-13733,2691,Rushcliffe Travel Ltd
Nottinghamshire County Council,1111/1001,Children and Young People,CYP,Transport Related,CCA,11/08/2020,05-13734,2610,Rushcliffe Travel Ltd
Nottinghamshire County Council,1111/1001,Children and Young People,CYP,Transport Related,CCA,14/08/2020,05-13772,"1,560.60",Alert Cars Ltd
Nottinghamshire County Council,1111/1001,Children and Young People,CYP,Transport Related,CCA,14/08/2020,05-13775,"1,505.86",Southside Cars Ltd
Nottinghamshire County Council,1111/1001,Children and Young People,CYP,Transport Related,CCA,14/08/2020,05-13776,"1,502.80",Southside Cars Ltd
Nottinghamshire County Council,1111/1001,Children and Young People,CYP,Transport Related,CCA,14/08/2020,05-13777,"1,429.02",Southside Cars Ltd
Nottinghamshire County Council,1111/1001,Children and Young People,CYP,Transport Related,CCA,14/08/2020,05-13778,"2,387.00",Southside Cars Ltd
Nottinghamshire County Council,1111/1001,Children and Young People,CYP,Transport Related,CCA,14/08/2020,05-13779,635.8,Southside Cars Ltd
Nottinghamshire County Council,1111/1001,Children and Young People,CYP,Transport Related,CCA,14/08/2020,05-13780,1498.52,Southside Cars Ltd
Nottinghamshire County Council,1111/1001,Children and Young People,CYP,Transport Related,CCA,14/08/2020,05-13781,1603.26,Southside Cars Ltd
Nottinghamshire County Council,1111/1001,Children and Young People,CYP,Transport Related,CCA,14/08/2020,05-13782,2430,Southside Cars Ltd
Nottinghamshire County Council,1111/1001,Children and Young People,CYP,Transport Related,CCA,14/08/2020,05-13784,734.4,Southside Cars Ltd
Nottinghamshire County Council,1111/1001,Children and Young People,CYP,Transport Related,CCA,14/08/2020,05-13785,848.96,Southside Cars Ltd
Nottinghamshire County Council,1111/1001,Children and Young People,CYP,Transport Related,CCA,14/08/2020,05-13787,"2,153.34",Southside Cars Ltd
Nottinghamshire County Council,1111/1001,Children and Young People,CYP,Transport Related,CCA,14/08/2020,05-13790,884,Southside Cars Ltd
Nottinghamshire County Council,1111/1001,Children and Young People,CYP,Transport Related,CCA,14/08/2020,05-13791,768.00,Southside Cars Ltd
Nottinghamshire County Council,1111/1001,Children and Young People,CYP,Transport Related,CCA,14/08/2020,05-13792,841.32,Southside Cars Ltd
Nottinghamshire County Council,1111/1001,Children and Young People,CYP,Transport Related,CCA,14/08/2020,05-13794,1690.48,Southside Cars Ltd
Nottinghamshire County Council,1111/1001,Children and Young People,CYP,Transport Related,CCA,14/08/2020,05-13795,"1,713.56",Southside Cars Ltd
Nottinghamshire County Council,1111/1001,Children and Young People,CYP,Transport Related,CCA,14/08/2020,05-13796,1361.36,Southside Cars Ltd
Nottinghamshire County Council,1111/1001,Children and Young People,CYP,Transport Related,CCA,14/08/2020,05-13797,1530,Southside Cars Ltd
Nottinghamshire County Council,1111/1001,Children and Young People,CYP,Transport Related,CCA,14/08/2020,05-13798,1856,Southside Cars Ltd
Nottinghamshire County Council,1111/1001,Children and Young People,CYP,Transport Related,CCA,14/08/2020,05-13801,"3,204.00",Southside Cars Ltd
Nottinghamshire County Council,1111/1001,Children and Young People,CYP,Transport Related,CCA,14/08/2020,05-13803,1574.88,F4Control Ltd (t/a First4care)
Nottinghamshire County Council,1111/1001,Children and Young People,CYP,Transport Related,CCA,14/08/2020,05-13804,2227.5,F4Control Ltd (t/a First4care)
Nottinghamshire County Council,1111/1001,Children and Young People,CYP,Transport Related,CCA,14/08/2020,05-13805,"1,662.60",Galaxy Cabs Ltd
Nottinghamshire County Council,1111/1001,Children and Young People,CYP,Transport Related,CCA,14/08/2020,05-13807,989.40,Galaxy Cabs Ltd
Nottinghamshire County Council,1111/1001,Children and Young People,CYP,Transport Related,CCA,14/08/2020,05-13811,552.5,Elkingtons Park Garage
Nottinghamshire County Council,1111/1001,Children and Young People,CYP,Transport Related,CCA,14/08/2020,05-13812,1447.16,F4Control Ltd (t/a First4care)
Nottinghamshire County Council,1111/1001,Children and Young People,CYP,Transport Related,CCA,14/08/2020,05-13815,1409.2,F4Control Ltd (t/a First4care)
Nottinghamshire County Council,1111/1001,Children and Young People,CYP,Transport Related,CCA,14/08/2020,05-13816,2168.01,F4Control Ltd (t/a First4care)
Nottinghamshire County Council,1111/1001,Children and Young People,CYP,Transport Related,CCA,14/08/2020,05-13817,2263.14,F4Control Ltd (t/a First4care)
Nottinghamshire County Council,1111/1001,Children and Young People,CYP,Transport Related,CCA,14/08/2020,05-13818,"1,858.50",F4Control Ltd (t/a First4care)
Nottinghamshire County Council,1111/1001,Children and Young People,CYP,Transport Related,CCA,14/08/2020,05-13819,"1,831.58",F4Control Ltd (t/a First4care)
Nottinghamshire County Council,1111/1001,Children and Young People,CYP,Transport Related,CCA,14/08/2020,05-13820,"2,264.94",F4Control Ltd (t/a First4care)
Nottinghamshire County Council,1111/1001,Children and Young People,CYP,Transport Related,CCA,14/08/2020,05-13821,"1,405.90",F4Control Ltd (t/a First4care)
Nottinghamshire County Council,1111/1001,Children and Young People,CYP,Transport Related,CCA,14/08/2020,05-13822,2390.03,F4Control Ltd (t/a First4care)
Nottinghamshire County Council,1111/1001,Children and Young People,CYP,Transport Related,CCA,14/08/2020,05-13823,2567.12,F4Control Ltd (t/a First4care)
Nottinghamshire County Council,1111/1001,Children and Young People,CYP,Transport Related,CCA,14/08/2020,05-13824,2932.8,BN Gibson Ltd
Nottinghamshire County Council,1111/1001,Children and Young People,CYP,Transport Related,CCA,14/08/2020,05-13825,2529.94,BN Gibson Ltd
Nottinghamshire County Council,1111/1001,Children and Young People,CYP,Transport Related,CCA,14/08/2020,05-13826,2593.35,BN Gibson Ltd
Nottinghamshire County Council,1111/1001,Children and Young People,CYP,Transport Related,CCA,14/08/2020,05-13827,"1,914.20",BN Gibson Ltd
Nottinghamshire County Council,1111/1001,Children and Young People,CYP,Transport Related,CCA,14/08/2020,05-13828,3022.56,BN Gibson Ltd
Nottinghamshire County Council,1111/1001,Children and Young People,CYP,Transport Related,CCA,14/08/2020,05-13829,"2,845.00",BN Gibson Ltd
Nottinghamshire County Council,1111/1001,Children and Young People,CYP,Transport Related,CCA,14/08/2020,05-13830,4490.82,BN Gibson Ltd
Nottinghamshire County Council,1111/1001,Children and Young People,CYP,Transport Related,CCA,14/08/2020,05-13831,"2,939.22",BN Gibson Ltd
Nottinghamshire County Council,1111/1001,Children and Young People,CYP,Transport Related,CCA,14/08/2020,05-13832,"2,523.06",BN Gibson Ltd
Nottinghamshire County Council,1111/1001,Children and Young People,CYP,Transport Related,CCA,14/08/2020,05-13833,2919.42,BN Gibson Ltd
Nottinghamshire County Council,1111/1001,Children and Young People,CYP,Transport Related,CCA,14/08/2020,05-13834,2522.16,BN Gibson Ltd
Nottinghamshire County Council,1111/1001,Children and Young People,CYP,Transport Related,CCA,14/08/2020,05-13835,"2,095.60",BN Gibson Ltd
Nottinghamshire County Council,1111/1001,Children and Young People,CYP,Transport Related,CCA,14/08/2020,05-13842,"2,180.41",Abacus Cars
Nottinghamshire County Council,1111/1001,Children and Young People,CYP,Transport Related,CCA,14/08/2020,05-13845,"1,610.00",Abacus Cars
Nottinghamshire County Council,1111/1001,Children and Young People,CYP,Transport Related,CCA,14/08/2020,05-13846,793.38,Abacus Cars
Nottinghamshire County Council,1111/1001,Children and Young People,CYP,Transport Related,CCA,14/08/2020,05-13848,1105,Abacus Cars
Nottinghamshire County Council,1111/1001,Children and Young People,CYP,Transport Related,CCA,14/08/2020,05-13849,"1,430.00",Abacus Cars
Nottinghamshire County Council,1111/1001,Children and Young People,CYP,Transport Related,CCA,14/08/2020,05-13850,1530,Abacus Cars
Nottinghamshire County Council,1111/1001,Children and Young People,CYP,Transport Related,CCA,14/08/2020,05-13852,990,AOT Coaches Nottingham LLP
Nottinghamshire County Council,1111/1001,Children and Young People,CYP,Transport Related,CCA,14/08/2020,05-13853,"1,251.00",AOT Coaches Nottingham LLP
Nottinghamshire County Council,1111/1001,Children and Young People,CYP,Transport Related,CCA,14/08/2020,05-13855,"7,192.80",AOT Coaches Nottingham LLP
Nottinghamshire County Council,1111/1001,Children and Young People,CYP,Transport Related,CCA,14/08/2020,05-13856,2983.5,Gem Mini Travel Ltd
Nottinghamshire County Council,1111/1001,Children and Young People,CYP,Transport Related,CCA,14/08/2020,05-13857,"2,928.25",Gem Mini Travel Ltd
Nottinghamshire County Council,1111/1001,Children and Young People,CYP,Transport Related,CCA,14/08/2020,05-13858,2099.5,Gem Mini Travel Ltd
Nottinghamshire County Council,1111/1001,Children and Young People,CYP,Transport Related,CCA,14/08/2020,05-13859,2099.5,Gem Mini Travel Ltd
Nottinghamshire County Council,1111/1001,Children and Young People,CYP,Transport Related,CCA,14/08/2020,05-13860,"2,817.75",Gem Mini Travel Ltd
Nottinghamshire County Council,1111/1001,Children and Young People,CYP,Transport Related,CCA,14/08/2020,05-13861,8330,Gem Mini Travel Ltd
Nottinghamshire County Council,1111/1001,Children and Young People,CYP,Transport Related,CCA,14/08/2020,05-13865,"1,432.34",Marshalls Of Sutton On Trent Ltd
Nottinghamshire County Council,1111/1001,Children and Young People,CYP,Transport Related,CCA,14/08/2020,05-13869,"4,405.72",Stagecoach Services Ltd
Nottinghamshire County Council,1111/1001,Children and Young People,CYP,Transport Related,CCA,14/08/2020,05-13870,"5,404.30",Stagecoach Services Ltd
Nottinghamshire County Council,1111/1001,Children and Young People,CYP,Transport Related,CCA,14/08/2020,05-13871,"4,394.50",Stagecoach Services Ltd
Nottinghamshire County Council,1111/1001,Children and Young People,CYP,Transport Related,CCA,14/08/2020,05-13872,"3,422.10",Stagecoach Services Ltd
Nottinghamshire County Council,1111/1001,Children and Young People,CYP,Transport Related,CCA,14/08/2020,05-13873,2707.32,Stagecoach Services Ltd
Nottinghamshire County Council,1111/1001,Children and Young People,CYP,Transport Related,CCA,14/08/2020,05-13874,5030.3,Stagecoach Services Ltd
Nottinghamshire County Council,1111/1001,Children and Young People,CYP,Transport Related,CCA,14/08/2020,05-13876,4656.3,Stagecoach Services Ltd
Nottinghamshire County Council,1111/1001,Children and Young People,CYP,Transport Related,CCA,14/08/2020,05-13877,"4,656.30",Stagecoach Services Ltd
Nottinghamshire County Council,1111/1001,Children and Young People,CYP,Transport Related,CCA,14/08/2020,05-13878,3777.4,Stagecoach Services Ltd
Nottinghamshire County Council,1111/1001,Children and Young People,CYP,Transport Related,CCA,14/08/2020,05-13879,"5,404.30",Stagecoach Services Ltd
Nottinghamshire County Council,1111/1001,Children and Young People,CYP,Transport Related,CCA,14/08/2020,05-13880,3272.5,Stagecoach Services Ltd
Nottinghamshire County Council,1111/1001,Children and Young People,CYP,Transport Related,CCA,14/08/2020,05-13881,5329.5,Stagecoach Services Ltd
Nottinghamshire County Council,1111/1001,Children and Young People,CYP,Transport Related,CCA,14/08/2020,05-13882,4282.3,Stagecoach Services Ltd
Nottinghamshire County Council,1111/1001,Children and Young People,CYP,Transport Related,CCA,14/08/2020,05-13883,"4,394.50",Stagecoach Services Ltd
Nottinghamshire County Council,1111/1001,Children and Young People,CYP,Transport Related,CCA,14/08/2020,05-13884,4394.5,Stagecoach Services Ltd
Nottinghamshire County Council,1111/1001,Children and Young People,CYP,Transport Related,CCA,14/08/2020,05-13885,"3,604.68",Stagecoach Services Ltd
Nottinghamshire County Council,1111/1001,Children and Young People,CYP,Transport Related,CCA,14/08/2020,05-13887,"2,215.08",Stagecoach Services Ltd
Nottinghamshire County Council,1111/1001,Children and Young People,CYP,Transport Related,CCA,14/08/2020,05-13889,"3,809.70",Stagecoach Services Ltd
Nottinghamshire County Council,1111/1001,Children and Young People,CYP,Transport Related,CCA,14/08/2020,05-13890,3809.7,Stagecoach Services Ltd
Nottinghamshire County Council,1111/1001,Children and Young People,CYP,Transport Related,CCA,14/08/2020,05-13891,3090.6,Stagecoach Services Ltd
Nottinghamshire County Council,1111/1001,Children and Young People,CYP,Transport Related,CCA,14/08/2020,05-13892,2677.5,Stagecoach Services Ltd
Nottinghamshire County Council,1111/1001,Children and Young People,CYP,Transport Related,CCA,14/08/2020,05-13893,3503.7,Stagecoach Services Ltd
Nottinghamshire County Council,1111/1001,Children and Young People,CYP,Transport Related,CCA,14/08/2020,05-13895,"3,595.50",Stagecoach Services Ltd
Nottinghamshire County Council,1111/1001,Children and Young People,CYP,Transport Related,CCA,14/08/2020,05-13897,2030.04,Travel Wright Ltd
Nottinghamshire County Council,1111/1001,Children and Young People,CYP,Transport Related,CCA,14/08/2020,05-13898,969.80,Travel Wright Ltd
Nottinghamshire County Council,1111/1001,Children and Young People,CYP,Transport Related,CCA,14/08/2020,05-13899,508.8,Bassetlaw Action Centre
Nottinghamshire County Council,1111/1001,Children and Young People,CYP,Transport Related,CCA,14/08/2020,05-13900,"1,434.12",Bassetlaw Action Centre
Nottinghamshire County Council,1111/1001,Children and Young People,CYP,Transport Related,CCA,14/08/2020,05-13901,848.16,Bassetlaw Action Centre
Nottinghamshire County Council,1111/1001,Children and Young People,CYP,Transport Related,CCA,14/08/2020,05-13903,1861.5,Rushcliffe Travel Ltd
Nottinghamshire County Council,1111/1001,Children and Young People,CYP,Transport Related,CCA,14/08/2020,05-13904,"2,287.44",Rushcliffe Travel Ltd
Nottinghamshire County Council,1111/1001,Children and Young People,CYP,Transport Related,CCA,14/08/2020,05-13905,"4,740.50",Rushcliffe Travel Ltd
Nottinghamshire County Council,1111/1001,Children and Young People,CYP,Transport Related,CCA,14/08/2020,05-13906,2151,Rushcliffe Travel Ltd
Nottinghamshire County Council,1111/1001,Children and Young People,CYP,Transport Related,CCA,14/08/2020,05-13907,1431.04,Rushcliffe Travel Ltd
Nottinghamshire County Council,1111/1001,Children and Young People,CYP,Transport Related,CCA,14/08/2020,05-13908,1262.25,Rushcliffe Travel Ltd
Nottinghamshire County Council,1111/1001,Children and Young People,CYP,Transport Related,CCA,14/08/2020,05-13909,719.1,Cloud Cars Ltd
Nottinghamshire County Council,1111/1001,Children and Young People,CYP,Transport Related,CCA,14/08/2020,05-13910,799.00,Cloud Cars Ltd
Nottinghamshire County Council,1111/1001,Children and Young People,CYP,Transport Related,CCA,18/08/2020,05-14352,"1,866.48",Alpha Cars
Nottinghamshire County Council,1111/1001,Children and Young People,CYP,Transport Related,CCA,18/08/2020,05-14353,"1,363.57",Alpha Cars
Nottinghamshire County Council,1111/1001,Children and Young People,CYP,Transport Related,CCA,18/08/2020,05-14355,573.80,Alpha Cars
Nottinghamshire County Council,1111/1001,Children and Young People,CYP,Transport Related,CCA,18/08/2020,05-14357,802.36,Alpha Cars
Nottinghamshire County Council,1111/1001,Children and Young People,CYP,Transport Related,CCA,18/08/2020,05-14359,"1,092.00",Galaxy Cabs Ltd
Nottinghamshire County Council,1111/1001,Children and Young People,CYP,Transport Related,CCA,18/08/2020,05-14360,"1,909.19",Skills Motor Coaches Ltd
Nottinghamshire County Council,1111/1001,Children and Young People,CYP,Transport Related,CCA,18/08/2020,05-14361,"1,117.32",Skills Motor Coaches Ltd
Nottinghamshire County Council,1111/1001,Children and Young People,CYP,Transport Related,CCA,18/08/2020,05-14362,1538.5,Skills Motor Coaches Ltd
Nottinghamshire County Council,1111/1001,Children and Young People,CYP,Transport Related,CCA,18/08/2020,05-14363,2175.78,Abacus Cars
Nottinghamshire County Council,1111/1001,Children and Young People,CYP,Transport Related,CCA,18/08/2020,05-14366,"2,022.15",Stagecoach Services Ltd
Nottinghamshire County Council,1111/1001,Children and Young People,CYP,Transport Related,CCA,18/08/2020,05-14368,2536.4,Freeway Coaches Ltd
Nottinghamshire County Council,1111/1001,Children and Young People,CYP,Transport Related,CCA,18/08/2020,05-14369,2091.64,Ace Cars & Minibuses Ltd
Nottinghamshire County Council,1111/1001,Children and Young People,CYP,Transport Related,CCA,18/08/2020,05-14370,1625.28,Ace Cars & Minibuses Ltd
Nottinghamshire County Council,1111/1001,Children and Young People,CYP,Transport Related,CCA,18/08/2020,05-14371,812.64,Ace Cars & Minibuses Ltd
Nottinghamshire County Council,1111/1001,Children and Young People,CYP,Transport Related,CCA,18/08/2020,05-14372,1569.1,Ace Cars & Minibuses Ltd
Nottinghamshire County Council,1111/1001,Children and Young People,CYP,Transport Related,CCA,18/08/2020,05-14374,1377,Ideal Cars (Private Hire) Ltd
Nottinghamshire County Council,1111/1001,Children and Young People,CYP,Transport Related,CCA,18/08/2020,05-15349,1218.17,Southside Cars Ltd
Nottinghamshire County Council,1111/1001,Children and Young People,CYP,Transport Related,CCA,18/08/2020,05-15351,880.62,Southside Cars Ltd
Nottinghamshire County Council,1111/1001,Children and Young People,CYP,Transport Related,CCA,18/08/2020,05-15359,"1,749.30",Alpha Cars
Nottinghamshire County Council,1111/1001,Children and Young People,CYP,Transport Related,CCA,18/08/2020,05-15360,1528.8,Alpha Cars
Nottinghamshire County Council,1111/1001,Children and Young People,CYP,Transport Related,CCA,18/08/2020,05-15363,804.88,Abacus Cars
Nottinghamshire County Council,1111/1001,Children and Young People,CYP,Transport Related,CCA,18/08/2020,05-15364,1705.65,Abacus Cars
Nottinghamshire County Council,1111/1001,Children and Young People,CYP,Transport Related,CCA,18/08/2020,05-15367,780.30,Ideal Cars (Private Hire) Ltd
Nottinghamshire County Council,1111/1001,Children and Young People,CYP,Transport Related,CCA,18/08/2020,05-15368,576.30,Ideal Cars (Private Hire) Ltd
Nottinghamshire County Council,1111/1001,Children and Young People,CYP,Transport Related,CCA,18/08/2020,05-15369,"1,564.20",SM Travel Yorkshire Ltd
Nottinghamshire County Council,1111/1001,Children and Young People,CYP,Transport Related,CCA,18/08/2020,05-15372,2080.8,SM Travel Yorkshire Ltd
Nottinghamshire County Council,1111/1001,Children and Young People,CYP,Transport Related,CCA,18/08/2020,05-15374,3164.8,SM Travel Yorkshire Ltd
Nottinghamshire County Council,1111/1001,Children and Young People,CYP,Transport Related,CCA,18/08/2020,05-15375,1622.73,SM Travel Yorkshire Ltd
Nottinghamshire County Council,1111/1001,Children and Young People,CYP,Transport Related,CCA,18/08/2020,05-15376,949.62,SM Travel Yorkshire Ltd
Nottinghamshire County Council,1111/1001,Children and Young People,CYP,Transport Related,CCA,18/08/2020,05-15377,783.09,SM Travel Yorkshire Ltd
Nottinghamshire County Council,1111/1001,Children and Young People,CYP,Transport Related,CCA,18/08/2020,05-15378,"1,985.88",SM Travel Yorkshire Ltd
Nottinghamshire County Council,1111/1001,Children and Young People,CYP,Transport Related,CCA,18/08/2020,05-15379,"1,409.20",SM Travel Yorkshire Ltd
Nottinghamshire County Council,1111/1001,Children and Young People,CYP,Transport Related,CCA,18/08/2020,05-15380,"1,372.80",SM Travel Yorkshire Ltd
Nottinghamshire County Council,1111/1001,Children and Young People,CYP,Transport Related,CCA,18/08/2020,05-15381,1467.1,SM Travel Yorkshire Ltd
Nottinghamshire County Council,1111/1001,Children and Young People,CYP,Transport Related,CCA,19/08/2020,05-15468,1100.92,Nunns Taxis Ltd
Nottinghamshire County Council,1111/1001,Children and Young People,CYP,Transport Related,CCA,19/08/2020,05-15472,"1,195.50",Nunns Taxis Ltd
Nottinghamshire County Council,1111/1001,Children and Young People,CYP,Transport Related,CCA,21/08/2020,05-16007,645.48,Nunns Taxis Ltd
Nottinghamshire County Council,1111/1001,Children and Young People,CYP,Transport Related,CCA,24/08/2020,05-16022,1036.08,6 Five 2s
Nottinghamshire County Council,1111/1001,Children and Young People,CYP,Transport Related,CCA,24/08/2020,05-16025,714.00,Shelleys Taxis Ltd
Nottinghamshire County Council,1111/1001,Children and Young People,CYP,Transport Related,CCA,24/08/2020,05-16028,504,ADF Cars Ltd
Nottinghamshire County Council,1111/1001,Children and Young People,CYP,Transport Related,CCA,24/08/2020,05-16029,756,ADF Cars Ltd
Nottinghamshire County Council,1111/1001,Children and Young People,CYP,Transport Related,CCA,26/08/2020,05-16399,884.00,Shelleys Taxis Ltd
Nottinghamshire County Council,1111/1001,Children and Young People,CYP,Transport Related,CCA,26/08/2020,05-16402,4103.4,Stagecoach Services Ltd
Nottinghamshire County Council,1111/1001,Children and Young People,CYP,Transport Related,CCA,26/08/2020,05-16403,"4,420.00",Stagecoach Services Ltd
Nottinghamshire County Council,1111/1001,Children and Young People,CYP,Transport Related,CCA,26/08/2020,05-16404,4339.9,Stagecoach Services Ltd
Nottinghamshire County Council,1111/1001,Children and Young People,CYP,Transport Related,CCA,26/08/2020,05-16405,3532.75,Stagecoach Services Ltd
Nottinghamshire County Council,1111/1001,Children and Young People,CYP,Transport Related,CCA,26/08/2020,05-16406,3546.6,Stagecoach Services Ltd
Nottinghamshire County Council,1111/1001,Children and Young People,CYP,Transport Related,CCA,26/08/2020,05-16407,"4,419.50",Stagecoach Services Ltd
Nottinghamshire County Council,1111/1001,Children and Young People,CYP,Transport Related,CCA,26/08/2020,05-16408,"3,746.34",Nottingham Coaches
Nottinghamshire County Council,1111/1001,Children and Young People,CYP,Transport Related,CCA,26/08/2020,05-16410,765,Shiny Sky Ltd T/A Arrow Cars
Nottinghamshire County Council,1111/1001,Children and Young People,CYP,Transport Related,CCA,26/08/2020,05-16411,608.4,Shiny Sky Ltd T/A Arrow Cars
Nottinghamshire County Council,1111/1001,Children and Young People,CYP,Transport Related,CCA,26/08/2020,05-16412,1321.92,Shiny Sky Ltd T/A Arrow Cars
Nottinghamshire County Council,1111/1001,Children and Young People,CYP,Transport Related,CCA,26/08/2020,05-16414,855.4,Nunns Taxis Ltd
Nottinghamshire County Council,1111/1001,Children and Young People,CYP,Transport Related,CCA,26/08/2020,05-16415,1768,CT4N Ltd
Nottinghamshire County Council,1111/1001,Children and Young People,CYP,Transport Related,CCA,27/08/2020,05-14147,2055.05,Via East Midlands Ltd
Nottinghamshire County Council,1111/1001,Children and Young People,CYP,Transport Related,CCA,28/08/2020,05-16441,"1,323.00",CT4N Ltd
Nottinghamshire County Council,1111/1001,Children and Young People,CYP,Transport Related,CDA,06/08/2020,05-12053,503.37,6 Five 2s
Nottinghamshire County Council,1111/1001,Children and Young People,CYP,Transport Related,CDA,06/08/2020,05-12055,862.92,6 Five 2s
Nottinghamshire County Council,1111/1001,Children and Young People,CYP,Transport Related,CDA,06/08/2020,05-12056,572.39,6 Five 2s
Nottinghamshire County Council,1111/1001,Children and Young People,CYP,Transport Related,CDA,06/08/2020,05-12059,547.74,6 Five 2s
Nottinghamshire County Council,1111/1001,Children and Young People,CYP,Transport Related,CDA,06/08/2020,05-12068,1958.4,Ng11 Cars
Nottinghamshire County Council,1111/1001,Children and Young People,CYP,Transport Related,CDA,06/08/2020,05-12071,736.00,Ng11 Cars
Nottinghamshire County Council,1111/1001,Children and Young People,CYP,Transport Related,CDA,06/08/2020,05-12141,"1,595.01",Arrow Specialised Transport Ltd
Nottinghamshire County Council,1111/1001,Children and Young People,CYP,Transport Related,CDA,06/08/2020,05-12156,38.94,Arrow Specialised Transport Ltd
Nottinghamshire County Council,1111/1001,Children and Young People,CYP,Transport Related,CDA,06/08/2020,05-12186,2520,Nottingham Minibuses & Coaches
Nottinghamshire County Council,1111/1001,Children and Young People,CYP,Transport Related,CDA,06/08/2020,05-12187,2340,Nottingham Minibuses & Coaches
Nottinghamshire County Council,1111/1001,Children and Young People,CYP,Transport Related,CDA,06/08/2020,05-12188,"1,710.00",Nottingham Minibuses & Coaches
Nottinghamshire County Council,1111/1001,Children and Young People,CYP,Transport Related,CDA,06/08/2020,05-12189,"2,250.00",Nottingham Minibuses & Coaches
Nottinghamshire County Council,1111/1001,Children and Young People,CYP,Transport Related,CDA,06/08/2020,05-12190,1838.2,Nottingham Minibuses & Coaches
Nottinghamshire County Council,1111/1001,Children and Young People,CYP,Transport Related,CDA,06/08/2020,05-12191,"1,690.00",Nottingham Minibuses & Coaches
Nottinghamshire County Council,1111/1001,Children and Young People,CYP,Transport Related,CDA,06/08/2020,05-12194,1575,Tiger European Uk Ltd
Nottinghamshire County Council,1111/1001,Children and Young People,CYP,Transport Related,CDA,06/08/2020,05-12195,2655,Tiger European Uk Ltd
Nottinghamshire County Council,1111/1001,Children and Young People,CYP,Transport Related,CDA,06/08/2020,05-12216,801.12,Sean's Taxi Services
Nottinghamshire County Council,1111/1001,Children and Young People,CYP,Transport Related,CDA,06/08/2020,05-12243,"1,933.75",Bridges Transport Ltd
Nottinghamshire County Council,1111/1001,Children and Young People,CYP,Transport Related,CDA,06/08/2020,05-12271,4050,C W Moxon Ltd
Nottinghamshire County Council,1111/1001,Children and Young People,CYP,Transport Related,CDA,06/08/2020,05-12272,"1,093.50",C W Moxon Ltd
Nottinghamshire County Council,1111/1001,Children and Young People,CYP,Transport Related,CDA,07/08/2020,05-12294,642.60,Taxicover Uk Ltd
Nottinghamshire County Council,1111/1001,Children and Young People,CYP,Transport Related,CDA,07/08/2020,05-12317,655.20,200 Cars Ltd
Nottinghamshire County Council,1111/1001,Children and Young People,CYP,Transport Related,CDA,07/08/2020,05-12331,688.50,Alpha Cars
Nottinghamshire County Council,1111/1001,Children and Young People,CYP,Transport Related,CDA,07/08/2020,05-12332,535.50,Alpha Cars
Nottinghamshire County Council,1111/1001,Children and Young People,CYP,Transport Related,CDA,07/08/2020,05-12348,1331.4,Galaxy Cabs Ltd
Nottinghamshire County Council,1111/1001,Children and Young People,CYP,Transport Related,CDA,07/08/2020,05-12362,"1,834.56",Marshalls Of Sutton On Trent Ltd
Nottinghamshire County Council,1111/1001,Children and Young People,CYP,Transport Related,CDA,07/08/2020,05-12388,218.76,Millennium Travel (Mansfield) Ltd
Nottinghamshire County Council,1111/1001,Children and Young People,CYP,Transport Related,CDA,07/08/2020,05-12443,"10,011.60",C W Moxon Ltd
Nottinghamshire County Council,1111/1001,Children and Young People,CYP,Transport Related,CDA,11/08/2020,05-13663,625.6,Shelleys Taxis Ltd
Nottinghamshire County Council,1111/1001,Children and Young People,CYP,Transport Related,CDA,11/08/2020,05-13675,366.39,F4Control Ltd (t/a First4care)
Nottinghamshire County Council,1111/1001,Children and Young People,CYP,Transport Related,CDA,11/08/2020,05-13717,"7,200.00",Abacus Cars
Nottinghamshire County Council,1111/1001,Children and Young People,CYP,Transport Related,CDA,11/08/2020,05-13722,1557.92,Paul S Winson Coaches
Nottinghamshire County Council,1111/1001,Children and Young People,CYP,Transport Related,CDA,14/08/2020,05-13773,2199.96,Southside Cars Ltd
Nottinghamshire County Council,1111/1001,Children and Young People,CYP,Transport Related,CDA,14/08/2020,05-13789,1400,Southside Cars Ltd
Nottinghamshire County Council,1111/1001,Children and Young People,CYP,Transport Related,CDA,14/08/2020,05-13805,554.2,Galaxy Cabs Ltd
Nottinghamshire County Council,1111/1001,Children and Young People,CYP,Transport Related,CDA,14/08/2020,05-13808,560,Galaxy Cabs Ltd
Nottinghamshire County Council,1111/1001,Children and Young People,CYP,Transport Related,CDA,14/08/2020,05-13810,"2,508.00",Shelleys Taxis Ltd
Nottinghamshire County Council,1111/1001,Children and Young People,CYP,Transport Related,CDA,14/08/2020,05-13838,673.20,Abacus Cars
Nottinghamshire County Council,1111/1001,Children and Young People,CYP,Transport Related,CDA,14/08/2020,05-13842,4359.49,Abacus Cars
Nottinghamshire County Council,1111/1001,Children and Young People,CYP,Transport Related,CDA,14/08/2020,05-13851,1838.2,Abacus Cars
Nottinghamshire County Council,1111/1001,Children and Young People,CYP,Transport Related,CDA,14/08/2020,05-13854,"3,247.20",AOT Coaches Nottingham LLP
Nottinghamshire County Council,1111/1001,Children and Young People,CYP,Transport Related,CDA,14/08/2020,05-13866,1780.2,Nottingham Minibuses & Coaches
Nottinghamshire County Council,1111/1001,Children and Young People,CYP,Transport Related,CDA,14/08/2020,05-13867,"2,332.20",Nottingham Minibuses & Coaches
Nottinghamshire County Council,1111/1001,Children and Young People,CYP,Transport Related,CDA,14/08/2020,05-13868,10801.6,Nottingham Minibuses & Coaches
Nottinghamshire County Council,1111/1001,Children and Young People,CYP,Transport Related,CDA,18/08/2020,05-14354,650.3,Alpha Cars
Nottinghamshire County Council,1111/1001,Children and Young People,CYP,Transport Related,CDA,18/08/2020,05-14367,986.85,P & P Taxis Ltd
Nottinghamshire County Council,1111/1001,Children and Young People,CYP,Transport Related,CDA,18/08/2020,05-14375,"1,208.70",Ideal Cars (Private Hire) Ltd
Nottinghamshire County Council,1111/1001,Children and Young People,CYP,Transport Related,CDA,18/08/2020,05-15348,734,Southside Cars Ltd
Nottinghamshire County Council,1111/1001,Children and Young People,CYP,Transport Related,CDA,18/08/2020,05-15353,"4,032.00",Johnson Bros Tours Ltd
Nottinghamshire County Council,1111/1001,Children and Young People,CYP,Transport Related,CDA,18/08/2020,05-15354,2066.4,Johnson Bros Tours Ltd
Nottinghamshire County Council,1111/1001,Children and Young People,CYP,Transport Related,CDA,18/08/2020,05-15355,"1,710.00",Johnson Bros Tours Ltd
Nottinghamshire County Council,1111/1001,Children and Young People,CYP,Transport Related,CDA,18/08/2020,05-15356,1792,Johnson Bros Tours Ltd
Nottinghamshire County Council,1111/1001,Children and Young People,CYP,Transport Related,CDA,18/08/2020,05-15357,"3,380.00",Johnson Bros Tours Ltd
Nottinghamshire County Council,1111/1001,Children and Young People,CYP,Transport Related,CDA,18/08/2020,05-15358,3380,Johnson Bros Tours Ltd
Nottinghamshire County Council,1111/1001,Children and Young People,CYP,Transport Related,CDA,18/08/2020,05-15370,835.9,SM Travel Yorkshire Ltd
Nottinghamshire County Council,1111/1001,Children and Young People,CYP,Transport Related,CDA,18/08/2020,05-15371,938.34,SM Travel Yorkshire Ltd
Nottinghamshire County Council,1111/1001,Children and Young People,CYP,Transport Related,CDA,18/08/2020,05-15373,550.48,SM Travel Yorkshire Ltd
Nottinghamshire County Council,1111/1001,Children and Young People,CYP,Transport Related,CDA,19/08/2020,05-15468,"2,201.15",Nunns Taxis Ltd
Nottinghamshire County Council,1111/1001,Children and Young People,CYP,Transport Related,CDA,19/08/2020,05-15470,"1,957.68",Nunns Taxis Ltd
Nottinghamshire County Council,1111/1001,Children and Young People,CYP,Transport Related,CDA,19/08/2020,05-15471,1275.3,Nunns Taxis Ltd
Nottinghamshire County Council,1111/1001,Children and Young People,CYP,Transport Related,CDA,19/08/2020,05-15473,605.88,Nunns Taxis Ltd
Nottinghamshire County Council,1111/1001,Children and Young People,CYP,Transport Related,CDA,21/08/2020,05-16006,535.5,6 Five 2s
Nottinghamshire County Council,1111/1001,Children and Young People,CYP,Transport Related,CDA,26/08/2020,05-16397,648.00,200 Cars Ltd
Nottinghamshire County Council,1111/1001,Children and Young People,CYP,Transport Related,CDA,26/08/2020,05-16401,10098,Silverdale Tours Nottm Ltd
Nottinghamshire County Council,1111/1001,Children and Young People,CYP,Transport Related,CDA,26/08/2020,05-16416,1122.17,SM Travel Yorkshire Ltd
Nottinghamshire County Council,1111/1001,Children and Young People,CYP,Transport Related,CDA,26/08/2020,05-16430,"1,524.34",Kent County Council (HO)
Nottinghamshire County Council,1111/1001,Children and Young People,CYP,Transport Related,CDA,28/08/2020,05-16440,2250,C W Moxon Ltd
Nottinghamshire County Council,1111/1001,Children and Young People,CYP,Transport Related,CEA,03/08/2020,05-10028,"1,446.68",Reed Employment Plc
Nottinghamshire County Council,1111/1001,Children and Young People,CYP,Transport Related,CEA,10/08/2020,05-11872,2571.28,Reed Employment Plc
Nottinghamshire County Council,1111/1001,Children and Young People,CYP,Transport Related,CEA,17/08/2020,05-13753,1697.17,Reed Employment Plc
Nottinghamshire County Council,1111/1001,Children and Young People,CYP,Transport Related,CEA,24/08/2020,05-16010,"1,838.53",Reed Employment Plc
Nottinghamshire County Council,1111/1001,Children and Young People,CYP,Supplies & Services,DAA,21/08/2020,05-18805,2995,Elklan Training Ltd
Nottinghamshire County Council,1111/1001,Children and Young People,CYP,Supplies & Services,DBA,05/08/2020,05-11863,284.01,M Maloney Country Butchers & B Ltd
Nottinghamshire County Council,1111/1001,Children and Young People,CYP,Supplies & Services,DBA,07/08/2020,05-12281,"1,627.63",John Palin (Wholesale) Ltd
Nottinghamshire County Council,1111/1001,Children and Young People,CYP,Supplies & Services,DBA,14/08/2020,05-13916,156.55,Millside Barrowcliffe Ltd
Nottinghamshire County Council,1111/1001,Children and Young People,CYP,Supplies & Services,DBA,14/08/2020,05-14138,349.47,M Maloney Country Butchers & B Ltd
Nottinghamshire County Council,1111/1001,Children and Young People,CYP,Supplies & Services,DBA,14/08/2020,05-14141,336.57,M Maloney Country Butchers & B Ltd
Nottinghamshire County Council,1111/1001,Children and Young People,CYP,Supplies & Services,DBA,14/08/2020,05-14144,346.70,M Maloney Country Butchers & B Ltd
Nottinghamshire County Council,1111/1001,Children and Young People,CYP,Supplies & Services,DBA,26/08/2020,05-16417,319.30,M Maloney Country Butchers & B Ltd
Nottinghamshire County Council,1111/1001,Children and Young People,CYP,Supplies & Services,DEA,03/08/2020,05-18578,642.30,[Redacted]
Nottinghamshire County Council,1111/1001,Children and Young People,CYP,Supplies & Services,DEA,04/08/2020,05-18624,1430,[Redacted]
Nottinghamshire County Council,1111/1001,Children and Young People,CYP,Supplies & Services,DEA,04/08/2020,05-18627,600.00,TAAFA Ltd Trauma & Attachment First
Nottinghamshire County Council,1111/1001,Children and Young People,CYP,Supplies & Services,DEA,05/08/2020,05-18604,1463,Rob Collins Education
Nottinghamshire County Council,1111/1001,Children and Young People,CYP,Supplies & Services,DEA,05/08/2020,05-18655,3125,Adoption Plus Ltd
Nottinghamshire County Council,1111/1001,Children and Young People,CYP,Supplies & Services,DEA,05/08/2020,05-18661,990.00,[Redacted]
Nottinghamshire County Council,1111/1001,Children and Young People,CYP,Supplies & Services,DEA,05/08/2020,05-18662,510,Lotus Therapy Ltd
Nottinghamshire County Council,1111/1001,Children and Young People,CYP,Supplies & Services,DEA,06/08/2020,05-18681,"1,100.00",APW Consultancy Service Ltd
Nottinghamshire County Council,1111/1001,Children and Young People,CYP,Supplies & Services,DEA,07/08/2020,05-18717,"3,036.00",E Learning Team Ltd
Nottinghamshire County Council,1111/1001,Children and Young People,CYP,Supplies & Services,DEA,10/08/2020,05-18743,1824,ARC Property Services Partnership L
Nottinghamshire County Council,1111/1001,Children and Young People,CYP,Supplies & Services,DEA,10/08/2020,05-18762,540.00,Lotus Therapy Ltd
Nottinghamshire County Council,1111/1001,Children and Young People,CYP,Supplies & Services,DEA,11/08/2020,05-18774,"1,760.00",Sally Eagle Ltd
Nottinghamshire County Council,1111/1001,Children and Young People,CYP,Supplies & Services,DEA,12/08/2020,05-18849,830.00,Lotus Therapy Ltd
Nottinghamshire County Council,1111/1001,Children and Young People,CYP,Supplies & Services,DEA,12/08/2020,05-18855,750,Catharsis - Creative Arts Therapy
Nottinghamshire County Council,1111/1001,Children and Young People,CYP,Supplies & Services,DEA,12/08/2020,05-18858,580,Lotus Therapy Ltd
Nottinghamshire County Council,1111/1001,Children and Young People,CYP,Supplies & Services,DEA,12/08/2020,05-18859,550,Lotus Therapy Ltd
Nottinghamshire County Council,1111/1001,Children and Young People,CYP,Supplies & Services,DEA,12/08/2020,05-18863,580.00,Lotus Therapy Ltd
Nottinghamshire County Council,1111/1001,Children and Young People,CYP,Supplies & Services,DEA,14/08/2020,05-18910,561.92,Prepaid Financial Services Ltd
Nottinghamshire County Council,1111/1001,Children and Young People,CYP,Supplies & Services,DEA,14/08/2020,05-18911,520,Psychological Insights Ltd
Nottinghamshire County Council,1111/1001,Children and Young People,CYP,Supplies & Services,DEA,17/08/2020,05-18890,812.00,Browne Jacobson LLP
Nottinghamshire County Council,1111/1001,Children and Young People,CYP,Supplies & Services,DEA,17/08/2020,05-18952,1120,Adoption Matters (northwest)
Nottinghamshire County Council,1111/1001,Children and Young People,CYP,Supplies & Services,DEA,17/08/2020,05-18953,600,[Redacted]
Nottinghamshire County Council,1111/1001,Children and Young People,CYP,Supplies & Services,DEA,19/08/2020,05-15386,6850.34,Phs Group Plc
Nottinghamshire County Council,1111/1001,Children and Young People,CYP,Supplies & Services,DEA,19/08/2020,05-18763,944.64,[Redacted]
Nottinghamshire County Council,1111/1001,Children and Young People,CYP,Supplies & Services,DEA,19/08/2020,05-18935,780,P McAleese Ltd
Nottinghamshire County Council,1111/1001,Children and Young People,CYP,Supplies & Services,DEA,19/08/2020,05-18976,586.5,C Brewer T/A Imagine Arts Therapy
Nottinghamshire County Council,1111/1001,Children and Young People,CYP,Supplies & Services,DEA,19/08/2020,05-18977,1785,Childrens Sensory Therapy Ltd
Nottinghamshire County Council,1111/1001,Children and Young People,CYP,Supplies & Services,DEA,19/08/2020,05-18978,1785,Childrens Sensory Therapy Ltd
Nottinghamshire County Council,1111/1001,Children and Young People,CYP,Supplies & Services,DEA,19/08/2020,05-18997,2240,Childrens Sensory Therapy Ltd
Nottinghamshire County Council,1111/1001,Children and Young People,CYP,Supplies & Services,DEA,21/08/2020,05-19022,561.92,Prepaid Financial Services Ltd
Nottinghamshire County Council,1111/1001,Children and Young People,CYP,Supplies & Services,DEA,21/08/2020,05-19023,552,C Brewer T/A Imagine Arts Therapy
Nottinghamshire County Council,1111/1001,Children and Young People,CYP,Supplies & Services,DEA,24/08/2020,05-15393,1309.2,Phs Group Plc
Nottinghamshire County Council,1111/1001,Children and Young People,CYP,Supplies & Services,DEA,24/08/2020,05-18617,500,Bright Light Therapy
Nottinghamshire County Council,1111/1001,Children and Young People,CYP,Supplies & Services,DEA,24/08/2020,05-18632,1910,Jennifer Podd Ltd
Nottinghamshire County Council,1111/1001,Children and Young People,CYP,Supplies & Services,DEA,24/08/2020,05-18638,7272.5,The Childrens Society
Nottinghamshire County Council,1111/1001,Children and Young People,CYP,Supplies & Services,DEA,24/08/2020,05-18654,686.33,Family Focused Ltd
Nottinghamshire County Council,1111/1001,Children and Young People,CYP,Supplies & Services,DEA,24/08/2020,05-18659,"1,812.50",Bright Light Therapy
Nottinghamshire County Council,1111/1001,Children and Young People,CYP,Supplies & Services,DEA,24/08/2020,05-18730,"2,860.00",Ann Lugering Education Services
Nottinghamshire County Council,1111/1001,Children and Young People,CYP,Supplies & Services,DEA,24/08/2020,05-18750,3264,Geldards Llp
Nottinghamshire County Council,1111/1001,Children and Young People,CYP,Supplies & Services,DEA,24/08/2020,05-18765,875,[Redacted]
Nottinghamshire County Council,1111/1001,Children and Young People,CYP,Supplies & Services,DEA,24/08/2020,05-18843,1650,Family Focused Ltd
Nottinghamshire County Council,1111/1001,Children and Young People,CYP,Supplies & Services,DEA,24/08/2020,05-18848,"1,012.50",Family Focused Ltd
Nottinghamshire County Council,1111/1001,Children and Young People,CYP,Supplies & Services,DEA,24/08/2020,05-18857,650.00,Family Focused Ltd
Nottinghamshire County Council,1111/1001,Children and Young People,CYP,Supplies & Services,DEA,24/08/2020,05-18861,670.00,C Wright (Child & Adolescent Psycho
Nottinghamshire County Council,1111/1001,Children and Young People,CYP,Supplies & Services,DEA,24/08/2020,05-18957,520.00,Synchrony Psychology Ltd
Nottinghamshire County Council,1111/1001,Children and Young People,CYP,Supplies & Services,DEA,24/08/2020,05-19010,650,Synchrony Psychology Ltd
Nottinghamshire County Council,1111/1001,Children and Young People,CYP,Supplies & Services,DEA,24/08/2020,05-19024,600,Synchrony Psychology Ltd
Nottinghamshire County Council,1111/1001,Children and Young People,CYP,Supplies & Services,DEA,24/08/2020,05-19025,720.00,Synchrony Psychology Ltd
Nottinghamshire County Council,1111/1001,Children and Young People,CYP,Supplies & Services,DFA,20/08/2020,05-18663,"5,062.23",Homes 2 Inspire Ltd
Nottinghamshire County Council,1111/1001,Children and Young People,CYP,Supplies & Services,DFA,20/08/2020,05-18703,768.04,Teachers 2 Parents Ltd
Nottinghamshire County Council,1111/1001,Children and Young People,CYP,Supplies & Services,DGA,10/08/2020,05-13369,809.1,[Redacted]
Nottinghamshire County Council,1111/1001,Children and Young People,CYP,Supplies & Services,DHA,13/08/2020,05-13767,"10,730.00",Countrywide Residential Lettings Lt
Nottinghamshire County Council,1111/1001,Children and Young People,CYP,Supplies & Services,DKA,05/08/2020,05-11882,700,Norman Galloway Ltd
Nottinghamshire County Council,1111/1001,Children and Young People,CYP,Supplies & Services,DKA,05/08/2020,05-11883,650,[Redacted]
Nottinghamshire County Council,1111/1001,Children and Young People,CYP,Supplies & Services,DKA,05/08/2020,05-11884,7340,Student Lodge Lettings Company Ltd
Nottinghamshire County Council,1111/1001,Children and Young People,CYP,Supplies & Services,DKA,05/08/2020,05-11885,500.00,Skyline Child Care
Nottinghamshire County Council,1111/1001,Children and Young People,CYP,Supplies & Services,DKA,07/08/2020,05-12397,"9,499.00",John Clifford Primary School
Nottinghamshire County Council,1111/1001,Children and Young People,CYP,Supplies & Services,DKA,12/08/2020,05-13735,"1,175.00",Norman Galloway Ltd
Nottinghamshire County Council,1111/1001,Children and Young People,CYP,Supplies & Services,DKA,19/08/2020,05-15389,700.00,Norman Galloway Ltd
Nottinghamshire County Council,1111/1001,Children and Young People,CYP,Supplies & Services,DKA,19/08/2020,05-15390,514.39,Student Lodge Lettings Company Ltd
Nottinghamshire County Council,1111/1001,Children and Young People,CYP,Supplies & Services,DKA,19/08/2020,05-15391,515,Mansfield Property Services LtdT/A
Nottinghamshire County Council,1111/1001,Children and Young People,CYP,Supplies & Services,DKA,26/08/2020,05-15474,"1,342.65",Broxtowe Borough Council
Nottinghamshire County Council,1111/1001,Children and Young People,CYP,Supplies & Services,DKA,26/08/2020,05-16428,697.96,ADG Management
Nottinghamshire County Council,1111/1001,Children and Young People,CYP,Supplies & Services,DKA,27/08/2020,05-14147,619.86,Via East Midlands Ltd
Nottinghamshire County Council,1111/1001,Children and Young People,CYP,Third Party Payments,EBA,03/08/2020,05-18556,12714,Lincolnshire County Council
Nottinghamshire County Council,1111/1001,Children and Young People,CYP,Third Party Payments,EBA,03/08/2020,05-18557,6357,Lincolnshire County Council
Nottinghamshire County Council,1111/1001,Children and Young People,CYP,Third Party Payments,EBA,03/08/2020,05-18574,1038,Swinderby All Saints C of E Primary
Nottinghamshire County Council,1111/1001,Children and Young People,CYP,Third Party Payments,EBA,26/08/2020,05-16420,"20,901.64",Stanton Vale School
Nottinghamshire County Council,1111/1001,Children and Young People,CYP,Third Party Payments,EDA,03/08/2020,05-10022,6752,Outwood Academy - Valley
Nottinghamshire County Council,1111/1001,Children and Young People,CYP,Third Party Payments,EDA,03/08/2020,05-10023,3376,South Wolds Academy & Sixth Form
Nottinghamshire County Council,1111/1001,Children and Young People,CYP,Third Party Payments,EDA,03/08/2020,05-10024,"44,154.00",South Wolds Academy & Sixth Form
Nottinghamshire County Council,1111/1001,Children and Young People,CYP,Third Party Payments,EDA,03/08/2020,05-18558,"5,654.00",Sir William Robertson Academy
Nottinghamshire County Council,1111/1001,Children and Young People,CYP,Third Party Payments,EDA,10/08/2020,05-13379,173509,Outwood Academy - Valley
Nottinghamshire County Council,1111/1001,Children and Young People,CYP,Third Party Payments,EDA,11/08/2020,05-18623,6874.17,Whaley Thorns Primary Academy
Nottinghamshire County Council,1111/1001,Children and Young People,CYP,Third Party Payments,EDA,20/08/2020,05-10039,"8,367.66",Rushcliffe School (Spencer Academie
Nottinghamshire County Council,1111/1001,Children and Young People,CYP,Third Party Payments,EDA,20/08/2020,05-10040,"109,686.76",Rushcliffe School (Spencer Academie
Nottinghamshire County Council,1111/1001,Children and Young People,CYP,Third Party Payments,EDA,25/08/2020,05-15402,4230,Leverton C Of E Academy
Nottinghamshire County Council,1111/1001,Children and Young People,CYP,Third Party Payments,EFA,04/08/2020,05-18634,873.33,Nottingham College
Nottinghamshire County Council,1111/1001,Children and Young People,CYP,Third Party Payments,EFA,07/08/2020,05-18698,"4,500.00",Stone Soup Academy
Nottinghamshire County Council,1111/1001,Children and Young People,CYP,Third Party Payments,EFA,07/08/2020,05-18701,6790.4,A P E Ltd (Alternative Programme Ed
Nottinghamshire County Council,1111/1001,Children and Young People,CYP,Third Party Payments,EFA,10/08/2020,05-18728,"1,057.87",Acacia Hall (Kisimul)
Nottinghamshire County Council,1111/1001,Children and Young People,CYP,Third Party Payments,EFA,10/08/2020,05-18729,"7,934.05",Acacia Hall (Kisimul)
Nottinghamshire County Council,1111/1001,Children and Young People,CYP,Third Party Payments,EFA,10/08/2020,05-18767,"7,934.05",Acacia Hall (Kisimul)
Nottinghamshire County Council,1111/1001,Children and Young People,CYP,Third Party Payments,EFA,12/08/2020,05-18766,"2,820.00",Prime8 Education
Nottinghamshire County Council,1111/1001,Children and Young People,CYP,Third Party Payments,EFA,12/08/2020,05-18842,2025.4,TBAC Consultants Ltd
Nottinghamshire County Council,1111/1001,Children and Young People,CYP,Third Party Payments,EFA,13/08/2020,05-18866,1750,Baby T Workshops Ltd
Nottinghamshire County Council,1111/1001,Children and Young People,CYP,Third Party Payments,EFA,14/08/2020,05-18907,24490.5,First Class Tailored Solutions Ltd
Nottinghamshire County Council,1111/1001,Children and Young People,CYP,Third Party Payments,EFA,19/08/2020,05-19007,6258,Prime8 Education
Nottinghamshire County Council,1111/1001,Children and Young People,CYP,Third Party Payments,EFA,20/08/2020,05-18950,729.17,V M Smith T/A COTAS
Nottinghamshire County Council,1111/1001,Children and Young People,CYP,Third Party Payments,EFA,20/08/2020,05-19016,14571.93,National Autistic Society
Nottinghamshire County Council,1111/1001,Children and Young People,CYP,Third Party Payments,EFA,24/08/2020,05-18682,6790.4,FUEL (First Universal Enterprises L
Nottinghamshire County Council,1111/1001,Children and Young People,CYP,Third Party Payments,EFA,24/08/2020,05-19020,"32,654.44",Real Education Ltd
Nottinghamshire County Council,1111/1001,Children and Young People,CYP,Third Party Payments,EFA,24/08/2020,05-19021,"1,509.00",Real Education Ltd
Nottinghamshire County Council,1111/1001,Children and Young People,CYP,Third Party Payments,EGA,03/08/2020,05-18563,"1,529.03",Nottm Community Housing Assoc
Nottinghamshire County Council,1111/1001,Children and Young People,CYP,Third Party Payments,EGA,03/08/2020,05-18566,3192.75,AMG Consultancy Services Ltd
Nottinghamshire County Council,1111/1001,Children and Young People,CYP,Third Party Payments,EGA,03/08/2020,05-18567,3192.75,AMG Consultancy Services Ltd
Nottinghamshire County Council,1111/1001,Children and Young People,CYP,Third Party Payments,EGA,03/08/2020,05-18568,3192.75,AMG Consultancy Services Ltd
Nottinghamshire County Council,1111/1001,Children and Young People,CYP,Third Party Payments,EGA,03/08/2020,05-18589,4788,Channels & Choices Fostering Ltd
Nottinghamshire County Council,1111/1001,Children and Young People,CYP,Third Party Payments,EGA,03/08/2020,05-18590,30557.14,Metropolitan Care Solution Ltd (A&M
Nottinghamshire County Council,1111/1001,Children and Young People,CYP,Third Party Payments,EGA,03/08/2020,05-18592,"2,991.30",Key2 Futures Ltd
Nottinghamshire County Council,1111/1001,Children and Young People,CYP,Third Party Payments,EGA,03/08/2020,05-18593,"2,991.30",Key2 Futures Ltd
Nottinghamshire County Council,1111/1001,Children and Young People,CYP,Third Party Payments,EGA,03/08/2020,05-18594,44708.5,By The Bridge Ltd
Nottinghamshire County Council,1111/1001,Children and Young People,CYP,Third Party Payments,EGA,03/08/2020,05-18595,"49,695.44",By The Bridge Ltd
Nottinghamshire County Council,1111/1001,Children and Young People,CYP,Third Party Payments,EGA,03/08/2020,05-18610,"1,128.58",Cambian Childcare Ltd
Nottinghamshire County Council,1111/1001,Children and Young People,CYP,Third Party Payments,EGA,03/08/2020,05-18611,1128.58,Cambian Childcare Ltd
Nottinghamshire County Council,1111/1001,Children and Young People,CYP,Third Party Payments,EGA,05/08/2020,05-18647,2671.58,Fostering Dimensions Ltd
Nottinghamshire County Council,1111/1001,Children and Young People,CYP,Third Party Payments,EGA,05/08/2020,05-18649,"2,671.58",Fostering Dimensions Ltd
Nottinghamshire County Council,1111/1001,Children and Young People,CYP,Third Party Payments,EGA,05/08/2020,05-18653,95437.84,Castle Homes Care Ltd
Nottinghamshire County Council,1111/1001,Children and Young People,CYP,Third Party Payments,EGA,10/08/2020,05-18768,"16,828.66",Abbey Green Therapeutic Childrens S
Nottinghamshire County Council,1111/1001,Children and Young People,CYP,Third Party Payments,EGA,11/08/2020,05-18813,45497.78,Team Fostering
Nottinghamshire County Council,1111/1001,Children and Young People,CYP,Third Party Payments,EGA,11/08/2020,05-18814,"45,497.78",Team Fostering
Nottinghamshire County Council,1111/1001,Children and Young People,CYP,Third Party Payments,EGA,11/08/2020,05-18815,45497.78,Team Fostering
Nottinghamshire County Council,1111/1001,Children and Young People,CYP,Third Party Payments,EGA,11/08/2020,05-18821,"3,576.11",Hope Fostering Services Ltd
Nottinghamshire County Council,1111/1001,Children and Young People,CYP,Third Party Payments,EGA,11/08/2020,05-18822,31483.8,Hope Fostering Services Ltd
Nottinghamshire County Council,1111/1001,Children and Young People,CYP,Third Party Payments,EGA,12/08/2020,05-13757,1696.5,Dragonflies Day Nursery ltd
Nottinghamshire County Council,1111/1001,Children and Young People,CYP,Third Party Payments,EGA,12/08/2020,05-13758,"2,441.40",[Redacted]
Nottinghamshire County Council,1111/1001,Children and Young People,CYP,Third Party Payments,EGA,12/08/2020,05-13759,768.60,Grosvenor House Day Nursery
Nottinghamshire County Council,1111/1001,Children and Young People,CYP,Third Party Payments,EGA,12/08/2020,05-13760,875.70,Little Baths Ltd T/A Little PLums D
Nottinghamshire County Council,1111/1001,Children and Young People,CYP,Third Party Payments,EGA,12/08/2020,05-13761,848.25,Serendipity's Day Nursery
Nottinghamshire County Council,1111/1001,Children and Young People,CYP,Third Party Payments,EGA,12/08/2020,05-18671,"16,476.06",Metropolitan Care Solution Ltd (A&M
Nottinghamshire County Council,1111/1001,Children and Young People,CYP,Third Party Payments,EGA,12/08/2020,05-18672,14851.66,Metropolitan Care Solution Ltd (A&M
Nottinghamshire County Council,1111/1001,Children and Young People,CYP,Third Party Payments,EGA,12/08/2020,05-18831,44708.5,By The Bridge Ltd
Nottinghamshire County Council,1111/1001,Children and Young People,CYP,Third Party Payments,EGA,12/08/2020,05-18840,"17,552.73",Blue Mountain Homes Ltd
Nottinghamshire County Council,1111/1001,Children and Young People,CYP,Third Party Payments,EGA,12/08/2020,05-18850,"10,172.08",Star Fostering Ltd
Nottinghamshire County Council,1111/1001,Children and Young People,CYP,Third Party Payments,EGA,12/08/2020,05-18852,17043.39,Anglia Fostering Agency Ltd
Nottinghamshire County Council,1111/1001,Children and Young People,CYP,Third Party Payments,EGA,12/08/2020,05-18854,5929.99,Parallel Parents Ltd
Nottinghamshire County Council,1111/1001,Children and Young People,CYP,Third Party Payments,EGA,12/08/2020,05-18856,"45,497.78",Team Fostering
Nottinghamshire County Council,1111/1001,Children and Young People,CYP,Third Party Payments,EGA,13/08/2020,05-13771,"27,105.12",Rainbows Day Nursery
Nottinghamshire County Council,1111/1001,Children and Young People,CYP,Third Party Payments,EGA,13/08/2020,05-18878,1483.5,Eastwood Grange Priory
Nottinghamshire County Council,1111/1001,Children and Young People,CYP,Third Party Payments,EGA,13/08/2020,05-18879,5801.4,Anchor Foster Care Services Ltd
Nottinghamshire County Council,1111/1001,Children and Young People,CYP,Third Party Payments,EGA,13/08/2020,05-18881,"10,172.08",Star Fostering Ltd
Nottinghamshire County Council,1111/1001,Children and Young People,CYP,Third Party Payments,EGA,13/08/2020,05-18891,135009.64,Safe Haven Accommodation Ltd
Nottinghamshire County Council,1111/1001,Children and Young People,CYP,Third Party Payments,EGA,13/08/2020,05-18892,"3,255.00",UK Fostering Ltd
Nottinghamshire County Council,1111/1001,Children and Young People,CYP,Third Party Payments,EGA,14/08/2020,05-18904,5801.4,Anchor Foster Care Services Ltd
Nottinghamshire County Council,1111/1001,Children and Young People,CYP,Third Party Payments,EGA,14/08/2020,05-18905,24162.33,Footsteps To Futures
Nottinghamshire County Council,1111/1001,Children and Young People,CYP,Third Party Payments,EGA,14/08/2020,05-18913,17552.73,Blue Mountain Homes Ltd
Nottinghamshire County Council,1111/1001,Children and Young People,CYP,Third Party Payments,EGA,14/08/2020,05-18914,17552.73,Blue Mountain Homes Ltd
Nottinghamshire County Council,1111/1001,Children and Young People,CYP,Third Party Payments,EGA,14/08/2020,05-18915,"17,552.73",Blue Mountain Homes Ltd
Nottinghamshire County Council,1111/1001,Children and Young People,CYP,Third Party Payments,EGA,14/08/2020,05-18917,18821.34,Care 4 Children Residential Service
Nottinghamshire County Council,1111/1001,Children and Young People,CYP,Third Party Payments,EGA,14/08/2020,05-18918,18821.34,Care 4 Children Residential Service
Nottinghamshire County Council,1111/1001,Children and Young People,CYP,Third Party Payments,EGA,14/08/2020,05-18919,"30,557.14",Metropolitan Care Solution Ltd (A&M
Nottinghamshire County Council,1111/1001,Children and Young People,CYP,Third Party Payments,EGA,14/08/2020,05-18920,18821.34,Care 4 Children Residential Service
Nottinghamshire County Council,1111/1001,Children and Young People,CYP,Third Party Payments,EGA,14/08/2020,05-18921,"2,204.60",Ambito Care (East Midlands Communit
Nottinghamshire County Council,1111/1001,Children and Young People,CYP,Third Party Payments,EGA,14/08/2020,05-18934,"96,715.63",Foster Care Associates Ltd
Nottinghamshire County Council,1111/1001,Children and Young People,CYP,Third Party Payments,EGA,14/08/2020,05-18940,"1,717.40",Safe Haven Accommodation Ltd
Nottinghamshire County Council,1111/1001,Children and Young People,CYP,Third Party Payments,EGA,17/08/2020,05-18816,50559.54,Framework Housing Association
Nottinghamshire County Council,1111/1001,Children and Young People,CYP,Third Party Payments,EGA,18/08/2020,05-18648,96715.63,Foster Care Associates Ltd
Nottinghamshire County Council,1111/1001,Children and Young People,CYP,Third Party Payments,EGA,18/08/2020,05-18927,578.57,Little Wrens Day Nursery & Pre Scho
Nottinghamshire County Council,1111/1001,Children and Young People,CYP,Third Party Payments,EGA,18/08/2020,05-18951,3230,Truly Care Services Ltd
Nottinghamshire County Council,1111/1001,Children and Young People,CYP,Third Party Payments,EGA,18/08/2020,05-18958,7528.35,Abbey Green Therapeutic Childrens S
Nottinghamshire County Council,1111/1001,Children and Young People,CYP,Third Party Payments,EGA,18/08/2020,05-18959,7528.35,Abbey Green Therapeutic Childrens S
Nottinghamshire County Council,1111/1001,Children and Young People,CYP,Third Party Payments,EGA,18/08/2020,05-18961,563.61,Longdale Nursery School (Cherubs)
Nottinghamshire County Council,1111/1001,Children and Young People,CYP,Third Party Payments,EGA,18/08/2020,05-18966,"24,162.33",Footsteps To Futures
Nottinghamshire County Council,1111/1001,Children and Young People,CYP,Third Party Payments,EGA,19/08/2020,05-18691,3321.34,Park Foster Care Ltd
Nottinghamshire County Council,1111/1001,Children and Young People,CYP,Third Party Payments,EGA,19/08/2020,05-18979,2598.86,Framework Housing Association
Nottinghamshire County Council,1111/1001,Children and Young People,CYP,Third Party Payments,EGA,19/08/2020,05-18980,"1,100.00",A Place To Call Our Own Ltd
Nottinghamshire County Council,1111/1001,Children and Young People,CYP,Third Party Payments,EGA,19/08/2020,05-18982,576,Prestige Nursing
Nottinghamshire County Council,1111/1001,Children and Young People,CYP,Third Party Payments,EGA,19/08/2020,05-18983,576,Prestige Nursing
Nottinghamshire County Council,1111/1001,Children and Young People,CYP,Third Party Payments,EGA,19/08/2020,05-18984,576,Prestige Nursing
Nottinghamshire County Council,1111/1001,Children and Young People,CYP,Third Party Payments,EGA,19/08/2020,05-18985,576,Prestige Nursing
Nottinghamshire County Council,1111/1001,Children and Young People,CYP,Third Party Payments,EGA,19/08/2020,05-18988,798.00,Spectrum Wasp
Nottinghamshire County Council,1111/1001,Children and Young People,CYP,Third Party Payments,EGA,19/08/2020,05-18989,"41,849.38",Teen Support Services Ltd
Nottinghamshire County Council,1111/1001,Children and Young People,CYP,Third Party Payments,EGA,19/08/2020,05-18991,14096.14,Kedleston (Wings Education) Ltd
Nottinghamshire County Council,1111/1001,Children and Young People,CYP,Third Party Payments,EGA,19/08/2020,05-18992,14096.14,Kedleston (Wings Education) Ltd
Nottinghamshire County Council,1111/1001,Children and Young People,CYP,Third Party Payments,EGA,19/08/2020,05-18993,"5,929.99",Parallel Parents Ltd
Nottinghamshire County Council,1111/1001,Children and Young People,CYP,Third Party Payments,EGA,19/08/2020,05-18994,5929.99,Parallel Parents Ltd
Nottinghamshire County Council,1111/1001,Children and Young People,CYP,Third Party Payments,EGA,19/08/2020,05-18995,5929.99,Parallel Parents Ltd
Nottinghamshire County Council,1111/1001,Children and Young People,CYP,Third Party Payments,EGA,19/08/2020,05-18996,"44,708.50",By The Bridge Ltd
Nottinghamshire County Council,1111/1001,Children and Young People,CYP,Third Party Payments,EGA,19/08/2020,05-18998,"17,552.73",Blue Mountain Homes Ltd
Nottinghamshire County Council,1111/1001,Children and Young People,CYP,Third Party Payments,EGA,20/08/2020,05-15477,"3,815.28",[Redacted]
Nottinghamshire County Council,1111/1001,Children and Young People,CYP,Third Party Payments,EGA,20/08/2020,05-15478,3142.44,[Redacted]
Nottinghamshire County Council,1111/1001,Children and Young People,CYP,Third Party Payments,EGA,20/08/2020,05-15479,2923.2,[Redacted]
Nottinghamshire County Council,1111/1001,Children and Young People,CYP,Third Party Payments,EGA,20/08/2020,05-15480,"2,777.04",[Redacted]
Nottinghamshire County Council,1111/1001,Children and Young People,CYP,Third Party Payments,EGA,20/08/2020,05-15481,892.08,[Redacted]
Nottinghamshire County Council,1111/1001,Children and Young People,CYP,Third Party Payments,EGA,20/08/2020,05-15482,"3,084.48",[Redacted]
Nottinghamshire County Council,1111/1001,Children and Young People,CYP,Third Party Payments,EGA,20/08/2020,05-15483,1461.6,Rachel & Philip's Home From Home Ch
Nottinghamshire County Council,1111/1001,Children and Young People,CYP,Third Party Payments,EGA,20/08/2020,05-15484,"74,909.01",Children 1st @ Breedon House (Plumt
Nottinghamshire County Council,1111/1001,Children and Young People,CYP,Third Party Payments,EGA,20/08/2020,05-15485,"1,632.12",[Redacted]
Nottinghamshire County Council,1111/1001,Children and Young People,CYP,Third Party Payments,EGA,20/08/2020,05-15486,876.96,[Redacted]
Nottinghamshire County Council,1111/1001,Children and Young People,CYP,Third Party Payments,EGA,20/08/2020,05-15487,"1,567.44",[Redacted]
Nottinghamshire County Council,1111/1001,Children and Young People,CYP,Third Party Payments,EGA,20/08/2020,05-15488,5715.9,[Redacted]
Nottinghamshire County Council,1111/1001,Children and Young People,CYP,Third Party Payments,EGA,20/08/2020,05-15489,24383.1,Little Kites Playgroup
Nottinghamshire County Council,1111/1001,Children and Young People,CYP,Third Party Payments,EGA,20/08/2020,05-15490,2241.12,[Redacted]
Nottinghamshire County Council,1111/1001,Children and Young People,CYP,Third Party Payments,EGA,20/08/2020,05-15491,11665.44,Pre-School Learning Alliance (HO)
Nottinghamshire County Council,1111/1001,Children and Young People,CYP,Third Party Payments,EGA,20/08/2020,05-15492,8851.17,Lady Bay Pre School Playgroup
Nottinghamshire County Council,1111/1001,Children and Young People,CYP,Third Party Payments,EGA,20/08/2020,05-15493,49058.04,All Aboard Nursery Ltd
Nottinghamshire County Council,1111/1001,Children and Young People,CYP,Third Party Payments,EGA,20/08/2020,05-15494,39983.04,Arnold House Day Nursery
Nottinghamshire County Council,1111/1001,Children and Young People,CYP,Third Party Payments,EGA,20/08/2020,05-15495,"26,345.18",Killisick Pre-School
Nottinghamshire County Council,1111/1001,Children and Young People,CYP,Third Party Payments,EGA,20/08/2020,05-15496,"12,398.40",Jesters Childcare Ltd
Nottinghamshire County Council,1111/1001,Children and Young People,CYP,Third Party Payments,EGA,20/08/2020,05-15497,11529.5,Allsorts Preschool Underwood
Nottinghamshire County Council,1111/1001,Children and Young People,CYP,Third Party Payments,EGA,20/08/2020,05-15498,66654,Discovery Day Nursery
Nottinghamshire County Council,1111/1001,Children and Young People,CYP,Third Party Payments,EGA,20/08/2020,05-15499,63626.22,Safe Haven Day Nursery
Nottinghamshire County Council,1111/1001,Children and Young People,CYP,Third Party Payments,EGA,20/08/2020,05-15500,"21,601.44",Learning Ladder Childcare Ltd
Nottinghamshire County Council,1111/1001,Children and Young People,CYP,Third Party Payments,EGA,20/08/2020,05-15501,"60,046.56",Fernwood Day Nursery Ltd
Nottinghamshire County Council,1111/1001,Children and Young People,CYP,Third Party Payments,EGA,20/08/2020,05-15502,2937.12,[Redacted]
Nottinghamshire County Council,1111/1001,Children and Young People,CYP,Third Party Payments,EGA,20/08/2020,05-15503,"19,186.40",Honey Pot Day Private Day Nursery L
Nottinghamshire County Council,1111/1001,Children and Young People,CYP,Third Party Payments,EGA,20/08/2020,05-15504,"53,228.70",Busy Bees (Daybrook)
Nottinghamshire County Council,1111/1001,Children and Young People,CYP,Third Party Payments,EGA,20/08/2020,05-15505,2192.4,Colston Bassett Preparatory School
Nottinghamshire County Council,1111/1001,Children and Young People,CYP,Third Party Payments,EGA,20/08/2020,05-15506,27813.04,Homestead Day Nursery Ltd
Nottinghamshire County Council,1111/1001,Children and Young People,CYP,Third Party Payments,EGA,20/08/2020,05-15507,"34,838.75",Children 1st @ Breedon House (Toton
Nottinghamshire County Council,1111/1001,Children and Young People,CYP,Third Party Payments,EGA,20/08/2020,05-15508,18327.12,Lowdham & Epperstone Pre-School
Nottinghamshire County Council,1111/1001,Children and Young People,CYP,Third Party Payments,EGA,20/08/2020,05-15509,29636.88,Millfield Nursery School
Nottinghamshire County Council,1111/1001,Children and Young People,CYP,Third Party Payments,EGA,20/08/2020,05-15510,31358.88,Redwood Scholars Schools LtdT/A Alp
Nottinghamshire County Council,1111/1001,Children and Young People,CYP,Third Party Payments,EGA,20/08/2020,05-15511,"17,570.85",Noahs Ark Playgroup
Nottinghamshire County Council,1111/1001,Children and Young People,CYP,Third Party Payments,EGA,20/08/2020,05-15512,"14,938.56",Old Cooperative Day Nursery
Nottinghamshire County Council,1111/1001,Children and Young People,CYP,Third Party Payments,EGA,20/08/2020,05-15513,20885.76,Puddleducks Pre-School
Nottinghamshire County Council,1111/1001,Children and Young People,CYP,Third Party Payments,EGA,20/08/2020,05-15514,25900.56,Smarties Private Day Nursery
Nottinghamshire County Council,1111/1001,Children and Young People,CYP,Third Party Payments,EGA,20/08/2020,05-15515,"20,979.71",Cherubs Childrens Centre Pleasley
Nottinghamshire County Council,1111/1001,Children and Young People,CYP,Third Party Payments,EGA,20/08/2020,05-15516,"17,248.14",Plumtree School
Nottinghamshire County Council,1111/1001,Children and Young People,CYP,Third Party Payments,EGA,20/08/2020,05-15517,"37,608.48",Granby House Nursery
Nottinghamshire County Council,1111/1001,Children and Young People,CYP,Third Party Payments,EGA,20/08/2020,05-15518,"32,800.32",Radcliffe On Trent Day Nursery
Nottinghamshire County Council,1111/1001,Children and Young People,CYP,Third Party Payments,EGA,20/08/2020,05-15519,"27,306.72",Tiny Talkers Day Nursery
Nottinghamshire County Council,1111/1001,Children and Young People,CYP,Third Party Payments,EGA,20/08/2020,05-15520,"14,664.72",Walesby School Playgroup
Nottinghamshire County Council,1111/1001,Children and Young People,CYP,Third Party Payments,EGA,20/08/2020,05-15521,"15,570.48",Portland Place Pre-School
Nottinghamshire County Council,1111/1001,Children and Young People,CYP,Third Party Payments,EGA,20/08/2020,05-15522,29791.44,Alphabet House Day Nurseries Ltd-Be
Nottinghamshire County Council,1111/1001,Children and Young People,CYP,Third Party Payments,EGA,20/08/2020,05-15523,19353.6,Awsworth Schoolhouse Day Nursery
Nottinghamshire County Council,1111/1001,Children and Young People,CYP,Third Party Payments,EGA,20/08/2020,05-15524,"42,837.48",Balderton Pre-School
Nottinghamshire County Council,1111/1001,Children and Young People,CYP,Third Party Payments,EGA,20/08/2020,05-15525,"21,598.08",Bingham Day Nursery & Pre School
Nottinghamshire County Council,1111/1001,Children and Young People,CYP,Third Party Payments,EGA,20/08/2020,05-15526,17258.46,West Street Pre-School
Nottinghamshire County Council,1111/1001,Children and Young People,CYP,Third Party Payments,EGA,20/08/2020,05-15527,"33,070.80",Alphabet House Day Nurseries Ltd-Wh
Nottinghamshire County Council,1111/1001,Children and Young People,CYP,Third Party Payments,EGA,20/08/2020,05-15528,"16,774.13",Windmill Kindergarten Playgroup
Nottinghamshire County Council,1111/1001,Children and Young People,CYP,Third Party Payments,EGA,20/08/2020,05-15529,31627.43,Bright Sparks Day Nursery
Nottinghamshire County Council,1111/1001,Children and Young People,CYP,Third Party Payments,EGA,20/08/2020,05-15530,"52,012.80",Cared 4 Ltd T/A Brookhill House Day
Nottinghamshire County Council,1111/1001,Children and Young People,CYP,Third Party Payments,EGA,20/08/2020,05-15531,"54,227.04",Brooklyn Day Nursery
Nottinghamshire County Council,1111/1001,Children and Young People,CYP,Third Party Payments,EGA,20/08/2020,05-15532,"63,858.00",Woodthorpe Day Nursery Ltd
Nottinghamshire County Council,1111/1001,Children and Young People,CYP,Third Party Payments,EGA,20/08/2020,05-15533,"65,192.40",Serendipity's Day Nursery
Nottinghamshire County Council,1111/1001,Children and Young People,CYP,Third Party Payments,EGA,20/08/2020,05-15534,28160.16,Papplewick Pre-School Playgroup
Nottinghamshire County Council,1111/1001,Children and Young People,CYP,Third Party Payments,EGA,20/08/2020,05-15535,31857.85,Carnarvon Pre-School
Nottinghamshire County Council,1111/1001,Children and Young People,CYP,Third Party Payments,EGA,20/08/2020,05-15536,9197.64,Southfields Pre-School
Nottinghamshire County Council,1111/1001,Children and Young People,CYP,Third Party Payments,EGA,20/08/2020,05-15537,29008.56,Ashfield Plaza Day Nursery
Nottinghamshire County Council,1111/1001,Children and Young People,CYP,Third Party Payments,EGA,20/08/2020,05-15538,41576.76,Daisies Day Nursery
Nottinghamshire County Council,1111/1001,Children and Young People,CYP,Third Party Payments,EGA,20/08/2020,05-15539,34548.8,Edwalton Day Nursery
Nottinghamshire County Council,1111/1001,Children and Young People,CYP,Third Party Payments,EGA,20/08/2020,05-15540,14638.42,Tiny Tots Playgroup
Nottinghamshire County Council,1111/1001,Children and Young People,CYP,Third Party Payments,EGA,20/08/2020,05-15541,"44,496.48",Alphabet House Day Nurseries Ltd-We
Nottinghamshire County Council,1111/1001,Children and Young People,CYP,Third Party Payments,EGA,20/08/2020,05-15542,"24,987.96",Bircotes Pre-School
Nottinghamshire County Council,1111/1001,Children and Young People,CYP,Third Party Payments,EGA,20/08/2020,05-15543,"31,341.66",East Leake Pre-School Playgroup
Nottinghamshire County Council,1111/1001,Children and Young People,CYP,Third Party Payments,EGA,20/08/2020,05-15544,16082.64,Willow Childcare & Training Ltd
Nottinghamshire County Council,1111/1001,Children and Young People,CYP,Third Party Payments,EGA,20/08/2020,05-15545,37291.46,Cherubs Ryton Park
Nottinghamshire County Council,1111/1001,Children and Young People,CYP,Third Party Payments,EGA,20/08/2020,05-15546,4651.92,Sparkle Daycare
Nottinghamshire County Council,1111/1001,Children and Young People,CYP,Third Party Payments,EGA,20/08/2020,05-15547,42235.62,The Enchanted Garden Day Nursery
Nottinghamshire County Council,1111/1001,Children and Young People,CYP,Third Party Payments,EGA,20/08/2020,05-15548,2192.4,The Young Ones Childminding
Nottinghamshire County Council,1111/1001,Children and Young People,CYP,Third Party Payments,EGA,20/08/2020,05-15549,"2,192.40",[Redacted]
Nottinghamshire County Council,1111/1001,Children and Young People,CYP,Third Party Payments,EGA,20/08/2020,05-15550,"17,065.44",Zoe's Childcare Ltd
Nottinghamshire County Council,1111/1001,Children and Young People,CYP,Third Party Payments,EGA,20/08/2020,05-15551,27789.95,Cedar House Day Nursery
Nottinghamshire County Council,1111/1001,Children and Young People,CYP,Third Party Payments,EGA,20/08/2020,05-15552,"3,407.04",Mini-me Childcare
Nottinghamshire County Council,1111/1001,Children and Young People,CYP,Third Party Payments,EGA,20/08/2020,05-15553,"82,115.04",The Orange Tree Day Nursery
Nottinghamshire County Council,1111/1001,Children and Young People,CYP,Third Party Payments,EGA,20/08/2020,05-15554,1461.6,[Redacted]
Nottinghamshire County Council,1111/1001,Children and Young People,CYP,Third Party Payments,EGA,20/08/2020,05-15555,2338.56,[Redacted]
Nottinghamshire County Council,1111/1001,Children and Young People,CYP,Third Party Payments,EGA,20/08/2020,05-15556,"1,388.52",[Redacted]
Nottinghamshire County Council,1111/1001,Children and Young People,CYP,Third Party Payments,EGA,20/08/2020,05-15557,4080.96,[Redacted]
Nottinghamshire County Council,1111/1001,Children and Young People,CYP,Third Party Payments,EGA,20/08/2020,05-15558,"1,169.28",[Redacted]
Nottinghamshire County Council,1111/1001,Children and Young People,CYP,Third Party Payments,EGA,20/08/2020,05-15559,3815.28,[Redacted]
Nottinghamshire County Council,1111/1001,Children and Young People,CYP,Third Party Payments,EGA,20/08/2020,05-15560,"2,289.84",[Redacted]
Nottinghamshire County Council,1111/1001,Children and Young People,CYP,Third Party Payments,EGA,20/08/2020,05-15561,892.08,[Redacted]
Nottinghamshire County Council,1111/1001,Children and Young People,CYP,Third Party Payments,EGA,20/08/2020,05-15562,730.80,[Redacted]
Nottinghamshire County Council,1111/1001,Children and Young People,CYP,Third Party Payments,EGA,20/08/2020,05-15563,730.8,[Redacted]
Nottinghamshire County Council,1111/1001,Children and Young People,CYP,Third Party Payments,EGA,20/08/2020,05-15564,4757.76,[Redacted]
Nottinghamshire County Council,1111/1001,Children and Young People,CYP,Third Party Payments,EGA,20/08/2020,05-15565,730.80,[Redacted]
Nottinghamshire County Council,1111/1001,Children and Young People,CYP,Third Party Payments,EGA,20/08/2020,05-15566,"2,923.20",[Redacted]
Nottinghamshire County Council,1111/1001,Children and Young People,CYP,Third Party Payments,EGA,20/08/2020,05-15567,"9,006.48",Zoes Childcare Ltd
Nottinghamshire County Council,1111/1001,Children and Young People,CYP,Third Party Payments,EGA,20/08/2020,05-15568,"3,909.78",Fiona Lamb Childminding Service
Nottinghamshire County Council,1111/1001,Children and Young People,CYP,Third Party Payments,EGA,20/08/2020,05-15569,"1,671.60",[Redacted]
Nottinghamshire County Council,1111/1001,Children and Young People,CYP,Third Party Payments,EGA,20/08/2020,05-15570,4122.72,[Redacted]
Nottinghamshire County Council,1111/1001,Children and Young People,CYP,Third Party Payments,EGA,20/08/2020,05-15571,730.8,[Redacted]
Nottinghamshire County Council,1111/1001,Children and Young People,CYP,Third Party Payments,EGA,20/08/2020,05-15572,"1,461.60",[Redacted]
Nottinghamshire County Council,1111/1001,Children and Young People,CYP,Third Party Payments,EGA,20/08/2020,05-15573,"2,098.66",[Redacted]
Nottinghamshire County Council,1111/1001,Children and Young People,CYP,Third Party Payments,EGA,20/08/2020,05-15574,2056.32,[Redacted]
Nottinghamshire County Council,1111/1001,Children and Young People,CYP,Third Party Payments,EGA,20/08/2020,05-15575,730.8,[Redacted]
Nottinghamshire County Council,1111/1001,Children and Young People,CYP,Third Party Payments,EGA,20/08/2020,05-15576,"2,562.48",[Redacted]
Nottinghamshire County Council,1111/1001,Children and Young People,CYP,Third Party Payments,EGA,20/08/2020,05-15577,730.80,[Redacted]
Nottinghamshire County Council,1111/1001,Children and Young People,CYP,Third Party Payments,EGA,20/08/2020,05-15578,2436,[Redacted]
Nottinghamshire County Council,1111/1001,Children and Young People,CYP,Third Party Payments,EGA,20/08/2020,05-15579,2353.68,[Redacted]
Nottinghamshire County Council,1111/1001,Children and Young People,CYP,Third Party Payments,EGA,20/08/2020,05-15580,"10,997.73",Little Beans Playgroup
Nottinghamshire County Council,1111/1001,Children and Young People,CYP,Third Party Payments,EGA,20/08/2020,05-15581,892.08,[Redacted]
Nottinghamshire County Council,1111/1001,Children and Young People,CYP,Third Party Payments,EGA,20/08/2020,05-15582,"36,282.96",Mapperley Day Nursery
Nottinghamshire County Council,1111/1001,Children and Young People,CYP,Third Party Payments,EGA,20/08/2020,05-15583,3897.6,[Redacted]
Nottinghamshire County Council,1111/1001,Children and Young People,CYP,Third Party Payments,EGA,20/08/2020,05-15584,2168.91,[Redacted]
Nottinghamshire County Council,1111/1001,Children and Young People,CYP,Third Party Payments,EGA,20/08/2020,05-15585,56801.66,Hollies Day Nurseries
Nottinghamshire County Council,1111/1001,Children and Young People,CYP,Third Party Payments,EGA,20/08/2020,05-15586,2430.24,[Redacted]
Nottinghamshire County Council,1111/1001,Children and Young People,CYP,Third Party Payments,EGA,20/08/2020,05-15587,"2,764.86",[Redacted]
Nottinghamshire County Council,1111/1001,Children and Young People,CYP,Third Party Payments,EGA,20/08/2020,05-15588,1461.6,[Redacted]
Nottinghamshire County Council,1111/1001,Children and Young People,CYP,Third Party Payments,EGA,20/08/2020,05-15589,1120.56,[Redacted]
Nottinghamshire County Council,1111/1001,Children and Young People,CYP,Third Party Payments,EGA,20/08/2020,05-15590,730.80,[Redacted]
Nottinghamshire County Council,1111/1001,Children and Young People,CYP,Third Party Payments,EGA,20/08/2020,05-15591,2630.88,[Redacted]
Nottinghamshire County Council,1111/1001,Children and Young People,CYP,Third Party Payments,EGA,20/08/2020,05-15592,"2,353.68",Home From Home Childcare
Nottinghamshire County Council,1111/1001,Children and Young People,CYP,Third Party Payments,EGA,20/08/2020,05-15593,"2,353.68",[Redacted]
Nottinghamshire County Council,1111/1001,Children and Young People,CYP,Third Party Payments,EGA,20/08/2020,05-15594,"1,461.60",[Redacted]
Nottinghamshire County Council,1111/1001,Children and Young People,CYP,Third Party Payments,EGA,20/08/2020,05-15595,1461.6,[Redacted]
Nottinghamshire County Council,1111/1001,Children and Young People,CYP,Third Party Payments,EGA,20/08/2020,05-15596,43088.22,Happy Days Childcare Services Ltd
Nottinghamshire County Council,1111/1001,Children and Young People,CYP,Third Party Payments,EGA,20/08/2020,05-15597,15609.89,Alphabet House Day Nursery (Chilwel
Nottinghamshire County Council,1111/1001,Children and Young People,CYP,Third Party Payments,EGA,20/08/2020,05-15598,1461.6,[Redacted]
Nottinghamshire County Council,1111/1001,Children and Young People,CYP,Third Party Payments,EGA,20/08/2020,05-15599,2046.24,[Redacted]
Nottinghamshire County Council,1111/1001,Children and Young People,CYP,Third Party Payments,EGA,20/08/2020,05-15600,2514.96,[Redacted]
Nottinghamshire County Council,1111/1001,Children and Young People,CYP,Third Party Payments,EGA,20/08/2020,05-15601,"1,461.60",[Redacted]
Nottinghamshire County Council,1111/1001,Children and Young People,CYP,Third Party Payments,EGA,20/08/2020,05-15602,"1,023.12",[Redacted]
Nottinghamshire County Council,1111/1001,Children and Young People,CYP,Third Party Payments,EGA,20/08/2020,05-15603,4868.64,[Redacted]
Nottinghamshire County Council,1111/1001,Children and Young People,CYP,Third Party Payments,EGA,20/08/2020,05-15604,892.08,Kimie's Little Footprints
Nottinghamshire County Council,1111/1001,Children and Young People,CYP,Third Party Payments,EGA,20/08/2020,05-15605,"3,029.04",[Redacted]
Nottinghamshire County Council,1111/1001,Children and Young People,CYP,Third Party Payments,EGA,20/08/2020,05-15606,584.64,[Redacted]
Nottinghamshire County Council,1111/1001,Children and Young People,CYP,Third Party Payments,EGA,20/08/2020,05-15607,3757.32,[Redacted]
Nottinghamshire County Council,1111/1001,Children and Young People,CYP,Third Party Payments,EGA,20/08/2020,05-15608,1461.6,[Redacted]
Nottinghamshire County Council,1111/1001,Children and Young People,CYP,Third Party Payments,EGA,20/08/2020,05-15609,36405.48,Jumacare Ltd T/A Church House Nurse
Nottinghamshire County Council,1111/1001,Children and Young People,CYP,Third Party Payments,EGA,20/08/2020,05-15610,730.80,[Redacted]
Nottinghamshire County Council,1111/1001,Children and Young People,CYP,Third Party Payments,EGA,20/08/2020,05-15611,"1,096.20",[Redacted]
Nottinghamshire County Council,1111/1001,Children and Young People,CYP,Third Party Payments,EGA,20/08/2020,05-15612,23220.96,Child First (Welbeck) (Childminding
Nottinghamshire County Council,1111/1001,Children and Young People,CYP,Third Party Payments,EGA,20/08/2020,05-15613,1680.84,[Redacted]
Nottinghamshire County Council,1111/1001,Children and Young People,CYP,Third Party Payments,EGA,20/08/2020,05-15614,"1,461.60",[Redacted]
Nottinghamshire County Council,1111/1001,Children and Young People,CYP,Third Party Payments,EGA,20/08/2020,05-15615,892.08,[Redacted]
Nottinghamshire County Council,1111/1001,Children and Young People,CYP,Third Party Payments,EGA,20/08/2020,05-15616,16238.88,Country Kids Day Nursery (Kneesall)
Nottinghamshire County Council,1111/1001,Children and Young People,CYP,Third Party Payments,EGA,20/08/2020,05-15617,"3,192.56",Country Bumpkins Childcare
Nottinghamshire County Council,1111/1001,Children and Young People,CYP,Third Party Payments,EGA,20/08/2020,05-15618,892.08,[Redacted]
Nottinghamshire County Council,1111/1001,Children and Young People,CYP,Third Party Payments,EGA,20/08/2020,05-15619,"3,407.04",Little House Of Horrors
Nottinghamshire County Council,1111/1001,Children and Young People,CYP,Third Party Payments,EGA,20/08/2020,05-15620,1191.2,Ruthies Childcare
Nottinghamshire County Council,1111/1001,Children and Young People,CYP,Third Party Payments,EGA,20/08/2020,05-15621,5124,Little House Childcare of Brinsley
Nottinghamshire County Council,1111/1001,Children and Young People,CYP,Third Party Payments,EGA,20/08/2020,05-15622,"4,969.44",Green Tot Childcare
Nottinghamshire County Council,1111/1001,Children and Young People,CYP,Third Party Payments,EGA,20/08/2020,05-15623,876.96,[Redacted]
Nottinghamshire County Council,1111/1001,Children and Young People,CYP,Third Party Payments,EGA,20/08/2020,05-15624,584.64,[Redacted]
Nottinghamshire County Council,1111/1001,Children and Young People,CYP,Third Party Payments,EGA,20/08/2020,05-15625,7757.73,Jenny's Jelly Tots
Nottinghamshire County Council,1111/1001,Children and Young People,CYP,Third Party Payments,EGA,20/08/2020,05-15626,892.08,Butterflies Childminding Services
Nottinghamshire County Council,1111/1001,Children and Young People,CYP,Third Party Payments,EGA,20/08/2020,05-15627,"3,654.00",[Redacted]
Nottinghamshire County Council,1111/1001,Children and Young People,CYP,Third Party Payments,EGA,20/08/2020,05-15628,25849.68,Luan's Little People Ltd
Nottinghamshire County Council,1111/1001,Children and Young People,CYP,Third Party Payments,EGA,20/08/2020,05-15629,"1,461.60",[Redacted]
Nottinghamshire County Council,1111/1001,Children and Young People,CYP,Third Party Payments,EGA,20/08/2020,05-15630,17967.6,Little Toes Day Nursery
Nottinghamshire County Council,1111/1001,Children and Young People,CYP,Third Party Payments,EGA,20/08/2020,05-15631,2338.56,[Redacted]
Nottinghamshire County Council,1111/1001,Children and Young People,CYP,Third Party Payments,EGA,20/08/2020,05-15632,1266.72,[Redacted]
Nottinghamshire County Council,1111/1001,Children and Young People,CYP,Third Party Payments,EGA,20/08/2020,05-15633,876.96,[Redacted]
Nottinghamshire County Council,1111/1001,Children and Young People,CYP,Third Party Payments,EGA,20/08/2020,05-15634,1622.88,L & K's Little Kingdom
Nottinghamshire County Council,1111/1001,Children and Young People,CYP,Third Party Payments,EGA,20/08/2020,05-15635,1622.88,Samsam Little Minders
Nottinghamshire County Council,1111/1001,Children and Young People,CYP,Third Party Payments,EGA,20/08/2020,05-15636,892.08,[Redacted]
Nottinghamshire County Council,1111/1001,Children and Young People,CYP,Third Party Payments,EGA,20/08/2020,05-15637,"36,489.60",Ryan House Day Nursery
Nottinghamshire County Council,1111/1001,Children and Young People,CYP,Third Party Payments,EGA,20/08/2020,05-15638,"33,853.68",Little Baths Ltd T/A Little PLums D
Nottinghamshire County Council,1111/1001,Children and Young People,CYP,Third Party Payments,EGA,20/08/2020,05-15639,1622.88,[Redacted]
Nottinghamshire County Council,1111/1001,Children and Young People,CYP,Third Party Payments,EGA,20/08/2020,05-15640,2676.24,Emma's Enchanted Garden Childcare
Nottinghamshire County Council,1111/1001,Children and Young People,CYP,Third Party Payments,EGA,20/08/2020,05-15641,35416.17,Hollies Day Nursery (Loughborough R
Nottinghamshire County Council,1111/1001,Children and Young People,CYP,Third Party Payments,EGA,20/08/2020,05-15642,"3,084.48",[Redacted]
Nottinghamshire County Council,1111/1001,Children and Young People,CYP,Third Party Payments,EGA,20/08/2020,05-15643,"4,384.80",Gemmas Little Gems
Nottinghamshire County Council,1111/1001,Children and Young People,CYP,Third Party Payments,EGA,20/08/2020,05-15644,51065.52,Secret Garden Childcare Ltd
Nottinghamshire County Council,1111/1001,Children and Young People,CYP,Third Party Payments,EGA,20/08/2020,05-15645,"46,315.08",[Redacted]
Nottinghamshire County Council,1111/1001,Children and Young People,CYP,Third Party Payments,EGA,20/08/2020,05-15646,"1,461.60",[Redacted]
Nottinghamshire County Council,1111/1001,Children and Young People,CYP,Third Party Payments,EGA,20/08/2020,05-15647,939.6,[Redacted]
Nottinghamshire County Council,1111/1001,Children and Young People,CYP,Third Party Payments,EGA,20/08/2020,05-15648,14938.56,Little Wrens Day Nursery & Pre Scho
Nottinghamshire County Council,1111/1001,Children and Young People,CYP,Third Party Payments,EGA,20/08/2020,05-15649,"24,675.84",Jelly Beans Day Nursery Ltd
Nottinghamshire County Council,1111/1001,Children and Young People,CYP,Third Party Payments,EGA,20/08/2020,05-15650,1959.36,Crafty Kids Childminding
Nottinghamshire County Council,1111/1001,Children and Young People,CYP,Third Party Payments,EGA,20/08/2020,05-15651,974.4,[Redacted]
Nottinghamshire County Council,1111/1001,Children and Young People,CYP,Third Party Payments,EGA,20/08/2020,05-15652,730.8,Matthew's Monsters
Nottinghamshire County Council,1111/1001,Children and Young People,CYP,Third Party Payments,EGA,20/08/2020,05-15653,730.80,ABC Childminders
Nottinghamshire County Council,1111/1001,Children and Young People,CYP,Third Party Payments,EGA,20/08/2020,05-15654,"1,784.16",Cooper's Nest Childcare
Nottinghamshire County Council,1111/1001,Children and Young People,CYP,Third Party Payments,EGA,20/08/2020,05-15655,3084.48,[Redacted]
Nottinghamshire County Council,1111/1001,Children and Young People,CYP,Third Party Payments,EGA,20/08/2020,05-15656,1607.76,[Redacted]
Nottinghamshire County Council,1111/1001,Children and Young People,CYP,Third Party Payments,EGA,20/08/2020,05-15657,730.80,[Redacted]
Nottinghamshire County Council,1111/1001,Children and Young People,CYP,Third Party Payments,EGA,20/08/2020,05-15658,"1,461.60",[Redacted]
Nottinghamshire County Council,1111/1001,Children and Young People,CYP,Third Party Payments,EGA,20/08/2020,05-15659,730.80,[Redacted]
Nottinghamshire County Council,1111/1001,Children and Young People,CYP,Third Party Payments,EGA,20/08/2020,05-15660,892.08,[Redacted]
Nottinghamshire County Council,1111/1001,Children and Young People,CYP,Third Party Payments,EGA,20/08/2020,05-15661,892.08,[Redacted]
Nottinghamshire County Council,1111/1001,Children and Young People,CYP,Third Party Payments,EGA,20/08/2020,05-15662,"46,529.28",Crocodile Rock Day Care Ltd
Nottinghamshire County Council,1111/1001,Children and Young People,CYP,Third Party Payments,EGA,20/08/2020,05-15663,1622.88,[Redacted]
Nottinghamshire County Council,1111/1001,Children and Young People,CYP,Third Party Payments,EGA,20/08/2020,05-15664,892.08,[Redacted]
Nottinghamshire County Council,1111/1001,Children and Young People,CYP,Third Party Payments,EGA,20/08/2020,05-15665,974.4,[Redacted]
Nottinghamshire County Council,1111/1001,Children and Young People,CYP,Third Party Payments,EGA,20/08/2020,05-15666,"1,784.16",[Redacted]
Nottinghamshire County Council,1111/1001,Children and Young People,CYP,Third Party Payments,EGA,20/08/2020,05-15667,730.8,[Redacted]
Nottinghamshire County Council,1111/1001,Children and Young People,CYP,Third Party Payments,EGA,20/08/2020,05-15668,892.08,[Redacted]
Nottinghamshire County Council,1111/1001,Children and Young People,CYP,Third Party Payments,EGA,20/08/2020,05-15669,1461.6,Little Scholars
Nottinghamshire County Council,1111/1001,Children and Young People,CYP,Third Party Payments,EGA,20/08/2020,05-15670,11123.28,Cherubs (Ruddington)
Nottinghamshire County Council,1111/1001,Children and Young People,CYP,Third Party Payments,EGA,20/08/2020,05-15671,39285.54,Hucknall Day Nursery Ltd
Nottinghamshire County Council,1111/1001,Children and Young People,CYP,Third Party Payments,EGA,20/08/2020,05-15672,"7,595.28",Lime Trees (Kirkby West)
Nottinghamshire County Council,1111/1001,Children and Young People,CYP,Third Party Payments,EGA,20/08/2020,05-15673,1461.6,Marriott Childcare
Nottinghamshire County Council,1111/1001,Children and Young People,CYP,Third Party Payments,EGA,20/08/2020,05-15674,974.4,Little Munchkins Childminding
Nottinghamshire County Council,1111/1001,Children and Young People,CYP,Third Party Payments,EGA,20/08/2020,05-15675,"4,241.43",Beginnings Nursery Ltd (Mapperley)
Nottinghamshire County Council,1111/1001,Children and Young People,CYP,Third Party Payments,EGA,20/08/2020,05-15676,"11,563.02",Lime Trees (Netherfield)
Nottinghamshire County Council,1111/1001,Children and Young People,CYP,Third Party Payments,EGA,20/08/2020,05-15677,730.8,Minded By Molly
Nottinghamshire County Council,1111/1001,Children and Young People,CYP,Third Party Payments,EGA,20/08/2020,05-15678,"17,199.84",Little Lambs Day Nursery (Kirkby in
Nottinghamshire County Council,1111/1001,Children and Young People,CYP,Third Party Payments,EGA,20/08/2020,05-15679,730.8,[Redacted]
Nottinghamshire County Council,1111/1001,Children and Young People,CYP,Third Party Payments,EGA,20/08/2020,05-15680,1071.84,[Redacted]
Nottinghamshire County Council,1111/1001,Children and Young People,CYP,Third Party Payments,EGA,20/08/2020,05-15681,"2,192.40",Cheeky Monkeys Childminding
Nottinghamshire County Council,1111/1001,Children and Young People,CYP,Third Party Payments,EGA,20/08/2020,05-15682,892.08,[Redacted]
Nottinghamshire County Council,1111/1001,Children and Young People,CYP,Third Party Payments,EGA,20/08/2020,05-15683,2353.68,[Redacted]
Nottinghamshire County Council,1111/1001,Children and Young People,CYP,Third Party Payments,EGA,20/08/2020,05-15684,"3,245.76",[Redacted]
Nottinghamshire County Council,1111/1001,Children and Young People,CYP,Third Party Payments,EGA,20/08/2020,05-15685,730.8,[Redacted]
Nottinghamshire County Council,1111/1001,Children and Young People,CYP,Third Party Payments,EGA,20/08/2020,05-15686,5193.9,Poppy & Jacks Ltd
Nottinghamshire County Council,1111/1001,Children and Young People,CYP,Third Party Payments,EGA,20/08/2020,05-15687,"1,784.16",[Redacted]
Nottinghamshire County Council,1111/1001,Children and Young People,CYP,Third Party Payments,EGA,20/08/2020,05-15688,782.93,[Redacted]
Nottinghamshire County Council,1111/1001,Children and Young People,CYP,Third Party Payments,EGA,20/08/2020,05-15689,10885.2,Kimberley Pre-School Playgroup
Nottinghamshire County Council,1111/1001,Children and Young People,CYP,Third Party Payments,EGA,20/08/2020,05-15690,"35,713.44",Sunnydale Nursery Ltd
Nottinghamshire County Council,1111/1001,Children and Young People,CYP,Third Party Payments,EGA,20/08/2020,05-15691,1461.6,[Redacted]
Nottinghamshire County Council,1111/1001,Children and Young People,CYP,Third Party Payments,EGA,20/08/2020,05-15692,"1,257.48",Little Tots
Nottinghamshire County Council,1111/1001,Children and Young People,CYP,Third Party Payments,EGA,20/08/2020,05-15693,"22,133.16",All Saints C Of E Primary School
Nottinghamshire County Council,1111/1001,Children and Young People,CYP,Third Party Payments,EGA,20/08/2020,05-15694,26707.9,Wolds Childcare Ltd
Nottinghamshire County Council,1111/1001,Children and Young People,CYP,Third Party Payments,EGA,20/08/2020,05-15695,32528.15,Longdale Nursery School (Cherubs)
Nottinghamshire County Council,1111/1001,Children and Young People,CYP,Third Party Payments,EGA,20/08/2020,05-15696,22115.64,Wollaton Village Day Nurseries
Nottinghamshire County Council,1111/1001,Children and Young People,CYP,Third Party Payments,EGA,20/08/2020,05-15697,13843.11,Misson Pre-School
Nottinghamshire County Council,1111/1001,Children and Young People,CYP,Third Party Payments,EGA,20/08/2020,05-15698,2289.84,Cheeky Monkeys Childminding
Nottinghamshire County Council,1111/1001,Children and Young People,CYP,Third Party Payments,EGA,20/08/2020,05-15699,"10,906.20",Toddlers University (Bee)
Nottinghamshire County Council,1111/1001,Children and Young People,CYP,Third Party Payments,EGA,20/08/2020,05-15700,"3,654.00",Jammie Dodgers Childminding Group
Nottinghamshire County Council,1111/1001,Children and Young People,CYP,Third Party Payments,EGA,20/08/2020,05-15701,1461.6,[Redacted]
Nottinghamshire County Council,1111/1001,Children and Young People,CYP,Third Party Payments,EGA,20/08/2020,05-15702,56999.49,Papermoon Day Nursery
Nottinghamshire County Council,1111/1001,Children and Young People,CYP,Third Party Payments,EGA,20/08/2020,05-15703,"16,561.44",Willow Brook Pre-School
Nottinghamshire County Council,1111/1001,Children and Young People,CYP,Third Party Payments,EGA,20/08/2020,05-15704,56890.56,Daisies Day Nursery
Nottinghamshire County Council,1111/1001,Children and Young People,CYP,Third Party Payments,EGA,20/08/2020,05-15705,730.80,[Redacted]
Nottinghamshire County Council,1111/1001,Children and Young People,CYP,Third Party Payments,EGA,20/08/2020,05-15706,"22,510.03",Lime Trees - Burton Joyce
Nottinghamshire County Council,1111/1001,Children and Young People,CYP,Third Party Payments,EGA,20/08/2020,05-15707,"22,854.65",Ark Pre-School
Nottinghamshire County Council,1111/1001,Children and Young People,CYP,Third Party Payments,EGA,20/08/2020,05-15708,"26,341.56",Kidzgrove
Nottinghamshire County Council,1111/1001,Children and Young People,CYP,Third Party Payments,EGA,20/08/2020,05-15709,"62,443.08",Grosvenor House Day Nursery
Nottinghamshire County Council,1111/1001,Children and Young People,CYP,Third Party Payments,EGA,20/08/2020,05-15710,"123,859.12",Pre-School Learning Alliance (HO)
Nottinghamshire County Council,1111/1001,Children and Young People,CYP,Third Party Payments,EGA,20/08/2020,05-15711,1266.72,[Redacted]
Nottinghamshire County Council,1111/1001,Children and Young People,CYP,Third Party Payments,EGA,20/08/2020,05-15712,14894.77,Appleton Childcare Ltd
Nottinghamshire County Council,1111/1001,Children and Young People,CYP,Third Party Payments,EGA,20/08/2020,05-15713,2192.4,[Redacted]
Nottinghamshire County Council,1111/1001,Children and Young People,CYP,Third Party Payments,EGA,20/08/2020,05-15714,"58,943.38",Carlton & Gedling Day Nursery
Nottinghamshire County Council,1111/1001,Children and Young People,CYP,Third Party Payments,EGA,20/08/2020,05-15715,"26,414.76",Alphabet House Day Nurseries Ltd-Lo
Nottinghamshire County Council,1111/1001,Children and Young People,CYP,Third Party Payments,EGA,20/08/2020,05-15716,20769.12,Beeston Nursery
Nottinghamshire County Council,1111/1001,Children and Young People,CYP,Third Party Payments,EGA,20/08/2020,05-15717,"9,118.80",Gotham Pre-School Playgroup
Nottinghamshire County Council,1111/1001,Children and Young People,CYP,Third Party Payments,EGA,20/08/2020,05-15718,22280.74,Hucknall Pre-School Playgroup
Nottinghamshire County Council,1111/1001,Children and Young People,CYP,Third Party Payments,EGA,20/08/2020,05-15719,10554.84,Collingham & District Pre-School
Nottinghamshire County Council,1111/1001,Children and Young People,CYP,Third Party Payments,EGA,20/08/2020,05-15720,15946.56,Pea Pod Day Nursery Ltd
Nottinghamshire County Council,1111/1001,Children and Young People,CYP,Third Party Payments,EGA,20/08/2020,05-15721,86943.38,Shaping Futures Day Nursery
Nottinghamshire County Council,1111/1001,Children and Young People,CYP,Third Party Payments,EGA,20/08/2020,05-15722,2277.66,Ravenshead Out Of School Club
Nottinghamshire County Council,1111/1001,Children and Young People,CYP,Third Party Payments,EGA,20/08/2020,05-15723,794.14,Tree House Out Of School Club
Nottinghamshire County Council,1111/1001,Children and Young People,CYP,Third Party Payments,EGA,20/08/2020,05-15724,"37,014.06",Applegarth Day Nurseries Ltd
Nottinghamshire County Council,1111/1001,Children and Young People,CYP,Third Party Payments,EGA,20/08/2020,05-15725,"10,069.76",Thrumpton Kids Clubs
Nottinghamshire County Council,1111/1001,Children and Young People,CYP,Third Party Payments,EGA,20/08/2020,05-15726,"14,255.03",Radcliffe On Trent Pre School Playg
Nottinghamshire County Council,1111/1001,Children and Young People,CYP,Third Party Payments,EGA,20/08/2020,05-15727,22086.71,Staunton Montessori Nursery School
Nottinghamshire County Council,1111/1001,Children and Young People,CYP,Third Party Payments,EGA,20/08/2020,05-15728,1784.16,[Redacted]
Nottinghamshire County Council,1111/1001,Children and Young People,CYP,Third Party Payments,EGA,20/08/2020,05-15729,"1,461.60",[Redacted]
Nottinghamshire County Council,1111/1001,Children and Young People,CYP,Third Party Payments,EGA,20/08/2020,05-15730,29936.69,Little Nippers Pre-School
Nottinghamshire County Council,1111/1001,Children and Young People,CYP,Third Party Payments,EGA,20/08/2020,05-15731,17559.71,North Muskham Playgroup
Nottinghamshire County Council,1111/1001,Children and Young People,CYP,Third Party Payments,EGA,20/08/2020,05-15732,"11,888.64",Hermitage Pre-School
Nottinghamshire County Council,1111/1001,Children and Young People,CYP,Third Party Payments,EGA,20/08/2020,05-15733,"18,852.75",Highfields School & Nursery
Nottinghamshire County Council,1111/1001,Children and Young People,CYP,Third Party Payments,EGA,20/08/2020,05-15734,"15,358.25",Horsendale Playgroup
Nottinghamshire County Council,1111/1001,Children and Young People,CYP,Third Party Payments,EGA,20/08/2020,05-15735,30666.48,Quinton Day Nurseries T/A Honey Bee
Nottinghamshire County Council,1111/1001,Children and Young People,CYP,Third Party Payments,EGA,20/08/2020,05-15736,9763.14,St Giles Pre-school
Nottinghamshire County Council,1111/1001,Children and Young People,CYP,Third Party Payments,EGA,20/08/2020,05-15737,"33,241.35",Busy Bees Nursery
Nottinghamshire County Council,1111/1001,Children and Young People,CYP,Third Party Payments,EGA,20/08/2020,05-15738,"23,425.58",St Mary's Pre-School
Nottinghamshire County Council,1111/1001,Children and Young People,CYP,Third Party Payments,EGA,20/08/2020,05-15739,"9,571.09",Leahurst Road Pre-School
Nottinghamshire County Council,1111/1001,Children and Young People,CYP,Third Party Payments,EGA,20/08/2020,05-15740,"42,630.96",Leen Mills Pre School Playgroup
Nottinghamshire County Council,1111/1001,Children and Young People,CYP,Third Party Payments,EGA,20/08/2020,05-15741,"30,404.04",Leos Childrens Nurseries Ltd
Nottinghamshire County Council,1111/1001,Children and Young People,CYP,Third Party Payments,EGA,20/08/2020,05-15742,67344.94,Children 1st @ Breedon House (Toton
Nottinghamshire County Council,1111/1001,Children and Young People,CYP,Third Party Payments,EGA,20/08/2020,05-15743,34924.92,Westbourne House Nursery School
Nottinghamshire County Council,1111/1001,Children and Young People,CYP,Third Party Payments,EGA,20/08/2020,05-15744,"8,331.12",Saville House School
Nottinghamshire County Council,1111/1001,Children and Young People,CYP,Third Party Payments,EGA,20/08/2020,05-15745,19916.64,Young Rascals Day Nursery
Nottinghamshire County Council,1111/1001,Children and Young People,CYP,Third Party Payments,EGA,20/08/2020,05-15746,19185.84,Mulberry Bush Day Nursery
Nottinghamshire County Council,1111/1001,Children and Young People,CYP,Third Party Payments,EGA,20/08/2020,05-15747,"45,389.88",Tiny World Mansfield
Nottinghamshire County Council,1111/1001,Children and Young People,CYP,Third Party Payments,EGA,20/08/2020,05-15748,"64,308.48",The Orchard Day Nursery
Nottinghamshire County Council,1111/1001,Children and Young People,CYP,Third Party Payments,EGA,20/08/2020,05-15749,31994.37,Beacon Hill Day Nursery
Nottinghamshire County Council,1111/1001,Children and Young People,CYP,Third Party Payments,EGA,20/08/2020,05-15750,"6,528.48",Orchard School Nursery
Nottinghamshire County Council,1111/1001,Children and Young People,CYP,Third Party Payments,EGA,20/08/2020,05-15751,"33,654.00",Papermoon Day Nursery
Nottinghamshire County Council,1111/1001,Children and Young People,CYP,Third Party Payments,EGA,20/08/2020,05-15752,"6,870.36",Prebend Pre-School Playgroup
Nottinghamshire County Council,1111/1001,Children and Young People,CYP,Third Party Payments,EGA,20/08/2020,05-15753,30475.59,Railway Children Playgroup
Nottinghamshire County Council,1111/1001,Children and Young People,CYP,Third Party Payments,EGA,20/08/2020,05-15754,"14,567.28",Worksop College
Nottinghamshire County Council,1111/1001,Children and Young People,CYP,Third Party Payments,EGA,20/08/2020,05-15755,"67,120.58",Cherubs Day Nursery
Nottinghamshire County Council,1111/1001,Children and Young People,CYP,Third Party Payments,EGA,20/08/2020,05-15756,"32,181.75",Claremont Early Years Ltd
Nottinghamshire County Council,1111/1001,Children and Young People,CYP,Third Party Payments,EGA,20/08/2020,05-15757,"15,304.01",Ravenshead Pre-School Playgroup
Nottinghamshire County Council,1111/1001,Children and Young People,CYP,Third Party Payments,EGA,20/08/2020,05-15758,"9,661.68",Salterford House School
Nottinghamshire County Council,1111/1001,Children and Young People,CYP,Third Party Payments,EGA,20/08/2020,05-15759,11642.54,Sconce Hills Pre-School Playgroup
Nottinghamshire County Council,1111/1001,Children and Young People,CYP,Third Party Payments,EGA,20/08/2020,05-15760,27577.62,Scotts Wood Private Day Nursery
Nottinghamshire County Council,1111/1001,Children and Young People,CYP,Third Party Payments,EGA,20/08/2020,05-15761,21875.52,Treetops Nursery (Toton)
Nottinghamshire County Council,1111/1001,Children and Young People,CYP,Third Party Payments,EGA,20/08/2020,05-15762,17476.56,Arnold St Mary's Pre-School
Nottinghamshire County Council,1111/1001,Children and Young People,CYP,Third Party Payments,EGA,20/08/2020,05-15763,58220.64,Oceans Day Nursery
Nottinghamshire County Council,1111/1001,Children and Young People,CYP,Third Party Payments,EGA,20/08/2020,05-15764,"33,208.56",The Secret Garden Private Day Nurse
Nottinghamshire County Council,1111/1001,Children and Young People,CYP,Third Party Payments,EGA,20/08/2020,05-15765,20428.8,St Johns Playgroup
Nottinghamshire County Council,1111/1001,Children and Young People,CYP,Third Party Payments,EGA,20/08/2020,05-15766,37639.08,Cherubs Childcare Centre (Mansfield
Nottinghamshire County Council,1111/1001,Children and Young People,CYP,Third Party Payments,EGA,20/08/2020,05-15767,14386.53,Sutton Bonington Playgroup
Nottinghamshire County Council,1111/1001,Children and Young People,CYP,Third Party Payments,EGA,20/08/2020,05-15768,19850.37,Sutton Centre Under 5'S Playgroup
Nottinghamshire County Council,1111/1001,Children and Young People,CYP,Third Party Payments,EGA,20/08/2020,05-15769,45741.6,The Learning Tree Nursery
Nottinghamshire County Council,1111/1001,Children and Young People,CYP,Third Party Payments,EGA,20/08/2020,05-15770,31024.56,Little Bears Day Nursery
Nottinghamshire County Council,1111/1001,Children and Young People,CYP,Third Party Payments,EGA,20/08/2020,05-15771,19829.04,Tollerton Playgroup
Nottinghamshire County Council,1111/1001,Children and Young People,CYP,Third Party Payments,EGA,20/08/2020,05-15772,23978.4,Pre-School 345
Nottinghamshire County Council,1111/1001,Children and Young People,CYP,Third Party Payments,EGA,20/08/2020,05-15773,14533.68,Lambley Day Nursery Ltd
Nottinghamshire County Council,1111/1001,Children and Young People,CYP,Third Party Payments,EGA,20/08/2020,05-15774,28469.66,Carlton Preschool Playgroup
Nottinghamshire County Council,1111/1001,Children and Young People,CYP,Third Party Payments,EGA,20/08/2020,05-15775,"40,962.59",Village Day Nursery
Nottinghamshire County Council,1111/1001,Children and Young People,CYP,Third Party Payments,EGA,20/08/2020,05-15776,"14,803.92",Watnall Pre-School Playgroup
Nottinghamshire County Council,1111/1001,Children and Young People,CYP,Third Party Payments,EGA,20/08/2020,05-15777,"41,517.81",Weaverthorpe Pre-School Playgroup
Nottinghamshire County Council,1111/1001,Children and Young People,CYP,Third Party Payments,EGA,20/08/2020,05-15778,13519.8,Wellow House School
Nottinghamshire County Council,1111/1001,Children and Young People,CYP,Third Party Payments,EGA,20/08/2020,05-15779,"58,879.44",The Rocking Horse Child Care Centre
Nottinghamshire County Council,1111/1001,Children and Young People,CYP,Third Party Payments,EGA,20/08/2020,05-15780,"26,851.09",Attenborough Church Pre-School
Nottinghamshire County Council,1111/1001,Children and Young People,CYP,Third Party Payments,EGA,20/08/2020,05-15781,"27,425.38",Balderton Village Day Nursery
Nottinghamshire County Council,1111/1001,Children and Young People,CYP,Third Party Payments,EGA,20/08/2020,05-15782,37559.09,Whitehouse Day Nursery
Nottinghamshire County Council,1111/1001,Children and Young People,CYP,Third Party Payments,EGA,20/08/2020,05-15783,"8,869.34",Willoughby On The Wolds Playgroup
Nottinghamshire County Council,1111/1001,Children and Young People,CYP,Third Party Payments,EGA,20/08/2020,05-15784,15127.7,Willow Pre-School Playgroup
Nottinghamshire County Council,1111/1001,Children and Young People,CYP,Third Party Payments,EGA,20/08/2020,05-15785,"87,954.81",Papermoon Day Nursery Sutton In Ash
Nottinghamshire County Council,1111/1001,Children and Young People,CYP,Third Party Payments,EGA,20/08/2020,05-15786,30262.34,Buttercross Pre School
Nottinghamshire County Council,1111/1001,Children and Young People,CYP,Third Party Payments,EGA,20/08/2020,05-15787,17569.44,Bramcote Pre-School Playgroup
Nottinghamshire County Council,1111/1001,Children and Young People,CYP,Third Party Payments,EGA,20/08/2020,05-15788,"22,567.14",Woodborough Village Pre School
Nottinghamshire County Council,1111/1001,Children and Young People,CYP,Third Party Payments,EGA,20/08/2020,05-15789,"37,417.74",Hollies Day Nurseries Ltd
Nottinghamshire County Council,1111/1001,Children and Young People,CYP,Third Party Payments,EGA,20/08/2020,05-15790,5066.88,Hickling Pre-School
Nottinghamshire County Council,1111/1001,Children and Young People,CYP,Third Party Payments,EGA,20/08/2020,05-15791,"92,958.84",Serendipity's Day Nursery
Nottinghamshire County Council,1111/1001,Children and Young People,CYP,Third Party Payments,EGA,20/08/2020,05-15792,41195.67,Coteswood House School
Nottinghamshire County Council,1111/1001,Children and Young People,CYP,Third Party Payments,EGA,20/08/2020,05-15793,52582.03,Bizzy Kidz
Nottinghamshire County Council,1111/1001,Children and Young People,CYP,Third Party Payments,EGA,20/08/2020,05-15794,38778.69,Cherubs Childrens Centre Wynndale
Nottinghamshire County Council,1111/1001,Children and Young People,CYP,Third Party Payments,EGA,20/08/2020,05-15795,16403.31,Wishing Well Day Nursery
Nottinghamshire County Council,1111/1001,Children and Young People,CYP,Third Party Payments,EGA,20/08/2020,05-15796,"52,688.26",Little Oaks Nursery
Nottinghamshire County Council,1111/1001,Children and Young People,CYP,Third Party Payments,EGA,20/08/2020,05-15797,39520.08,The Learning Tree Day Nursery 2
Nottinghamshire County Council,1111/1001,Children and Young People,CYP,Third Party Payments,EGA,20/08/2020,05-15798,37904.16,Ruddington Nursery & Pre-School
Nottinghamshire County Council,1111/1001,Children and Young People,CYP,Third Party Payments,EGA,20/08/2020,05-15799,11820.48,Little Friends Day Nursery
Nottinghamshire County Council,1111/1001,Children and Young People,CYP,Third Party Payments,EGA,20/08/2020,05-15800,"43,265.04",Stapleford Day Nursery
Nottinghamshire County Council,1111/1001,Children and Young People,CYP,Third Party Payments,EGA,20/08/2020,05-15801,"37,161.36",Rocking Horse Nursery Butlers Hill
Nottinghamshire County Council,1111/1001,Children and Young People,CYP,Third Party Payments,EGA,20/08/2020,05-15802,24367.95,Treetops Nurseries (Workop)
Nottinghamshire County Council,1111/1001,Children and Young People,CYP,Third Party Payments,EGA,20/08/2020,05-15803,12482.76,Chetwynd Little Troopers Nursery &
Nottinghamshire County Council,1111/1001,Children and Young People,CYP,Third Party Payments,EGA,20/08/2020,05-15804,"16,191.84",Christchurch Hall Pre-School Playgr
Nottinghamshire County Council,1111/1001,Children and Young People,CYP,Third Party Payments,EGA,20/08/2020,05-15805,6927.41,Costock Pre School
Nottinghamshire County Council,1111/1001,Children and Young People,CYP,Third Party Payments,EGA,20/08/2020,05-15806,24490.8,Rainbow Day Nursery
Nottinghamshire County Council,1111/1001,Children and Young People,CYP,Third Party Payments,EGA,20/08/2020,05-15807,42014.28,Papermoon Day Nursery
Nottinghamshire County Council,1111/1001,Children and Young People,CYP,Third Party Payments,EGA,20/08/2020,05-15808,8127.89,Haywood Road Pre-School
Nottinghamshire County Council,1111/1001,Children and Young People,CYP,Third Party Payments,EGA,20/08/2020,05-15809,26066.17,Cranmer Pre-School
Nottinghamshire County Council,1111/1001,Children and Young People,CYP,Third Party Payments,EGA,20/08/2020,05-15810,"42,638.65",East Leake Day Nursery & Pre-School
Nottinghamshire County Council,1111/1001,Children and Young People,CYP,Third Party Payments,EGA,20/08/2020,05-15811,11534.46,Elston Pre-school
Nottinghamshire County Council,1111/1001,Children and Young People,CYP,Third Party Payments,EGA,20/08/2020,05-15812,"48,005.28",Wollaton Village Day Nurseries Ltd
Nottinghamshire County Council,1111/1001,Children and Young People,CYP,Third Party Payments,EGA,20/08/2020,05-15813,14480.3,Pippins Pre-School
Nottinghamshire County Council,1111/1001,Children and Young People,CYP,Third Party Payments,EGA,20/08/2020,05-15814,33699.96,Scottswood Pdn Ltd
Nottinghamshire County Council,1111/1001,Children and Young People,CYP,Third Party Payments,EGA,20/08/2020,05-15815,"34,649.40",Kingfisher Day Nursery
Nottinghamshire County Council,1111/1001,Children and Young People,CYP,Third Party Payments,EGA,20/08/2020,05-15816,"21,268.80",Pump Farm Day Nursery
Nottinghamshire County Council,1111/1001,Children and Young People,CYP,Third Party Payments,EGA,20/08/2020,05-15817,20702.63,St Peter's Early Years
Nottinghamshire County Council,1111/1001,Children and Young People,CYP,Third Party Payments,EGA,20/08/2020,05-15818,"16,780.29",Farnsfield Pre-School
Nottinghamshire County Council,1111/1001,Children and Young People,CYP,Third Party Payments,EGA,20/08/2020,05-15819,"16,011.48",Fledglings Pre School
Nottinghamshire County Council,1111/1001,Children and Young People,CYP,Third Party Payments,EGA,20/08/2020,05-15820,18453.6,Early Years Playgroup
Nottinghamshire County Council,1111/1001,Children and Young People,CYP,Third Party Payments,EGA,20/08/2020,05-15821,"15,699.94",Lowater Street Play & Pre School
Nottinghamshire County Council,1111/1001,Children and Young People,CYP,Third Party Payments,EGA,20/08/2020,05-15822,"30,522.26",Little Millers Day Nursery
Nottinghamshire County Council,1111/1001,Children and Young People,CYP,Third Party Payments,EGA,20/08/2020,05-15823,42781.68,Good Foundations Day Nursery
Nottinghamshire County Council,1111/1001,Children and Young People,CYP,Third Party Payments,EGA,20/08/2020,05-15824,"22,781.39",Good Shepherd Pre-School
Nottinghamshire County Council,1111/1001,Children and Young People,CYP,Third Party Payments,EGA,20/08/2020,05-15825,22606.16,Leo's Childrens Nurseries Ltd
Nottinghamshire County Council,1111/1001,Children and Young People,CYP,Third Party Payments,EGA,20/08/2020,05-15826,26077.59,Little Acorns Shireoaks
Nottinghamshire County Council,1111/1001,Children and Young People,CYP,Third Party Payments,EGA,20/08/2020,05-15827,876.96,[Redacted]
Nottinghamshire County Council,1111/1001,Children and Young People,CYP,Third Party Payments,EGA,20/08/2020,05-15828,974.4,[Redacted]
Nottinghamshire County Council,1111/1001,Children and Young People,CYP,Third Party Payments,EGA,20/08/2020,05-15829,"37,219.12",Treetops Nursery (Clipstone)
Nottinghamshire County Council,1111/1001,Children and Young People,CYP,Third Party Payments,EGA,20/08/2020,05-15830,3084.48,[Redacted]
Nottinghamshire County Council,1111/1001,Children and Young People,CYP,Third Party Payments,EGA,20/08/2020,05-15831,"40,741.69",Bright Stars Childcare
Nottinghamshire County Council,1111/1001,Children and Young People,CYP,Third Party Payments,EGA,20/08/2020,05-15832,1427.33,[Redacted]
Nottinghamshire County Council,1111/1001,Children and Young People,CYP,Third Party Payments,EGA,20/08/2020,05-15833,25483.08,Bullpit Road Nursery
Nottinghamshire County Council,1111/1001,Children and Young People,CYP,Third Party Payments,EGA,20/08/2020,05-15834,876.96,[Redacted]
Nottinghamshire County Council,1111/1001,Children and Young People,CYP,Third Party Payments,EGA,20/08/2020,05-15835,"3,908.16",[Redacted]
Nottinghamshire County Council,1111/1001,Children and Young People,CYP,Third Party Payments,EGA,20/08/2020,05-15836,27105.12,Rainbows Day Nursery
Nottinghamshire County Council,1111/1001,Children and Young People,CYP,Third Party Payments,EGA,20/08/2020,05-15837,2458.08,[Redacted]
Nottinghamshire County Council,1111/1001,Children and Young People,CYP,Third Party Payments,EGA,20/08/2020,05-15838,"2,192.40",[Redacted]
Nottinghamshire County Council,1111/1001,Children and Young People,CYP,Third Party Payments,EGA,20/08/2020,05-15839,"5,511.24",Luans Little Stars
Nottinghamshire County Council,1111/1001,Children and Young People,CYP,Third Party Payments,EGA,20/08/2020,05-15840,"5,353.49",Sharons Childminding
Nottinghamshire County Council,1111/1001,Children and Young People,CYP,Third Party Payments,EGA,20/08/2020,05-15841,"2,401.20",[Redacted]
Nottinghamshire County Council,1111/1001,Children and Young People,CYP,Third Party Payments,EGA,20/08/2020,05-15842,"3,815.28",Appletree House Childminding
Nottinghamshire County Council,1111/1001,Children and Young People,CYP,Third Party Payments,EGA,20/08/2020,05-15843,1461.6,Jelly Tots
Nottinghamshire County Council,1111/1001,Children and Young People,CYP,Third Party Payments,EGA,20/08/2020,05-15844,5115.6,[Redacted]
Nottinghamshire County Council,1111/1001,Children and Young People,CYP,Third Party Payments,EGA,20/08/2020,05-15845,"1,023.12",[Redacted]
Nottinghamshire County Council,1111/1001,Children and Young People,CYP,Third Party Payments,EGA,20/08/2020,05-15846,3976.56,[Redacted]
Nottinghamshire County Council,1111/1001,Children and Young People,CYP,Third Party Payments,EGA,20/08/2020,05-15847,1096.2,[Redacted]
Nottinghamshire County Council,1111/1001,Children and Young People,CYP,Third Party Payments,EGA,20/08/2020,05-15848,32317.81,Fun Farm Day Nursery
Nottinghamshire County Council,1111/1001,Children and Young People,CYP,Third Party Payments,EGA,20/08/2020,05-15849,974.4,[Redacted]
Nottinghamshire County Council,1111/1001,Children and Young People,CYP,Third Party Payments,EGA,20/08/2020,05-15850,1169.28,[Redacted]
Nottinghamshire County Council,1111/1001,Children and Young People,CYP,Third Party Payments,EGA,20/08/2020,05-15851,892.08,[Redacted]
Nottinghamshire County Council,1111/1001,Children and Young People,CYP,Third Party Payments,EGA,20/08/2020,05-15852,3084.48,[Redacted]
Nottinghamshire County Council,1111/1001,Children and Young People,CYP,Third Party Payments,EGA,20/08/2020,05-15853,"3,500.53",[Redacted]
Nottinghamshire County Council,1111/1001,Children and Young People,CYP,Third Party Payments,EGA,20/08/2020,05-15854,892.08,"Sue Smith, Happy Kids Childminding"
Nottinghamshire County Council,1111/1001,Children and Young People,CYP,Third Party Payments,EGA,20/08/2020,05-15855,33788.08,Cherubs Childcare Centre Ladybrook
Nottinghamshire County Council,1111/1001,Children and Young People,CYP,Third Party Payments,EGA,20/08/2020,05-15856,"14,533.68",Rushcliffe Pre-School (Nottingham)
Nottinghamshire County Council,1111/1001,Children and Young People,CYP,Third Party Payments,EGA,20/08/2020,05-15857,"13,278.06",Upton Crickets Day Nursery
Nottinghamshire County Council,1111/1001,Children and Young People,CYP,Third Party Payments,EGA,20/08/2020,05-15858,"4,546.08",Sunnybank Childminding
Nottinghamshire County Council,1111/1001,Children and Young People,CYP,Third Party Payments,EGA,20/08/2020,05-15859,513.93,[Redacted]
Nottinghamshire County Council,1111/1001,Children and Young People,CYP,Third Party Payments,EGA,20/08/2020,05-15860,1461.6,[Redacted]
Nottinghamshire County Council,1111/1001,Children and Young People,CYP,Third Party Payments,EGA,20/08/2020,05-15861,"21,123.60",Cheeky Monkeys Day Nursery
Nottinghamshire County Council,1111/1001,Children and Young People,CYP,Third Party Payments,EGA,20/08/2020,05-15862,"4,201.56",[Redacted]
Nottinghamshire County Council,1111/1001,Children and Young People,CYP,Third Party Payments,EGA,20/08/2020,05-15863,"6,534.36",[Redacted]
Nottinghamshire County Council,1111/1001,Children and Young People,CYP,Third Party Payments,EGA,20/08/2020,05-15864,"2,353.68",[Redacted]
Nottinghamshire County Council,1111/1001,Children and Young People,CYP,Third Party Payments,EGA,20/08/2020,05-15865,"21,684.96",Acorns Childminding
Nottinghamshire County Council,1111/1001,Children and Young People,CYP,Third Party Payments,EGA,20/08/2020,05-15866,2867.66,[Redacted]
Nottinghamshire County Council,1111/1001,Children and Young People,CYP,Third Party Payments,EGA,20/08/2020,05-15867,730.8,[Redacted]
Nottinghamshire County Council,1111/1001,Children and Young People,CYP,Third Party Payments,EGA,20/08/2020,05-15868,"39,064.93",Children 1st @ Newark Centre
Nottinghamshire County Council,1111/1001,Children and Young People,CYP,Third Party Payments,EGA,20/08/2020,05-15869,1461.6,[Redacted]
Nottinghamshire County Council,1111/1001,Children and Young People,CYP,Third Party Payments,EGA,20/08/2020,05-15870,609.97,[Redacted]
Nottinghamshire County Council,1111/1001,Children and Young People,CYP,Third Party Payments,EGA,20/08/2020,05-15871,"39,060.00",Dragonflies Day Nursery ltd
Nottinghamshire County Council,1111/1001,Children and Young People,CYP,Third Party Payments,EGA,20/08/2020,05-15872,"4,415.04",[Redacted]
Nottinghamshire County Council,1111/1001,Children and Young People,CYP,Third Party Payments,EGA,20/08/2020,05-15873,2192.4,[Redacted]
Nottinghamshire County Council,1111/1001,Children and Young People,CYP,Third Party Payments,EGA,20/08/2020,05-15874,730.80,[Redacted]
Nottinghamshire County Council,1111/1001,Children and Young People,CYP,Third Party Payments,EGA,20/08/2020,05-15875,584.64,[Redacted]
Nottinghamshire County Council,1111/1001,Children and Young People,CYP,Third Party Payments,EGA,20/08/2020,05-15876,"1,169.28",[Redacted]
Nottinghamshire County Council,1111/1001,Children and Young People,CYP,Third Party Payments,EGA,20/08/2020,05-15877,3230.64,[Redacted]
Nottinghamshire County Council,1111/1001,Children and Young People,CYP,Third Party Payments,EGA,20/08/2020,05-15878,"1,295.78",[Redacted]
Nottinghamshire County Council,1111/1001,Children and Young People,CYP,Third Party Payments,EGA,20/08/2020,05-15879,"2,825.76",[Redacted]
Nottinghamshire County Council,1111/1001,Children and Young People,CYP,Third Party Payments,EGA,20/08/2020,05-15880,730.80,[Redacted]
Nottinghamshire County Council,1111/1001,Children and Young People,CYP,Third Party Payments,EGA,20/08/2020,05-15881,730.80,[Redacted]
Nottinghamshire County Council,1111/1001,Children and Young People,CYP,Third Party Payments,EGA,20/08/2020,05-15882,"2,192.40",[Redacted]
Nottinghamshire County Council,1111/1001,Children and Young People,CYP,Third Party Payments,EGA,20/08/2020,05-15883,1461.6,[Redacted]
Nottinghamshire County Council,1111/1001,Children and Young People,CYP,Third Party Payments,EGA,20/08/2020,05-15884,5766.18,[Redacted]
Nottinghamshire County Council,1111/1001,Children and Young People,CYP,Third Party Payments,EGA,20/08/2020,05-15885,1169.28,[Redacted]
Nottinghamshire County Council,1111/1001,Children and Young People,CYP,Third Party Payments,EGA,20/08/2020,05-15886,19477.11,Little Beans Playgroup
Nottinghamshire County Council,1111/1001,Children and Young People,CYP,Third Party Payments,EGA,20/08/2020,05-15887,29488.92,Childrens House Childcare Ltd
Nottinghamshire County Council,1111/1001,Children and Young People,CYP,Third Party Payments,EGA,20/08/2020,05-15888,"2,353.68",Little Acorns Childminding
Nottinghamshire County Council,1111/1001,Children and Young People,CYP,Third Party Payments,EGA,20/08/2020,05-15889,1622.88,[Redacted]
Nottinghamshire County Council,1111/1001,Children and Young People,CYP,Third Party Payments,EGA,20/08/2020,05-15890,1412.88,Taylor -Made Childcare
Nottinghamshire County Council,1111/1001,Children and Young People,CYP,Third Party Payments,EGA,20/08/2020,05-15891,2825.76,Sweet Pea's Childminding
Nottinghamshire County Council,1111/1001,Children and Young People,CYP,Third Party Payments,EGA,20/08/2020,05-15892,2630.88,[Redacted]
Nottinghamshire County Council,1111/1001,Children and Young People,CYP,Third Party Payments,EGA,20/08/2020,05-15893,560.28,[Redacted]
Nottinghamshire County Council,1111/1001,Children and Young People,CYP,Third Party Payments,EGA,20/08/2020,05-15894,2923.2,[Redacted]
Nottinghamshire County Council,1111/1001,Children and Young People,CYP,Third Party Payments,EGA,20/08/2020,05-15895,7222.32,Yew Tree Childcare
Nottinghamshire County Council,1111/1001,Children and Young People,CYP,Third Party Payments,EGA,20/08/2020,05-15896,50763.6,Phoenix Park Nursery Ltd
Nottinghamshire County Council,1111/1001,Children and Young People,CYP,Third Party Payments,EGA,20/08/2020,05-15897,1120.56,[Redacted]
Nottinghamshire County Council,1111/1001,Children and Young People,CYP,Third Party Payments,EGA,20/08/2020,05-15898,2797.99,[Redacted]
Nottinghamshire County Council,1111/1001,Children and Young People,CYP,Third Party Payments,EGA,20/08/2020,05-15899,584.64,Almond Tree Childminding
Nottinghamshire County Council,1111/1001,Children and Young People,CYP,Third Party Payments,EGA,20/08/2020,05-15900,"2,971.92",[Redacted]
Nottinghamshire County Council,1111/1001,Children and Young People,CYP,Third Party Payments,EGA,20/08/2020,05-15901,"1,607.76",[Redacted]
Nottinghamshire County Council,1111/1001,Children and Young People,CYP,Third Party Payments,EGA,20/08/2020,05-15902,3084.48,[Redacted]
Nottinghamshire County Council,1111/1001,Children and Young People,CYP,Third Party Payments,EGA,20/08/2020,05-15903,876.96,[Redacted]
Nottinghamshire County Council,1111/1001,Children and Young People,CYP,Third Party Payments,EGA,20/08/2020,05-15904,"26,290.30",Wolds Day Nursery @ Stragglethorpe
Nottinghamshire County Council,1111/1001,Children and Young People,CYP,Third Party Payments,EGA,20/08/2020,05-15905,730.80,[Redacted]
Nottinghamshire County Council,1111/1001,Children and Young People,CYP,Third Party Payments,EGA,20/08/2020,05-15906,1963.92,[Redacted]
Nottinghamshire County Council,1111/1001,Children and Young People,CYP,Third Party Payments,EGA,20/08/2020,05-15907,"1,330.56",[Redacted]
Nottinghamshire County Council,1111/1001,Children and Young People,CYP,Third Party Payments,EGA,20/08/2020,05-15908,2533.44,[Redacted]
Nottinghamshire County Council,1111/1001,Children and Young People,CYP,Third Party Payments,EGA,20/08/2020,05-15909,730.80,[Redacted]
Nottinghamshire County Council,1111/1001,Children and Young People,CYP,Third Party Payments,EGA,20/08/2020,05-15910,1144.92,[Redacted]
Nottinghamshire County Council,1111/1001,Children and Young People,CYP,Third Party Payments,EGA,20/08/2020,05-15911,1461.6,Orchard Childminding
Nottinghamshire County Council,1111/1001,Children and Young People,CYP,Third Party Payments,EGA,20/08/2020,05-15912,"31,086.15",Pre-School Learning Alliance (HO)
Nottinghamshire County Council,1111/1001,Children and Young People,CYP,Third Party Payments,EGA,20/08/2020,05-15913,"40,752.72",Aunty Sue's Day Care Ltd
Nottinghamshire County Council,1111/1001,Children and Young People,CYP,Third Party Payments,EGA,20/08/2020,05-15914,1461.6,[Redacted]
Nottinghamshire County Council,1111/1001,Children and Young People,CYP,Third Party Payments,EGA,20/08/2020,05-15915,"1,461.60",[Redacted]
Nottinghamshire County Council,1111/1001,Children and Young People,CYP,Third Party Payments,EGA,20/08/2020,05-15916,2335.32,Rainbows Childminding
Nottinghamshire County Council,1111/1001,Children and Young People,CYP,Third Party Payments,EGA,20/08/2020,05-15917,2264.47,[Redacted]
Nottinghamshire County Council,1111/1001,Children and Young People,CYP,Third Party Payments,EGA,20/08/2020,05-15918,35546.66,Creative Hands Childcare
Nottinghamshire County Council,1111/1001,Children and Young People,CYP,Third Party Payments,EGA,20/08/2020,05-15919,892.08,Imogen Barnett (Immy's House)
Nottinghamshire County Council,1111/1001,Children and Young People,CYP,Third Party Payments,EGA,20/08/2020,05-15920,"1,900.08",[Redacted]
Nottinghamshire County Council,1111/1001,Children and Young People,CYP,Third Party Payments,EGA,20/08/2020,05-15921,31195.44,Little Lambs Day Nursery
Nottinghamshire County Council,1111/1001,Children and Young People,CYP,Third Party Payments,EGA,20/08/2020,05-15922,1461.6,[Redacted]
Nottinghamshire County Council,1111/1001,Children and Young People,CYP,Third Party Payments,EGA,20/08/2020,05-15923,730.8,[Redacted]
Nottinghamshire County Council,1111/1001,Children and Young People,CYP,Third Party Payments,EGA,20/08/2020,05-15924,"9,109.08",Gognas Day Nursery Ltd
Nottinghamshire County Council,1111/1001,Children and Young People,CYP,Third Party Payments,EGA,20/08/2020,05-15925,"1,622.88",[Redacted]
Nottinghamshire County Council,1111/1001,Children and Young People,CYP,Third Party Payments,EGA,20/08/2020,05-15926,1437.24,[Redacted]
Nottinghamshire County Council,1111/1001,Children and Young People,CYP,Third Party Payments,EGA,20/08/2020,05-15927,2923.2,[Redacted]
Nottinghamshire County Council,1111/1001,Children and Young People,CYP,Third Party Payments,EGA,20/08/2020,05-15928,"1,135.68",[Redacted]
Nottinghamshire County Council,1111/1001,Children and Young People,CYP,Third Party Payments,EGA,20/08/2020,05-15929,1315.44,[Redacted]
Nottinghamshire County Council,1111/1001,Children and Young People,CYP,Third Party Payments,EGA,20/08/2020,05-15930,730.8,[Redacted]
Nottinghamshire County Council,1111/1001,Children and Young People,CYP,Third Party Payments,EGA,20/08/2020,05-15931,2923.2,[Redacted]
Nottinghamshire County Council,1111/1001,Children and Young People,CYP,Third Party Payments,EGA,20/08/2020,05-15932,730.8,Little Steps Childcare
Nottinghamshire County Council,1111/1001,Children and Young People,CYP,Third Party Payments,EGA,20/08/2020,05-15933,1461.6,[Redacted]
Nottinghamshire County Council,1111/1001,Children and Young People,CYP,Third Party Payments,EGA,20/08/2020,05-15934,"4,122.72",Making Memories Childminding
Nottinghamshire County Council,1111/1001,Children and Young People,CYP,Third Party Payments,EGA,20/08/2020,05-15935,1023.12,Littlebear Childcare
Nottinghamshire County Council,1111/1001,Children and Young People,CYP,Third Party Payments,EGA,20/08/2020,05-15936,"2,451.12",Little Angels Childcare
Nottinghamshire County Council,1111/1001,Children and Young People,CYP,Third Party Payments,EGA,20/08/2020,05-15937,1169.28,[Redacted]
Nottinghamshire County Council,1111/1001,Children and Young People,CYP,Third Party Payments,EGA,20/08/2020,05-15938,1461.6,[Redacted]
Nottinghamshire County Council,1111/1001,Children and Young People,CYP,Third Party Payments,EGA,20/08/2020,05-15939,730.80,Childcare @ Heathers House
Nottinghamshire County Council,1111/1001,Children and Young People,CYP,Third Party Payments,EGA,20/08/2020,05-15940,"1,656.48",[Redacted]
Nottinghamshire County Council,1111/1001,Children and Young People,CYP,Third Party Payments,EGA,20/08/2020,05-15941,2018.4,[Redacted]
Nottinghamshire County Council,1111/1001,Children and Young People,CYP,Third Party Payments,EGA,20/08/2020,05-15942,"1,461.60",Little Bears Corner
Nottinghamshire County Council,1111/1001,Children and Young People,CYP,Third Party Payments,EGA,20/08/2020,05-15943,730.80,[Redacted]
Nottinghamshire County Council,1111/1001,Children and Young People,CYP,Third Party Payments,EGA,20/08/2020,05-15944,657.72,[Redacted]
Nottinghamshire County Council,1111/1001,Children and Young People,CYP,Third Party Payments,EGA,20/08/2020,05-15945,730.80,[Redacted]
Nottinghamshire County Council,1111/1001,Children and Young People,CYP,Third Party Payments,EGA,20/08/2020,05-15946,892.08,[Redacted]
Nottinghamshire County Council,1111/1001,Children and Young People,CYP,Third Party Payments,EGA,20/08/2020,05-15947,2387.28,[Redacted]
Nottinghamshire County Council,1111/1001,Children and Young People,CYP,Third Party Payments,EGA,20/08/2020,05-15948,832.61,[Redacted]
Nottinghamshire County Council,1111/1001,Children and Young People,CYP,Third Party Payments,EGA,20/08/2020,05-15949,876.96,[Redacted]
Nottinghamshire County Council,1111/1001,Children and Young People,CYP,Third Party Payments,EGA,20/08/2020,05-15950,3069.36,Butterflies Childminding Services
Nottinghamshire County Council,1111/1001,Children and Young People,CYP,Third Party Payments,EGA,20/08/2020,05-15951,1461.6,[Redacted]
Nottinghamshire County Council,1111/1001,Children and Young People,CYP,Third Party Payments,EGA,20/08/2020,05-15952,1286.21,[Redacted]
Nottinghamshire County Council,1111/1001,Children and Young People,CYP,Third Party Payments,EGA,20/08/2020,05-15953,794.52,[Redacted]
Nottinghamshire County Council,1111/1001,Children and Young People,CYP,Third Party Payments,EGA,20/08/2020,05-15954,1622.88,[Redacted]
Nottinghamshire County Council,1111/1001,Children and Young People,CYP,Third Party Payments,EGA,20/08/2020,05-15955,"1,524.24",Little Gem's
Nottinghamshire County Council,1111/1001,Children and Young People,CYP,Third Party Payments,EGA,20/08/2020,05-15956,1461.6,[Redacted]
Nottinghamshire County Council,1111/1001,Children and Young People,CYP,Third Party Payments,EGA,20/08/2020,05-15957,3345.13,[Redacted]
Nottinghamshire County Council,1111/1001,Children and Young People,CYP,Third Party Payments,EGA,20/08/2020,05-15958,"1,023.12",[Redacted]
Nottinghamshire County Council,1111/1001,Children and Young People,CYP,Third Party Payments,EGA,20/08/2020,05-15959,730.80,[Redacted]
Nottinghamshire County Council,1111/1001,Children and Young People,CYP,Third Party Payments,EGA,20/08/2020,05-15960,2680.78,[Redacted]
Nottinghamshire County Council,1111/1001,Children and Young People,CYP,Third Party Payments,EGA,20/08/2020,05-15961,1461.6,[Redacted]
Nottinghamshire County Council,1111/1001,Children and Young People,CYP,Third Party Payments,EGA,20/08/2020,05-15962,"16,828.27",Little Adventures Forest School Ltd
Nottinghamshire County Council,1111/1001,Children and Young People,CYP,Third Party Payments,EGA,20/08/2020,05-15963,"1,461.60",[Redacted]
Nottinghamshire County Council,1111/1001,Children and Young People,CYP,Third Party Payments,EGA,20/08/2020,05-15964,"1,622.88",Helping Hands Daycare
Nottinghamshire County Council,1111/1001,Children and Young People,CYP,Third Party Payments,EGA,20/08/2020,05-15965,"2,061.36",[Redacted]
Nottinghamshire County Council,1111/1001,Children and Young People,CYP,Third Party Payments,EGA,20/08/2020,05-15966,"1,218.00",[Redacted]
Nottinghamshire County Council,1111/1001,Children and Young People,CYP,Third Party Payments,EGA,20/08/2020,05-15967,3245.76,[Redacted]
Nottinghamshire County Council,1111/1001,Children and Young People,CYP,Third Party Payments,EGA,20/08/2020,05-15968,13479.21,Happy Munchkins Pre School
Nottinghamshire County Council,1111/1001,Children and Young People,CYP,Third Party Payments,EGA,20/08/2020,05-15969,892.08,Funtime At Fearicks
Nottinghamshire County Council,1111/1001,Children and Young People,CYP,Third Party Payments,EGA,20/08/2020,05-15970,1817.76,L & K's Little Kingdom
Nottinghamshire County Council,1111/1001,Children and Young People,CYP,Third Party Payments,EGA,20/08/2020,05-15971,730.8,[Redacted]
Nottinghamshire County Council,1111/1001,Children and Young People,CYP,Third Party Payments,EGA,20/08/2020,05-15972,1461.6,[Redacted]
Nottinghamshire County Council,1111/1001,Children and Young People,CYP,Third Party Payments,EGA,20/08/2020,05-15973,40600.08,Lime Trees Day Nursery Ltd (Carlton
Nottinghamshire County Council,1111/1001,Children and Young People,CYP,Third Party Payments,EGA,20/08/2020,05-15974,1096.2,Amanda Birth to 11yrs Childcare
Nottinghamshire County Council,1111/1001,Children and Young People,CYP,Third Party Payments,EGA,20/08/2020,05-15975,3069.36,Wellow Tots Childminding
Nottinghamshire County Council,1111/1001,Children and Young People,CYP,Third Party Payments,EGA,20/08/2020,05-15976,17526.48,Small People Ltd
Nottinghamshire County Council,1111/1001,Children and Young People,CYP,Third Party Payments,EGA,20/08/2020,05-15977,730.80,[Redacted]
Nottinghamshire County Council,1111/1001,Children and Young People,CYP,Third Party Payments,EGA,20/08/2020,05-15978,3624.12,[Redacted]
Nottinghamshire County Council,1111/1001,Children and Young People,CYP,Third Party Payments,EGA,20/08/2020,05-15979,1169.28,[Redacted]
Nottinghamshire County Council,1111/1001,Children and Young People,CYP,Third Party Payments,EGA,20/08/2020,05-15980,"14,290.92",Play Days Cottage
Nottinghamshire County Council,1111/1001,Children and Young People,CYP,Third Party Payments,EGA,20/08/2020,05-15981,772.56,Little Foxes Hucknall
Nottinghamshire County Council,1111/1001,Children and Young People,CYP,Third Party Payments,EGA,20/08/2020,05-15982,"1,131.00",[Redacted]
Nottinghamshire County Council,1111/1001,Children and Young People,CYP,Third Party Payments,EGA,20/08/2020,05-15983,4545,New Beginnings Quality Childcare
Nottinghamshire County Council,1111/1001,Children and Young People,CYP,Third Party Payments,EGA,20/08/2020,05-15984,4408.02,Windmills Childcare
Nottinghamshire County Council,1111/1001,Children and Young People,CYP,Third Party Payments,EGA,20/08/2020,05-15985,"3,654.00",[Redacted]
Nottinghamshire County Council,1111/1001,Children and Young People,CYP,Third Party Payments,EGA,20/08/2020,05-15986,"1,461.60",[Redacted]
Nottinghamshire County Council,1111/1001,Children and Young People,CYP,Third Party Payments,EGA,20/08/2020,05-15987,"1,622.88",[Redacted]
Nottinghamshire County Council,1111/1001,Children and Young People,CYP,Third Party Payments,EGA,20/08/2020,05-15988,828.24,[Redacted]
Nottinghamshire County Council,1111/1001,Children and Young People,CYP,Third Party Payments,EGA,20/08/2020,05-15989,"17,461.92",Country Kids Day Nursery (Newark)
Nottinghamshire County Council,1111/1001,Children and Young People,CYP,Third Party Payments,EGA,20/08/2020,05-15990,15929.04,Country Kids Nursery (Rainworth)
Nottinghamshire County Council,1111/1001,Children and Young People,CYP,Third Party Payments,EGA,20/08/2020,05-15991,892.08,Little Footprints Childcare
Nottinghamshire County Council,1111/1001,Children and Young People,CYP,Third Party Payments,EGA,20/08/2020,05-15992,"1,305.00",Tiki Tots Daycare
Nottinghamshire County Council,1111/1001,Children and Young People,CYP,Third Party Payments,EGA,20/08/2020,05-15993,18915.54,Windmills Childcare
Nottinghamshire County Council,1111/1001,Children and Young People,CYP,Third Party Payments,EGA,20/08/2020,05-15994,2514.96,Kimi D's Tiny Toes Childminding
Nottinghamshire County Council,1111/1001,Children and Young People,CYP,Third Party Payments,EGA,20/08/2020,05-15995,730.80,[Redacted]
Nottinghamshire County Council,1111/1001,Children and Young People,CYP,Third Party Payments,EGA,20/08/2020,05-15996,"8,653.68",Cherubs (Edwinstowe)
Nottinghamshire County Council,1111/1001,Children and Young People,CYP,Third Party Payments,EGA,20/08/2020,05-15997,3245.76,[Redacted]
Nottinghamshire County Council,1111/1001,Children and Young People,CYP,Third Party Payments,EGA,20/08/2020,05-15998,"1,357.20",[Redacted]
Nottinghamshire County Council,1111/1001,Children and Young People,CYP,Third Party Payments,EGA,20/08/2020,05-15999,"1,495.44",[Redacted]
Nottinghamshire County Council,1111/1001,Children and Young People,CYP,Third Party Payments,EGA,20/08/2020,05-16000,584.64,[Redacted]
Nottinghamshire County Council,1111/1001,Children and Young People,CYP,Third Party Payments,EGA,20/08/2020,05-16001,730.8,[Redacted]
Nottinghamshire County Council,1111/1001,Children and Young People,CYP,Third Party Payments,EGA,20/08/2020,05-16002,892.08,Nannys House
Nottinghamshire County Council,1111/1001,Children and Young People,CYP,Third Party Payments,EGA,20/08/2020,05-16003,"18,244.70",Lime Trees (Cropwell Bishop)
Nottinghamshire County Council,1111/1001,Children and Young People,CYP,Third Party Payments,EGA,20/08/2020,05-16004,"40,486.32",Playroom Nursery
Nottinghamshire County Council,1111/1001,Children and Young People,CYP,Third Party Payments,EGA,20/08/2020,05-18607,"46,942.84",Truly Care Services Ltd
Nottinghamshire County Council,1111/1001,Children and Young People,CYP,Third Party Payments,EGA,20/08/2020,05-18679,"4,415.29",Ethelbert Childrens Services
Nottinghamshire County Council,1111/1001,Children and Young People,CYP,Third Party Payments,EGA,20/08/2020,05-18761,10872,Her Majestys Prison & Probation Ser
Nottinghamshire County Council,1111/1001,Children and Young People,CYP,Third Party Payments,EGA,20/08/2020,05-19018,17692.14,Keys PCE Ltd
Nottinghamshire County Council,1111/1001,Children and Young People,CYP,Third Party Payments,EGA,21/08/2020,05-16016,918.18,Hunny Bunny's Childcare
Nottinghamshire County Council,1111/1001,Children and Young People,CYP,Third Party Payments,EGA,21/08/2020,05-18811,14171.65,East Midlands Care Matters (Head Of
Nottinghamshire County Council,1111/1001,Children and Young People,CYP,Third Party Payments,EGA,21/08/2020,05-18823,25714.2,Skyline Child Care
Nottinghamshire County Council,1111/1001,Children and Young People,CYP,Third Party Payments,EGA,21/08/2020,05-18826,"14,171.65",East Midlands Care Matters (Head Of
Nottinghamshire County Council,1111/1001,Children and Young People,CYP,Third Party Payments,EGA,21/08/2020,05-18846,1141.56,Framework Housing Association
Nottinghamshire County Council,1111/1001,Children and Young People,CYP,Third Party Payments,EGA,21/08/2020,05-18847,1312.92,Framework Housing Association
Nottinghamshire County Council,1111/1001,Children and Young People,CYP,Third Party Payments,EGA,21/08/2020,05-18877,1297.52,Framework Housing Association
Nottinghamshire County Council,1111/1001,Children and Young People,CYP,Third Party Payments,EGA,24/08/2020,05-18596,7267.5,Hexagon Care Services Ltd
Nottinghamshire County Council,1111/1001,Children and Young People,CYP,Third Party Payments,EGA,24/08/2020,05-18598,7267.5,Hexagon Care Services Ltd
Nottinghamshire County Council,1111/1001,Children and Young People,CYP,Third Party Payments,EGA,24/08/2020,05-18599,11020,Dudley Lodge
Nottinghamshire County Council,1111/1001,Children and Young People,CYP,Third Party Payments,EGA,24/08/2020,05-18605,4080.93,Three Circles Fostering Ltd
Nottinghamshire County Council,1111/1001,Children and Young People,CYP,Third Party Payments,EGA,24/08/2020,05-18609,16607.14,Acorn Care & Education Ltd
Nottinghamshire County Council,1111/1001,Children and Young People,CYP,Third Party Payments,EGA,24/08/2020,05-18612,1128.58,Cambian Childcare Ltd
Nottinghamshire County Council,1111/1001,Children and Young People,CYP,Third Party Payments,EGA,24/08/2020,05-18613,1128.58,Cambian Childcare Ltd
Nottinghamshire County Council,1111/1001,Children and Young People,CYP,Third Party Payments,EGA,24/08/2020,05-18687,"3,025.00",G-Map Services Ltd
Nottinghamshire County Council,1111/1001,Children and Young People,CYP,Third Party Payments,EGA,24/08/2020,05-18690,"3,321.34",Park Foster Care Ltd
Nottinghamshire County Council,1111/1001,Children and Young People,CYP,Third Party Payments,EGA,24/08/2020,05-18693,"3,321.34",Park Foster Care Ltd
Nottinghamshire County Council,1111/1001,Children and Young People,CYP,Third Party Payments,EGA,24/08/2020,05-18788,17980,Dudley Lodge
Nottinghamshire County Council,1111/1001,Children and Young People,CYP,Third Party Payments,EGA,24/08/2020,05-18796,"4,315.48",Flying High Trust Beeston Fields Pr
Nottinghamshire County Council,1111/1001,Children and Young People,CYP,Third Party Payments,EGA,24/08/2020,05-18812,"3,095.57",Wyncare Ltd
Nottinghamshire County Council,1111/1001,Children and Young People,CYP,Third Party Payments,EGA,24/08/2020,05-18819,"13,950.00",Wyncare Ltd
Nottinghamshire County Council,1111/1001,Children and Young People,CYP,Third Party Payments,EGA,24/08/2020,05-18827,9848.57,Sunbeam Fostering Agency Ltd
Nottinghamshire County Council,1111/1001,Children and Young People,CYP,Third Party Payments,EGA,24/08/2020,05-18853,"9,848.57",Sunbeam Fostering Agency Ltd
Nottinghamshire County Council,1111/1001,Children and Young People,CYP,Third Party Payments,EGA,24/08/2020,05-18864,17714.33,Grace Care Ltd
Nottinghamshire County Council,1111/1001,Children and Young People,CYP,Third Party Payments,EGA,24/08/2020,05-18885,"21,441.94",Treehouse Care Fostering Solutions
Nottinghamshire County Council,1111/1001,Children and Young People,CYP,Third Party Payments,EGA,24/08/2020,05-18895,11507.14,Platform Childcare Ltd
Nottinghamshire County Council,1111/1001,Children and Young People,CYP,Third Party Payments,EGA,24/08/2020,05-18938,7419.23,Absolute Children�s Services Ltd
Nottinghamshire County Council,1111/1001,Children and Young People,CYP,Third Party Payments,EGA,24/08/2020,05-18939,"7,419.23",Absolute Children�s Services Ltd
Nottinghamshire County Council,1111/1001,Children and Young People,CYP,Third Party Payments,EGA,24/08/2020,05-18941,"7,419.23",Absolute Children�s Services Ltd
Nottinghamshire County Council,1111/1001,Children and Young People,CYP,Third Party Payments,EGA,24/08/2020,05-18942,17714.33,Grace Care Ltd
Nottinghamshire County Council,1111/1001,Children and Young People,CYP,Third Party Payments,EGA,24/08/2020,05-18943,"17,714.33",Grace Care Ltd
Nottinghamshire County Council,1111/1001,Children and Young People,CYP,Third Party Payments,EGA,24/08/2020,05-18962,2000,Bridge Together Ltd
Nottinghamshire County Council,1111/1001,Children and Young People,CYP,Third Party Payments,EGA,24/08/2020,05-18964,2204.6,Ambito Care (East Midlands Communit
Nottinghamshire County Council,1111/1001,Children and Young People,CYP,Third Party Payments,EGA,24/08/2020,05-18965,17388.5,Orange Grove Fostercare Ltd
Nottinghamshire County Council,1111/1001,Children and Young People,CYP,Third Party Payments,EGA,24/08/2020,05-18974,14144.98,AMG Consultancy Services Ltd
Nottinghamshire County Council,1111/1001,Children and Young People,CYP,Third Party Payments,EGA,24/08/2020,05-18975,"14,144.98",AMG Consultancy Services Ltd
